Workbook

Sheet INGRESO DE DATOS
A18: Tarifas efectivas a partir del 1ro de enero de 2021 — Para renovaciones de pólizas emitidas antes del 1 de abril de 2018
A19: 1. LLENE LA INFORMACIÓN DEL ASEGURADO PROPUESTO:
B21: Nombre del Asegurado Titular | D21: NOMBRE COMPLETO
B23: Número de adultos en la póliza | D23: 1 | F23: Número de niños en la póliza | H23: 0
B25: Edad del Asegurado Titular | D25: 35 | F25: Edad del/la cónyuge | H25: 46
G27: Variante con coaseguro fuera del país de residencia | H27: TRUE
A29: 2. SELECCIONE EL PRODUCTO PARA VER LA COTIZACIÓN CORRESPONDIENTE:
B50: 1 | D50: 1

Sheet Global Ultimate
A25: GLOBAL ULTIMATE HEALTH PLAN | D25: Nombre del Asegurado Titular | F25: =+'INGRESO DE DATOS'!$D$21 -> NOMBRE COMPLETO
D27: Número de adultos en la póliza | F27: =+'INGRESO DE DATOS'!$D$23 -> 1 | H27: Edad del Asegurado Titular | I27: =+'INGRESO DE DATOS'!$D$25 -> 35
D29: Número de niños en la póliza | F29: =+'INGRESO DE DATOS'!$H$23 -> 0 | H29: Edad del/la conyuge | I29: =+'INGRESO DE DATOS'!$H$25 -> 46
D31: Número de niños menores de 16 años | F31: =+'INGRESO DE DATOS'!$B$50 -> 1 | G31: Fecha de la cotización: | H31: =NOW() -> 2021-11-08T11:55:45.700
H32: FALSE
E33: Deducibles | G33: PLAN 1 | H33: PLAN 2
E34: En el país de residencia | G34: 0 | H34: 1000
E35: Fuera del país de residencia | G35: 0 | H35: 1000
E37: Tarifas anuales
E38: Prima para Asegurado Titular | G38: =(VLOOKUP($I$27,Tablas!$A$905:$G$971,3,TRUE))*0.9 -> 19322.1 | H38: =(VLOOKUP($I$27,Tablas!$A$905:$G$971,4,TRUE))*0.9 -> 12466.8
E39: Prima para conyuge | G39: =(IF($F$27=1,0,(VLOOKUP($I$29,Tablas!$A$905:$G$971,3,TRUE))))*0.9 -> 0 | H39: =(IF($F$27=1,0,(VLOOKUP($I$29,Tablas!$A$905:$G$971,4,TRUE))))*0.9 -> 0
E40: Prima para hijo (s) | G40: =(IF($F$27=1, (IF($F$29=0, 0, (IF($F$31>$F$29, (VLOOKUP($F$29,Tablas!$A$972:$G$974,3,TRUE)), (IF($F$29>4,(IF($F$31=0, (VLOOKUP(3,Tablas!$A$972:$G$974,3,TRUE)), (IF($F$31=1, (VLOOKUP(3,Tablas!$A$972:$G$974,3,TRUE)), (IF($F$31=2, (VLOOKUP(3,Tablas!$A$972:$G$974,3,TRUE)), (VLOOKUP(3,Tablas!$A$972:$G$974,3,TRUE)))))))), (IF($F$29=4,(IF(4-$F$31=0,(VLOOKUP(2,Tablas!$A$972:$G$974,3,TRUE)), (IF(4-$F$31=1,(VLOOKUP(2,Tablas!$A$972:$G$974,3,TRUE)), (IF(4-$F$31=2, (VLOOKUP(2,Tablas!$A$972:$G$974,3,TRUE)), (VLOOKUP(3,Tablas!$A$972:$G$974,3,TRUE)))))))), (IF($F$29=3,(IF(3-$F$31=0,(VLOOKUP(1,Tablas!$A$972:$G$974,3,TRUE)), (IF(3-$F$31=1,(VLOOKUP(1,Tablas!$A$972:$G$974,3,TRUE)), (IF(3-$F$31=2, (VLOOKUP(2,Tablas!$A$972:$G$974,3,TRUE)), (VLOOKUP(3,Tablas!$A$972:$G$974,3,TRUE)))))))), (IF($F$29=2,(IF(2-$F$31=0, 0, (IF(2-$F$31=1,(VLOOKUP(1,Tablas!$A$972:$G$974,3,TRUE)), (IF(2-$F$31=2, (VLOOKUP(2,Tablas!$A$972:$G$974,3,TRUE)), 0)))))), (IF($F$29=1,(IF(1-$F$31=0, 0, (IF(1-$F$31=1,(VLOOKUP(1,Tablas!$A$972:$G$974,3,TRUE)),0)))),0)))))))))))))), (IF($F$29=0, 0, (IF($F$31>$F$29, (VLOOKUP($F$29,Tablas!$A$972:$G$974,3,TRUE)), (IF($F$29=4,(IF(4-$F$31=0, 0, (IF(4-$F$31=1, (VLOOKUP(1,Tablas!$A$972:$G$974,3,TRUE)), (IF(4-$F$31=2, (VLOOKUP(2,Tablas!$A$972:$G$974,3,TRUE)), (IF(4-$F$31=3, (VLOOKUP(3,Tablas!$A$972:$G$974,3,TRUE)), (IF(4-$F$31=4, (VLOOKUP(3,Tablas!$A$972:$G$974,3,TRUE)), 0)))))))))), (IF($F$29=5,(IF(5-$F$31=0, (VLOOKUP(1,Tablas!$A$972:$G$974,3,TRUE)), (IF(5-$F$31=1, (VLOOKUP(1,Tablas!$A$972:$G$974,3,TRUE)), (IF(5-$F$31=2, (VLOOKUP(2,Tablas!$A$972:$G$974,3,TRUE)), (IF(5-$F$31=3, (VLOOKUP(3,Tablas!$A$972:$G$974,3,TRUE)), (IF(5-$F$31=4, (VLOOKUP(3,Tablas!$A$972:$G$974,3,TRUE)), (VLOOKUP(3,Tablas!$A$972:$G$974,3,TRUE)))))))))))), (IF($F$29=6,(IF(6-$F$31=0, (VLOOKUP(2,Tablas!$A$972:$G$974,3,TRUE)), (IF(6-$F$31=1, (VLOOKUP(2,Tablas!$A$972:$G$974,3,TRUE)), (IF(6-$F$31=2, (VLOOKUP(2,Tablas!$A$972:$G$974,3,TRUE)), (IF(6-$F$31=3, (VLOOKUP(3,Tablas!$A$972:$G$974,3,TRUE)), (IF(6-$F$31=4, (VLOOKUP(3,Tablas!$A$972:$G$974,3,TRUE)), (VLOOKUP(3,Tablas!$A$972:$G$974,3,TRUE)))))))))))), (IF($F$29>6,(IF(7-$F$31=0, (VLOOKUP(3,Tablas!$A$972:$G$974,3,TRUE)), (IF(7-$F$31=1, (VLOOKUP(3,Tablas!$A$972:$G$974,3,TRUE)), (IF(7-$F$31=2, (VLOOKUP(3,Tablas!$A$972:$G$974,3,TRUE)), (IF(7-$F$31=3, (VLOOKUP(3,Tablas!$A$972:$G$974,3,TRUE)), (IF(7-$F$31=4, (VLOOKUP(3,Tablas!$A$972:$G$974,3,TRUE)), (VLOOKUP(3,Tablas!$A$972:$G$974,3,TRUE)))))))))))), (IF($F$29=3,(IF(3-$F$31=0,0, (IF(3-$F$31=1,(VLOOKUP(1,Tablas!$A$972:$G$974,3,TRUE)), (IF(3-$F$31=2, (VLOOKUP(2,Tablas!$A$972:$G$974,3,TRUE)), (VLOOKUP(3,Tablas!$A$972:$G$974,3,TRUE)))))))), (IF($F$29=2,(IF(2-$F$31=0, 0, (IF(2-$F$31=1,(VLOOKUP(1,Tablas!$A$972:$G$974,3,TRUE)), (IF(2-$F$31=2, (VLOOKUP(2,Tablas!$A$972:$G$974,3,TRUE)), 0)))))), (IF($F$29=1,(IF(1-$F$31=0, 0, (IF(1-$F$31=1,(VLOOKUP(1,Tablas!$A$972:$G$974,3,TRUE)),0)))),0))))))))))))))))))))*0.9 -> 0 | H40: =(IF($F$27=1, (IF($F$29=0, 0, (IF($F$31>$F$29, (VLOOKUP($F$29,Tablas!$A$972:$G$974,4,TRUE)), (IF($F$29>4,(IF($F$31=0, (VLOOKUP(3,Tablas!$A$972:$G$974,4,TRUE)), (IF($F$31=1, (VLOOKUP(3,Tablas!$A$972:$G$974,4,TRUE)), (IF($F$31=2, (VLOOKUP(3,Tablas!$A$972:$G$974,4,TRUE)), (VLOOKUP(3,Tablas!$A$972:$G$974,4,TRUE)))))))), (IF($F$29=4,(IF(4-$F$31=0,(VLOOKUP(2,Tablas!$A$972:$G$974,4,TRUE)), (IF(4-$F$31=1,(VLOOKUP(2,Tablas!$A$972:$G$974,4,TRUE)), (IF(4-$F$31=2, (VLOOKUP(2,Tablas!$A$972:$G$974,4,TRUE)), (VLOOKUP(3,Tablas!$A$972:$G$974,4,TRUE)))))))), (IF($F$29=3,(IF(3-$F$31=0,(VLOOKUP(1,Tablas!$A$972:$G$974,4,TRUE)), (IF(3-$F$31=1,(VLOOKUP(1,Tablas!$A$972:$G$974,4,TRUE)), (IF(3-$F$31=2, (VLOOKUP(2,Tablas!$A$972:$G$974,4,TRUE)), (VLOOKUP(3,Tablas!$A$972:$G$974,4,TRUE)))))))), (IF($F$29=2,(IF(2-$F$31=0, 0, (IF(2-$F$31=1,(VLOOKUP(1,Tablas!$A$972:$G$974,4,TRUE)), (IF(2-$F$31=2, (VLOOKUP(2,Tablas!$A$972:$G$974,4,TRUE)), 0)))))), (IF($F$29=1,(IF(1-$F$31=0, 0, (IF(1-$F$31=1,(VLOOKUP(1,Tablas!$A$972:$G$974,4,TRUE)),0)))),0)))))))))))))), (IF($F$29=0, 0, (IF($F$31>$F$29, (VLOOKUP($F$29,Tablas!$A$972:$G$974,4,TRUE)), (IF($F$29=4,(IF(4-$F$31=0, 0, (IF(4-$F$31=1, (VLOOKUP(1,Tablas!$A$972:$G$974,4,TRUE)), (IF(4-$F$31=2, (VLOOKUP(2,Tablas!$A$972:$G$974,4,TRUE)), (IF(4-$F$31=3, (VLOOKUP(3,Tablas!$A$972:$G$974,4,TRUE)), (IF(4-$F$31=4, (VLOOKUP(3,Tablas!$A$972:$G$974,4,TRUE)), 0)))))))))), (IF($F$29=5,(IF(5-$F$31=0, (VLOOKUP(1,Tablas!$A$972:$G$974,4,TRUE)), (IF(5-$F$31=1, (VLOOKUP(1,Tablas!$A$972:$G$974,4,TRUE)), (IF(5-$F$31=2, (VLOOKUP(2,Tablas!$A$972:$G$974,4,TRUE)), (IF(5-$F$31=3, (VLOOKUP(3,Tablas!$A$972:$G$974,4,TRUE)), (IF(5-$F$31=4, (VLOOKUP(3,Tablas!$A$972:$G$974,4,TRUE)), (VLOOKUP(3,Tablas!$A$972:$G$974,4,TRUE)))))))))))), (IF($F$29=6,(IF(6-$F$31=0, (VLOOKUP(2,Tablas!$A$972:$G$974,4,TRUE)), (IF(6-$F$31=1, (VLOOKUP(2,Tablas!$A$972:$G$974,4,TRUE)), (IF(6-$F$31=2, (VLOOKUP(2,Tablas!$A$972:$G$974,4,TRUE)), (IF(6-$F$31=3, (VLOOKUP(3,Tablas!$A$972:$G$974,4,TRUE)), (IF(6-$F$31=4, (VLOOKUP(3,Tablas!$A$972:$G$974,4,TRUE)), (VLOOKUP(3,Tablas!$A$972:$G$974,4,TRUE)))))))))))), (IF($F$29>6,(IF(7-$F$31=0, (VLOOKUP(3,Tablas!$A$972:$G$974,4,TRUE)), (IF(7-$F$31=1, (VLOOKUP(3,Tablas!$A$972:$G$974,4,TRUE)), (IF(7-$F$31=2, (VLOOKUP(3,Tablas!$A$972:$G$974,4,TRUE)), (IF(7-$F$31=3, (VLOOKUP(3,Tablas!$A$972:$G$974,4,TRUE)), (IF(7-$F$31=4, (VLOOKUP(3,Tablas!$A$972:$G$974,4,TRUE)), (VLOOKUP(3,Tablas!$A$972:$G$974,4,TRUE)))))))))))), (IF($F$29=3,(IF(3-$F$31=0,0, (IF(3-$F$31=1,(VLOOKUP(1,Tablas!$A$972:$G$974,4,TRUE)), (IF(3-$F$31=2, (VLOOKUP(2,Tablas!$A$972:$G$974,4,TRUE)), (VLOOKUP(3,Tablas!$A$972:$G$974,4,TRUE)))))))), (IF($F$29=2,(IF(2-$F$31=0, 0, (IF(2-$F$31=1,(VLOOKUP(1,Tablas!$A$972:$G$974,4,TRUE)), (IF(2-$F$31=2, (VLOOKUP(2,Tablas!$A$972:$G$974,4,TRUE)), 0)))))), (IF($F$29=1,(IF(1-$F$31=0, 0, (IF(1-$F$31=1,(VLOOKUP(1,Tablas!$A$972:$G$974,4,TRUE)),0)))),0))))))))))))))))))))*0.9 -> 0
E41: Total de Prima neta | G41: =SUM(G38:G40) -> 19322.1 | H41: =SUM(H38:H40) -> 12466.8
E42: Tarifa administrativa anual | G42: 75 | H42: 75
E43: IVA (12%) | G43: =(G42+G41)*0% -> 0 | H43: =(H42+H41)*0% -> 0
E44: TOTAL ANUAL | G44: =SUM(G41:G43) -> 19397.1 | H44: =SUM(H41:H43) -> 12541.8
E45: Ahorros en tarifas de prima para niños | G45: =IF($F$27=1,IF($F$29=0,0,IF($F$31=0,0,IF($F$31=1,(VLOOKUP(1,Tablas!$A$972:$G$974,3,TRUE)),(VLOOKUP(2,Tablas!$A$972:$G$974,3,TRUE))))), IF($F$29=0,0,IF($F$31=0,0,IF($F$31=1,(VLOOKUP(1,Tablas!$A$972:$G$974,3,TRUE)),IF($F$31=2,(VLOOKUP(2,Tablas!$A$972:$G$974,3,TRUE)), (VLOOKUP(3,Tablas!$A$972:$G$974,3,TRUE))))))) -> 0 | H45: =IF($F$27=1,IF($F$29=0,0,IF($F$31=0,0,IF($F$31=1,(VLOOKUP(1,Tablas!$A$972:$G$974,4,TRUE)),(VLOOKUP(2,Tablas!$A$972:$G$974,4,TRUE))))), IF($F$29=0,0,IF($F$31=0,0,IF($F$31=1,(VLOOKUP(1,Tablas!$A$972:$G$974,4,TRUE)),IF($F$31=2,(VLOOKUP(2,Tablas!$A$972:$G$974,4,TRUE)), (VLOOKUP(3,Tablas!$A$972:$G$974,4,TRUE))))))) -> 0
E47: Tarifas semi anuales
E48: Prima para Asegurado Titular | G48: =VLOOKUP($I$27,Tablas!$A$1428:$G$1494,3,TRUE) -> 10734.5 | H48: =VLOOKUP($I$27,Tablas!$A$1428:$G$1494,4,TRUE) -> 6926
E49: Prima para conyuge | G49: =IF($F$27=1,0,(VLOOKUP($I$29,Tablas!$A$1428:$G$1494,3,TRUE))) -> 0 | H49: =IF($F$27=1,0,(VLOOKUP($I$29,Tablas!$A$1428:$G$1494,4,TRUE))) -> 0
E50: Prima para hijo (s) | G50: =IF($F$27=1, (IF($F$29=0, 0, (IF($F$31>$F$29, (VLOOKUP($F$29,Tablas!$A$1495:$G$1497,3,TRUE)), (IF($F$29>4,(IF($F$31=0, (VLOOKUP(3,Tablas!$A$1495:$G$1497,3,TRUE)), (IF($F$31=1, (VLOOKUP(3,Tablas!$A$1495:$G$1497,3,TRUE)), (IF($F$31=2, (VLOOKUP(3,Tablas!$A$1495:$G$1497,3,TRUE)), (VLOOKUP(3,Tablas!$A$1495:$G$1497,3,TRUE)))))))), (IF($F$29=4,(IF(4-$F$31=0,(VLOOKUP(2,Tablas!$A$1495:$G$1497,3,TRUE)), (IF(4-$F$31=1,(VLOOKUP(2,Tablas!$A$1495:$G$1497,3,TRUE)), (IF(4-$F$31=2, (VLOOKUP(2,Tablas!$A$1495:$G$1497,3,TRUE)), (VLOOKUP(3,Tablas!$A$1495:$G$1497,3,TRUE)))))))), (IF($F$29=3,(IF(3-$F$31=0,(VLOOKUP(1,Tablas!$A$1495:$G$1497,3,TRUE)), (IF(3-$F$31=1,(VLOOKUP(1,Tablas!$A$1495:$G$1497,3,TRUE)), (IF(3-$F$31=2, (VLOOKUP(2,Tablas!$A$1495:$G$1497,3,TRUE)), (VLOOKUP(3,Tablas!$A$1495:$G$1497,3,TRUE)))))))), (IF($F$29=2,(IF(2-$F$31=0, 0, (IF(2-$F$31=1,(VLOOKUP(1,Tablas!$A$1495:$G$1497,3,TRUE)), (IF(2-$F$31=2, (VLOOKUP(2,Tablas!$A$1495:$G$1497,3,TRUE)), 0)))))), (IF($F$29=1,(IF(1-$F$31=0, 0, (IF(1-$F$31=1,(VLOOKUP(1,Tablas!$A$1495:$G$1497,3,TRUE)),0)))),0)))))))))))))), (IF($F$29=0, 0, (IF($F$31>$F$29, (VLOOKUP($F$29,Tablas!$A$1495:$G$1497,3,TRUE)), (IF($F$29=4,(IF(4-$F$31=0, 0, (IF(4-$F$31=1, (VLOOKUP(1,Tablas!$A$1495:$G$1497,3,TRUE)), (IF(4-$F$31=2, (VLOOKUP(2,Tablas!$A$1495:$G$1497,3,TRUE)), (IF(4-$F$31=3, (VLOOKUP(3,Tablas!$A$1495:$G$1497,3,TRUE)), (IF(4-$F$31=4, (VLOOKUP(3,Tablas!$A$1495:$G$1497,3,TRUE)), 0)))))))))), (IF($F$29=5,(IF(5-$F$31=0, (VLOOKUP(1,Tablas!$A$1495:$G$1497,3,TRUE)), (IF(5-$F$31=1, (VLOOKUP(1,Tablas!$A$1495:$G$1497,3,TRUE)), (IF(5-$F$31=2, (VLOOKUP(2,Tablas!$A$1495:$G$1497,3,TRUE)), (IF(5-$F$31=3, (VLOOKUP(3,Tablas!$A$1495:$G$1497,3,TRUE)), (IF(5-$F$31=4, (VLOOKUP(3,Tablas!$A$1495:$G$1497,3,TRUE)), (VLOOKUP(3,Tablas!$A$1495:$G$1497,3,TRUE)))))))))))), (IF($F$29=6,(IF(6-$F$31=0, (VLOOKUP(2,Tablas!$A$1495:$G$1497,3,TRUE)), (IF(6-$F$31=1, (VLOOKUP(2,Tablas!$A$1495:$G$1497,3,TRUE)), (IF(6-$F$31=2, (VLOOKUP(2,Tablas!$A$1495:$G$1497,3,TRUE)), (IF(6-$F$31=3, (VLOOKUP(3,Tablas!$A$1495:$G$1497,3,TRUE)), (IF(6-$F$31=4, (VLOOKUP(3,Tablas!$A$1495:$G$1497,3,TRUE)), (VLOOKUP(3,Tablas!$A$1495:$G$1497,3,TRUE)))))))))))), (IF($F$29>6,(IF(7-$F$31=0, (VLOOKUP(3,Tablas!$A$1495:$G$1497,3,TRUE)), (IF(7-$F$31=1, (VLOOKUP(3,Tablas!$A$1495:$G$1497,3,TRUE)), (IF(7-$F$31=2, (VLOOKUP(3,Tablas!$A$1495:$G$1497,3,TRUE)), (IF(7-$F$31=3, (VLOOKUP(3,Tablas!$A$1495:$G$1497,3,TRUE)), (IF(7-$F$31=4, (VLOOKUP(3,Tablas!$A$1495:$G$1497,3,TRUE)), (VLOOKUP(3,Tablas!$A$1495:$G$1497,3,TRUE)))))))))))), (IF($F$29=3,(IF(3-$F$31=0,0, (IF(3-$F$31=1,(VLOOKUP(1,Tablas!$A$1495:$G$1497,3,TRUE)), (IF(3-$F$31=2, (VLOOKUP(2,Tablas!$A$1495:$G$1497,3,TRUE)), (VLOOKUP(3,Tablas!$A$1495:$G$1497,3,TRUE)))))))), (IF($F$29=2,(IF(2-$F$31=0, 0, (IF(2-$F$31=1,(VLOOKUP(1,Tablas!$A$1495:$G$1497,3,TRUE)), (IF(2-$F$31=2, (VLOOKUP(2,Tablas!$A$1495:$G$1497,3,TRUE)), 0)))))), (IF($F$29=1,(IF(1-$F$31=0, 0, (IF(1-$F$31=1,(VLOOKUP(1,Tablas!$A$1495:$G$1497,3,TRUE)),0)))),0))))))))))))))))))) -> 0 | H50: =IF($F$27=1, (IF($F$29=0, 0, (IF($F$31>$F$29, (VLOOKUP($F$29,Tablas!$A$1495:$G$1497,4,TRUE)), (IF($F$29>4,(IF($F$31=0, (VLOOKUP(3,Tablas!$A$1495:$G$1497,4,TRUE)), (IF($F$31=1, (VLOOKUP(3,Tablas!$A$1495:$G$1497,4,TRUE)), (IF($F$31=2, (VLOOKUP(3,Tablas!$A$1495:$G$1497,4,TRUE)), (VLOOKUP(3,Tablas!$A$1495:$G$1497,4,TRUE)))))))), (IF($F$29=4,(IF(4-$F$31=0,(VLOOKUP(2,Tablas!$A$1495:$G$1497,4,TRUE)), (IF(4-$F$31=1,(VLOOKUP(2,Tablas!$A$1495:$G$1497,4,TRUE)), (IF(4-$F$31=2, (VLOOKUP(2,Tablas!$A$1495:$G$1497,4,TRUE)), (VLOOKUP(3,Tablas!$A$1495:$G$1497,4,TRUE)))))))), (IF($F$29=3,(IF(3-$F$31=0,(VLOOKUP(1,Tablas!$A$1495:$G$1497,4,TRUE)), (IF(3-$F$31=1,(VLOOKUP(1,Tablas!$A$1495:$G$1497,4,TRUE)), (IF(3-$F$31=2, (VLOOKUP(2,Tablas!$A$1495:$G$1497,4,TRUE)), (VLOOKUP(3,Tablas!$A$1495:$G$1497,4,TRUE)))))))), (IF($F$29=2,(IF(2-$F$31=0, 0, (IF(2-$F$31=1,(VLOOKUP(1,Tablas!$A$1495:$G$1497,4,TRUE)), (IF(2-$F$31=2, (VLOOKUP(2,Tablas!$A$1495:$G$1497,4,TRUE)), 0)))))), (IF($F$29=1,(IF(1-$F$31=0, 0, (IF(1-$F$31=1,(VLOOKUP(1,Tablas!$A$1495:$G$1497,4,TRUE)),0)))),0)))))))))))))), (IF($F$29=0, 0, (IF($F$31>$F$29, (VLOOKUP($F$29,Tablas!$A$1495:$G$1497,4,TRUE)), (IF($F$29=4,(IF(4-$F$31=0, 0, (IF(4-$F$31=1, (VLOOKUP(1,Tablas!$A$1495:$G$1497,4,TRUE)), (IF(4-$F$31=2, (VLOOKUP(2,Tablas!$A$1495:$G$1497,4,TRUE)), (IF(4-$F$31=3, (VLOOKUP(3,Tablas!$A$1495:$G$1497,4,TRUE)), (IF(4-$F$31=4, (VLOOKUP(3,Tablas!$A$1495:$G$1497,4,TRUE)), 0)))))))))), (IF($F$29=5,(IF(5-$F$31=0, (VLOOKUP(1,Tablas!$A$1495:$G$1497,4,TRUE)), (IF(5-$F$31=1, (VLOOKUP(1,Tablas!$A$1495:$G$1497,4,TRUE)), (IF(5-$F$31=2, (VLOOKUP(2,Tablas!$A$1495:$G$1497,4,TRUE)), (IF(5-$F$31=3, (VLOOKUP(3,Tablas!$A$1495:$G$1497,4,TRUE)), (IF(5-$F$31=4, (VLOOKUP(3,Tablas!$A$1495:$G$1497,4,TRUE)), (VLOOKUP(3,Tablas!$A$1495:$G$1497,4,TRUE)))))))))))), (IF($F$29=6,(IF(6-$F$31=0, (VLOOKUP(2,Tablas!$A$1495:$G$1497,4,TRUE)), (IF(6-$F$31=1, (VLOOKUP(2,Tablas!$A$1495:$G$1497,4,TRUE)), (IF(6-$F$31=2, (VLOOKUP(2,Tablas!$A$1495:$G$1497,4,TRUE)), (IF(6-$F$31=3, (VLOOKUP(3,Tablas!$A$1495:$G$1497,4,TRUE)), (IF(6-$F$31=4, (VLOOKUP(3,Tablas!$A$1495:$G$1497,4,TRUE)), (VLOOKUP(3,Tablas!$A$1495:$G$1497,4,TRUE)))))))))))), (IF($F$29>6,(IF(7-$F$31=0, (VLOOKUP(3,Tablas!$A$1495:$G$1497,4,TRUE)), (IF(7-$F$31=1, (VLOOKUP(3,Tablas!$A$1495:$G$1497,4,TRUE)), (IF(7-$F$31=2, (VLOOKUP(3,Tablas!$A$1495:$G$1497,4,TRUE)), (IF(7-$F$31=3, (VLOOKUP(3,Tablas!$A$1495:$G$1497,4,TRUE)), (IF(7-$F$31=4, (VLOOKUP(3,Tablas!$A$1495:$G$1497,4,TRUE)), (VLOOKUP(3,Tablas!$A$1495:$G$1497,4,TRUE)))))))))))), (IF($F$29=3,(IF(3-$F$31=0,0, (IF(3-$F$31=1,(VLOOKUP(1,Tablas!$A$1495:$G$1497,4,TRUE)), (IF(3-$F$31=2, (VLOOKUP(2,Tablas!$A$1495:$G$1497,4,TRUE)), (VLOOKUP(3,Tablas!$A$1495:$G$1497,4,TRUE)))))))), (IF($F$29=2,(IF(2-$F$31=0, 0, (IF(2-$F$31=1,(VLOOKUP(1,Tablas!$A$1495:$G$1497,4,TRUE)), (IF(2-$F$31=2, (VLOOKUP(2,Tablas!$A$1495:$G$1497,4,TRUE)), 0)))))), (IF($F$29=1,(IF(1-$F$31=0, 0, (IF(1-$F$31=1,(VLOOKUP(1,Tablas!$A$1495:$G$1497,4,TRUE)),0)))),0))))))))))))))))))) -> 0
E51: Total de Prima neta | G51: =SUM(G48:G50) -> 10734.5 | H51: =SUM(H48:H50) -> 6926
E52: Tarifa administrativa anual | G52: 75 | H52: 75
E53: IVA (12%) | G53: =(G51+G52)*0% -> 0 | H53: =(H51+H52)*0% -> 0
E54: TOTAL de primera cuota | G54: =SUM(G51:G53) -> 10809.5 | H54: =SUM(H51:H53) -> 7001
E55: Costo de segunda cuota | G55: =G51+G53 -> 10734.5 | H55: =H51+H53 -> 6926
E56: TOTAL ANUAL | G56: =G54+G55 -> 21544 | H56: =H54+H55 -> 13927
E57: Ahorros en tarifas de prima para niños | G57: =IF($F$27=1,IF($F$29=0,0,IF($F$31=0,0,IF($F$31=1,(VLOOKUP(1,Tablas!$A$1495:$G$1497,3,TRUE)),(VLOOKUP(2,Tablas!$A$1495:$G$1497,3,TRUE))))), IF($F$29=0,0,IF($F$31=0,0,IF($F$31=1,(VLOOKUP(1,Tablas!$A$1495:$G$1497,3,TRUE)),IF($F$31=2,(VLOOKUP(2,Tablas!$A$1495:$G$1497,3,TRUE)), (VLOOKUP(3,Tablas!$A$1495:$G$1497,3,TRUE))))))) -> 0 | H57: =IF($F$27=1,IF($F$29=0,0,IF($F$31=0,0,IF($F$31=1,(VLOOKUP(1,Tablas!$A$1495:$G$1497,4,TRUE)),(VLOOKUP(2,Tablas!$A$1495:$G$1497,4,TRUE))))), IF($F$29=0,0,IF($F$31=0,0,IF($F$31=1,(VLOOKUP(1,Tablas!$A$1495:$G$1497,4,TRUE)),IF($F$31=2,(VLOOKUP(2,Tablas!$A$1495:$G$1497,4,TRUE)), (VLOOKUP(3,Tablas!$A$1495:$G$1497,4,TRUE))))))) -> 0
E59: Tarifas trimestrales
E60: Prima para Asegurado Titular | G60: =VLOOKUP($I$27,Tablas!$A$1054:$G$1120,3,TRUE) -> 5367.25 | H60: =VLOOKUP($I$27,Tablas!$A$1054:$G$1120,4,TRUE) -> 3463
E61: Prima para conyuge | G61: =IF($F$27=1,0,(VLOOKUP($I$29,Tablas!$A$1054:$G$1120,3,TRUE))) -> 0 | H61: =IF($F$27=1,0,(VLOOKUP($I$29,Tablas!$A$1054:$G$1120,4,TRUE))) -> 0
E62: Prima para hijo (s) | G62: =IF($F$27=1, (IF($F$29=0, 0, (IF($F$31>$F$29, (VLOOKUP($F$29,Tablas!$A$1121:$G$1123,3,TRUE)), (IF($F$29>4,(IF($F$31=0, (VLOOKUP(3,Tablas!$A$1121:$G$1123,3,TRUE)), (IF($F$31=1, (VLOOKUP(3,Tablas!$A$1121:$G$1123,3,TRUE)), (IF($F$31=2, (VLOOKUP(3,Tablas!$A$1121:$G$1123,3,TRUE)), (VLOOKUP(3,Tablas!$A$1121:$G$1123,3,TRUE)))))))), (IF($F$29=4,(IF(4-$F$31=0,(VLOOKUP(2,Tablas!$A$1121:$G$1123,3,TRUE)), (IF(4-$F$31=1,(VLOOKUP(2,Tablas!$A$1121:$G$1123,3,TRUE)), (IF(4-$F$31=2, (VLOOKUP(2,Tablas!$A$1121:$G$1123,3,TRUE)), (VLOOKUP(3,Tablas!$A$1121:$G$1123,3,TRUE)))))))), (IF($F$29=3,(IF(3-$F$31=0,(VLOOKUP(1,Tablas!$A$1121:$G$1123,3,TRUE)), (IF(3-$F$31=1,(VLOOKUP(1,Tablas!$A$1121:$G$1123,3,TRUE)), (IF(3-$F$31=2, (VLOOKUP(2,Tablas!$A$1121:$G$1123,3,TRUE)), (VLOOKUP(3,Tablas!$A$1121:$G$1123,3,TRUE)))))))), (IF($F$29=2,(IF(2-$F$31=0, 0, (IF(2-$F$31=1,(VLOOKUP(1,Tablas!$A$1121:$G$1123,3,TRUE)), (IF(2-$F$31=2, (VLOOKUP(2,Tablas!$A$1121:$G$1123,3,TRUE)), 0)))))), (IF($F$29=1,(IF(1-$F$31=0, 0, (IF(1-$F$31=1,(VLOOKUP(1,Tablas!$A$1121:$G$1123,3,TRUE)),0)))),0)))))))))))))), (IF($F$29=0, 0, (IF($F$31>$F$29, (VLOOKUP($F$29,Tablas!$A$1121:$G$1123,3,TRUE)), (IF($F$29=4,(IF(4-$F$31=0, 0, (IF(4-$F$31=1, (VLOOKUP(1,Tablas!$A$1121:$G$1123,3,TRUE)), (IF(4-$F$31=2, (VLOOKUP(2,Tablas!$A$1121:$G$1123,3,TRUE)), (IF(4-$F$31=3, (VLOOKUP(3,Tablas!$A$1121:$G$1123,3,TRUE)), (IF(4-$F$31=4, (VLOOKUP(3,Tablas!$A$1121:$G$1123,3,TRUE)), 0)))))))))), (IF($F$29=5,(IF(5-$F$31=0, (VLOOKUP(1,Tablas!$A$1121:$G$1123,3,TRUE)), (IF(5-$F$31=1, (VLOOKUP(1,Tablas!$A$1121:$G$1123,3,TRUE)), (IF(5-$F$31=2, (VLOOKUP(2,Tablas!$A$1121:$G$1123,3,TRUE)), (IF(5-$F$31=3, (VLOOKUP(3,Tablas!$A$1121:$G$1123,3,TRUE)), (IF(5-$F$31=4, (VLOOKUP(3,Tablas!$A$1121:$G$1123,3,TRUE)), (VLOOKUP(3,Tablas!$A$1121:$G$1123,3,TRUE)))))))))))), (IF($F$29=6,(IF(6-$F$31=0, (VLOOKUP(2,Tablas!$A$1121:$G$1123,3,TRUE)), (IF(6-$F$31=1, (VLOOKUP(2,Tablas!$A$1121:$G$1123,3,TRUE)), (IF(6-$F$31=2, (VLOOKUP(2,Tablas!$A$1121:$G$1123,3,TRUE)), (IF(6-$F$31=3, (VLOOKUP(3,Tablas!$A$1121:$G$1123,3,TRUE)), (IF(6-$F$31=4, (VLOOKUP(3,Tablas!$A$1121:$G$1123,3,TRUE)), (VLOOKUP(3,Tablas!$A$1121:$G$1123,3,TRUE)))))))))))), (IF($F$29>6,(IF(7-$F$31=0, (VLOOKUP(3,Tablas!$A$1121:$G$1123,3,TRUE)), (IF(7-$F$31=1, (VLOOKUP(3,Tablas!$A$1121:$G$1123,3,TRUE)), (IF(7-$F$31=2, (VLOOKUP(3,Tablas!$A$1121:$G$1123,3,TRUE)), (IF(7-$F$31=3, (VLOOKUP(3,Tablas!$A$1121:$G$1123,3,TRUE)), (IF(7-$F$31=4, (VLOOKUP(3,Tablas!$A$1121:$G$1123,3,TRUE)), (VLOOKUP(3,Tablas!$A$1121:$G$1123,3,TRUE)))))))))))), (IF($F$29=3,(IF(3-$F$31=0,0, (IF(3-$F$31=1,(VLOOKUP(1,Tablas!$A$1121:$G$1123,3,TRUE)), (IF(3-$F$31=2, (VLOOKUP(2,Tablas!$A$1121:$G$1123,3,TRUE)), (VLOOKUP(3,Tablas!$A$1121:$G$1123,3,TRUE)))))))), (IF($F$29=2,(IF(2-$F$31=0, 0, (IF(2-$F$31=1,(VLOOKUP(1,Tablas!$A$1121:$G$1123,3,TRUE)), (IF(2-$F$31=2, (VLOOKUP(2,Tablas!$A$1121:$G$1123,3,TRUE)), 0)))))), (IF($F$29=1,(IF(1-$F$31=0, 0, (IF(1-$F$31=1,(VLOOKUP(1,Tablas!$A$1121:$G$1123,3,TRUE)),0)))),0))))))))))))))))))) -> 0 | H62: =IF($F$27=1, (IF($F$29=0, 0, (IF($F$31>$F$29, (VLOOKUP($F$29,Tablas!$A$1121:$G$1123,4,TRUE)), (IF($F$29>4,(IF($F$31=0, (VLOOKUP(3,Tablas!$A$1121:$G$1123,4,TRUE)), (IF($F$31=1, (VLOOKUP(3,Tablas!$A$1121:$G$1123,4,TRUE)), (IF($F$31=2, (VLOOKUP(3,Tablas!$A$1121:$G$1123,4,TRUE)), (VLOOKUP(3,Tablas!$A$1121:$G$1123,4,TRUE)))))))), (IF($F$29=4,(IF(4-$F$31=0,(VLOOKUP(2,Tablas!$A$1121:$G$1123,4,TRUE)), (IF(4-$F$31=1,(VLOOKUP(2,Tablas!$A$1121:$G$1123,4,TRUE)), (IF(4-$F$31=2, (VLOOKUP(2,Tablas!$A$1121:$G$1123,4,TRUE)), (VLOOKUP(3,Tablas!$A$1121:$G$1123,4,TRUE)))))))), (IF($F$29=3,(IF(3-$F$31=0,(VLOOKUP(1,Tablas!$A$1121:$G$1123,4,TRUE)), (IF(3-$F$31=1,(VLOOKUP(1,Tablas!$A$1121:$G$1123,4,TRUE)), (IF(3-$F$31=2, (VLOOKUP(2,Tablas!$A$1121:$G$1123,4,TRUE)), (VLOOKUP(3,Tablas!$A$1121:$G$1123,4,TRUE)))))))), (IF($F$29=2,(IF(2-$F$31=0, 0, (IF(2-$F$31=1,(VLOOKUP(1,Tablas!$A$1121:$G$1123,4,TRUE)), (IF(2-$F$31=2, (VLOOKUP(2,Tablas!$A$1121:$G$1123,4,TRUE)), 0)))))), (IF($F$29=1,(IF(1-$F$31=0, 0, (IF(1-$F$31=1,(VLOOKUP(1,Tablas!$A$1121:$G$1123,4,TRUE)),0)))),0)))))))))))))), (IF($F$29=0, 0, (IF($F$31>$F$29, (VLOOKUP($F$29,Tablas!$A$1121:$G$1123,4,TRUE)), (IF($F$29=4,(IF(4-$F$31=0, 0, (IF(4-$F$31=1, (VLOOKUP(1,Tablas!$A$1121:$G$1123,4,TRUE)), (IF(4-$F$31=2, (VLOOKUP(2,Tablas!$A$1121:$G$1123,4,TRUE)), (IF(4-$F$31=3, (VLOOKUP(3,Tablas!$A$1121:$G$1123,4,TRUE)), (IF(4-$F$31=4, (VLOOKUP(3,Tablas!$A$1121:$G$1123,4,TRUE)), 0)))))))))), (IF($F$29=5,(IF(5-$F$31=0, (VLOOKUP(1,Tablas!$A$1121:$G$1123,4,TRUE)), (IF(5-$F$31=1, (VLOOKUP(1,Tablas!$A$1121:$G$1123,4,TRUE)), (IF(5-$F$31=2, (VLOOKUP(2,Tablas!$A$1121:$G$1123,4,TRUE)), (IF(5-$F$31=3, (VLOOKUP(3,Tablas!$A$1121:$G$1123,4,TRUE)), (IF(5-$F$31=4, (VLOOKUP(3,Tablas!$A$1121:$G$1123,4,TRUE)), (VLOOKUP(3,Tablas!$A$1121:$G$1123,4,TRUE)))))))))))), (IF($F$29=6,(IF(6-$F$31=0, (VLOOKUP(2,Tablas!$A$1121:$G$1123,4,TRUE)), (IF(6-$F$31=1, (VLOOKUP(2,Tablas!$A$1121:$G$1123,4,TRUE)), (IF(6-$F$31=2, (VLOOKUP(2,Tablas!$A$1121:$G$1123,4,TRUE)), (IF(6-$F$31=3, (VLOOKUP(3,Tablas!$A$1121:$G$1123,4,TRUE)), (IF(6-$F$31=4, (VLOOKUP(3,Tablas!$A$1121:$G$1123,4,TRUE)), (VLOOKUP(3,Tablas!$A$1121:$G$1123,4,TRUE)))))))))))), (IF($F$29>6,(IF(7-$F$31=0, (VLOOKUP(3,Tablas!$A$1121:$G$1123,4,TRUE)), (IF(7-$F$31=1, (VLOOKUP(3,Tablas!$A$1121:$G$1123,4,TRUE)), (IF(7-$F$31=2, (VLOOKUP(3,Tablas!$A$1121:$G$1123,4,TRUE)), (IF(7-$F$31=3, (VLOOKUP(3,Tablas!$A$1121:$G$1123,4,TRUE)), (IF(7-$F$31=4, (VLOOKUP(3,Tablas!$A$1121:$G$1123,4,TRUE)), (VLOOKUP(3,Tablas!$A$1121:$G$1123,4,TRUE)))))))))))), (IF($F$29=3,(IF(3-$F$31=0,0, (IF(3-$F$31=1,(VLOOKUP(1,Tablas!$A$1121:$G$1123,4,TRUE)), (IF(3-$F$31=2, (VLOOKUP(2,Tablas!$A$1121:$G$1123,4,TRUE)), (VLOOKUP(3,Tablas!$A$1121:$G$1123,4,TRUE)))))))), (IF($F$29=2,(IF(2-$F$31=0, 0, (IF(2-$F$31=1,(VLOOKUP(1,Tablas!$A$1121:$G$1123,4,TRUE)), (IF(2-$F$31=2, (VLOOKUP(2,Tablas!$A$1121:$G$1123,4,TRUE)), 0)))))), (IF($F$29=1,(IF(1-$F$31=0, 0, (IF(1-$F$31=1,(VLOOKUP(1,Tablas!$A$1121:$G$1123,4,TRUE)),0)))),0))))))))))))))))))) -> 0
E63: Total de Prima neta | G63: =SUM(G60:G62) -> 5367.25 | H63: =SUM(H60:H62) -> 3463
E64: Tarifa administrativa anual | G64: 75 | H64: 75
E65: IVA (12%) | G65: =(G63+G64)*0% -> 0 | H65: =(H63+H64)*0% -> 0
E66: TOTAL de primera cuota | G66: =SUM(G63:G65) -> 5442.25 | H66: =SUM(H63:H65) -> 3538
E67: Costo de tarifa trimestral 2 a 4 | G67: =G63+G65 -> 5367.25 | H67: =H63+H65 -> 3463
E68: TOTAL ANUAL | G68: =G66+(G67*3) -> 21544 | H68: =H66+(H67*3) -> 13927
E69: Ahorros en tarifas de prima para niños | G69: =IF($F$27=1,IF($F$29=0,0,IF($F$31=0,0,IF($F$31=1,(VLOOKUP(1,Tablas!$A$1121:$G$1123,3,TRUE)),(VLOOKUP(2,Tablas!$A$1121:$G$1123,3,TRUE))))), IF($F$29=0,0,IF($F$31=0,0,IF($F$31=1,(VLOOKUP(1,Tablas!$A$1121:$G$1123,3,TRUE)),IF($F$31=2,(VLOOKUP(2,Tablas!$A$1121:$G$1123,3,TRUE)), (VLOOKUP(3,Tablas!$A$1121:$G$1123,3,TRUE))))))) -> 0 | H69: =IF($F$27=1,IF($F$29=0,0,IF($F$31=0,0,IF($F$31=1,(VLOOKUP(1,Tablas!$A$1121:$G$1123,4,TRUE)),(VLOOKUP(2,Tablas!$A$1121:$G$1123,4,TRUE))))), IF($F$29=0,0,IF($F$31=0,0,IF($F$31=1,(VLOOKUP(1,Tablas!$A$1121:$G$1123,4,TRUE)),IF($F$31=2,(VLOOKUP(2,Tablas!$A$1121:$G$1123,4,TRUE)), (VLOOKUP(3,Tablas!$A$1121:$G$1123,4,TRUE))))))) -> 0
E71: Tarifas mensuales
E72: Prima para Asegurado Titular | G72: =VLOOKUP($I$27,Tablas!$A$979:$G$1045,3,TRUE) -> 2003.773333 | H72: =VLOOKUP($I$27,Tablas!$A$979:$G$1045,4,TRUE) -> 1292.853333
E73: Prima para conyuge | G73: =IF($F$27=1,0,(VLOOKUP($I$29,Tablas!$A$979:$G$1045,3,TRUE))) -> 0 | H73: =IF($F$27=1,0,(VLOOKUP($I$29,Tablas!$A$979:$G$1045,4,TRUE))) -> 0
E74: Prima para hijo (s) | G74: =IF($F$27=1, (IF($F$29=0, 0, (IF($F$31>$F$29, (VLOOKUP($F$29,Tablas!$A$1046:$G$1048,3,TRUE)), (IF($F$29>4,(IF($F$31=0, (VLOOKUP(3,Tablas!$A$1046:$G$1048,3,TRUE)), (IF($F$31=1, (VLOOKUP(3,Tablas!$A$1046:$G$1048,3,TRUE)), (IF($F$31=2, (VLOOKUP(3,Tablas!$A$1046:$G$1048,3,TRUE)), (VLOOKUP(3,Tablas!$A$1046:$G$1048,3,TRUE)))))))), (IF($F$29=4,(IF(4-$F$31=0,(VLOOKUP(2,Tablas!$A$1046:$G$1048,3,TRUE)), (IF(4-$F$31=1,(VLOOKUP(2,Tablas!$A$1046:$G$1048,3,TRUE)), (IF(4-$F$31=2, (VLOOKUP(2,Tablas!$A$1046:$G$1048,3,TRUE)), (VLOOKUP(3,Tablas!$A$1046:$G$1048,3,TRUE)))))))), (IF($F$29=3,(IF(3-$F$31=0,(VLOOKUP(1,Tablas!$A$1046:$G$1048,3,TRUE)), (IF(3-$F$31=1,(VLOOKUP(1,Tablas!$A$1046:$G$1048,3,TRUE)), (IF(3-$F$31=2, (VLOOKUP(2,Tablas!$A$1046:$G$1048,3,TRUE)), (VLOOKUP(3,Tablas!$A$1046:$G$1048,3,TRUE)))))))), (IF($F$29=2,(IF(2-$F$31=0, 0, (IF(2-$F$31=1,(VLOOKUP(1,Tablas!$A$1046:$G$1048,3,TRUE)), (IF(2-$F$31=2, (VLOOKUP(2,Tablas!$A$1046:$G$1048,3,TRUE)), 0)))))), (IF($F$29=1,(IF(1-$F$31=0, 0, (IF(1-$F$31=1,(VLOOKUP(1,Tablas!$A$1046:$G$1048,3,TRUE)),0)))),0)))))))))))))), (IF($F$29=0, 0, (IF($F$31>$F$29, (VLOOKUP($F$29,Tablas!$A$1046:$G$1048,3,TRUE)), (IF($F$29=4,(IF(4-$F$31=0, 0, (IF(4-$F$31=1, (VLOOKUP(1,Tablas!$A$1046:$G$1048,3,TRUE)), (IF(4-$F$31=2, (VLOOKUP(2,Tablas!$A$1046:$G$1048,3,TRUE)), (IF(4-$F$31=3, (VLOOKUP(3,Tablas!$A$1046:$G$1048,3,TRUE)), (IF(4-$F$31=4, (VLOOKUP(3,Tablas!$A$1046:$G$1048,3,TRUE)), 0)))))))))), (IF($F$29=5,(IF(5-$F$31=0, (VLOOKUP(1,Tablas!$A$1046:$G$1048,3,TRUE)), (IF(5-$F$31=1, (VLOOKUP(1,Tablas!$A$1046:$G$1048,3,TRUE)), (IF(5-$F$31=2, (VLOOKUP(2,Tablas!$A$1046:$G$1048,3,TRUE)), (IF(5-$F$31=3, (VLOOKUP(3,Tablas!$A$1046:$G$1048,3,TRUE)), (IF(5-$F$31=4, (VLOOKUP(3,Tablas!$A$1046:$G$1048,3,TRUE)), (VLOOKUP(3,Tablas!$A$1046:$G$1048,3,TRUE)))))))))))), (IF($F$29=6,(IF(6-$F$31=0, (VLOOKUP(2,Tablas!$A$1046:$G$1048,3,TRUE)), (IF(6-$F$31=1, (VLOOKUP(2,Tablas!$A$1046:$G$1048,3,TRUE)), (IF(6-$F$31=2, (VLOOKUP(2,Tablas!$A$1046:$G$1048,3,TRUE)), (IF(6-$F$31=3, (VLOOKUP(3,Tablas!$A$1046:$G$1048,3,TRUE)), (IF(6-$F$31=4, (VLOOKUP(3,Tablas!$A$1046:$G$1048,3,TRUE)), (VLOOKUP(3,Tablas!$A$1046:$G$1048,3,TRUE)))))))))))), (IF($F$29>6,(IF(7-$F$31=0, (VLOOKUP(3,Tablas!$A$1046:$G$1048,3,TRUE)), (IF(7-$F$31=1, (VLOOKUP(3,Tablas!$A$1046:$G$1048,3,TRUE)), (IF(7-$F$31=2, (VLOOKUP(3,Tablas!$A$1046:$G$1048,3,TRUE)), (IF(7-$F$31=3, (VLOOKUP(3,Tablas!$A$1046:$G$1048,3,TRUE)), (IF(7-$F$31=4, (VLOOKUP(3,Tablas!$A$1046:$G$1048,3,TRUE)), (VLOOKUP(3,Tablas!$A$1046:$G$1048,3,TRUE)))))))))))), (IF($F$29=3,(IF(3-$F$31=0,0, (IF(3-$F$31=1,(VLOOKUP(1,Tablas!$A$1046:$G$1048,3,TRUE)), (IF(3-$F$31=2, (VLOOKUP(2,Tablas!$A$1046:$G$1048,3,TRUE)), (VLOOKUP(3,Tablas!$A$1046:$G$1048,3,TRUE)))))))), (IF($F$29=2,(IF(2-$F$31=0, 0, (IF(2-$F$31=1,(VLOOKUP(1,Tablas!$A$1046:$G$1048,3,TRUE)), (IF(2-$F$31=2, (VLOOKUP(2,Tablas!$A$1046:$G$1048,3,TRUE)), 0)))))), (IF($F$29=1,(IF(1-$F$31=0, 0, (IF(1-$F$31=1,(VLOOKUP(1,Tablas!$A$1046:$G$1048,3,TRUE)),0)))),0))))))))))))))))))) -> 0 | H74: =IF($F$27=1, (IF($F$29=0, 0, (IF($F$31>$F$29, (VLOOKUP($F$29,Tablas!$A$1046:$G$1048,4,TRUE)), (IF($F$29>4,(IF($F$31=0, (VLOOKUP(3,Tablas!$A$1046:$G$1048,4,TRUE)), (IF($F$31=1, (VLOOKUP(3,Tablas!$A$1046:$G$1048,4,TRUE)), (IF($F$31=2, (VLOOKUP(3,Tablas!$A$1046:$G$1048,4,TRUE)), (VLOOKUP(3,Tablas!$A$1046:$G$1048,4,TRUE)))))))), (IF($F$29=4,(IF(4-$F$31=0,(VLOOKUP(2,Tablas!$A$1046:$G$1048,4,TRUE)), (IF(4-$F$31=1,(VLOOKUP(2,Tablas!$A$1046:$G$1048,4,TRUE)), (IF(4-$F$31=2, (VLOOKUP(2,Tablas!$A$1046:$G$1048,4,TRUE)), (VLOOKUP(3,Tablas!$A$1046:$G$1048,4,TRUE)))))))), (IF($F$29=3,(IF(3-$F$31=0,(VLOOKUP(1,Tablas!$A$1046:$G$1048,4,TRUE)), (IF(3-$F$31=1,(VLOOKUP(1,Tablas!$A$1046:$G$1048,4,TRUE)), (IF(3-$F$31=2, (VLOOKUP(2,Tablas!$A$1046:$G$1048,4,TRUE)), (VLOOKUP(3,Tablas!$A$1046:$G$1048,4,TRUE)))))))), (IF($F$29=2,(IF(2-$F$31=0, 0, (IF(2-$F$31=1,(VLOOKUP(1,Tablas!$A$1046:$G$1048,4,TRUE)), (IF(2-$F$31=2, (VLOOKUP(2,Tablas!$A$1046:$G$1048,4,TRUE)), 0)))))), (IF($F$29=1,(IF(1-$F$31=0, 0, (IF(1-$F$31=1,(VLOOKUP(1,Tablas!$A$1046:$G$1048,4,TRUE)),0)))),0)))))))))))))), (IF($F$29=0, 0, (IF($F$31>$F$29, (VLOOKUP($F$29,Tablas!$A$1046:$G$1048,4,TRUE)), (IF($F$29=4,(IF(4-$F$31=0, 0, (IF(4-$F$31=1, (VLOOKUP(1,Tablas!$A$1046:$G$1048,4,TRUE)), (IF(4-$F$31=2, (VLOOKUP(2,Tablas!$A$1046:$G$1048,4,TRUE)), (IF(4-$F$31=3, (VLOOKUP(3,Tablas!$A$1046:$G$1048,4,TRUE)), (IF(4-$F$31=4, (VLOOKUP(3,Tablas!$A$1046:$G$1048,4,TRUE)), 0)))))))))), (IF($F$29=5,(IF(5-$F$31=0, (VLOOKUP(1,Tablas!$A$1046:$G$1048,4,TRUE)), (IF(5-$F$31=1, (VLOOKUP(1,Tablas!$A$1046:$G$1048,4,TRUE)), (IF(5-$F$31=2, (VLOOKUP(2,Tablas!$A$1046:$G$1048,4,TRUE)), (IF(5-$F$31=3, (VLOOKUP(3,Tablas!$A$1046:$G$1048,4,TRUE)), (IF(5-$F$31=4, (VLOOKUP(3,Tablas!$A$1046:$G$1048,4,TRUE)), (VLOOKUP(3,Tablas!$A$1046:$G$1048,4,TRUE)))))))))))), (IF($F$29=6,(IF(6-$F$31=0, (VLOOKUP(2,Tablas!$A$1046:$G$1048,4,TRUE)), (IF(6-$F$31=1, (VLOOKUP(2,Tablas!$A$1046:$G$1048,4,TRUE)), (IF(6-$F$31=2, (VLOOKUP(2,Tablas!$A$1046:$G$1048,4,TRUE)), (IF(6-$F$31=3, (VLOOKUP(3,Tablas!$A$1046:$G$1048,4,TRUE)), (IF(6-$F$31=4, (VLOOKUP(3,Tablas!$A$1046:$G$1048,4,TRUE)), (VLOOKUP(3,Tablas!$A$1046:$G$1048,4,TRUE)))))))))))), (IF($F$29>6,(IF(7-$F$31=0, (VLOOKUP(3,Tablas!$A$1046:$G$1048,4,TRUE)), (IF(7-$F$31=1, (VLOOKUP(3,Tablas!$A$1046:$G$1048,4,TRUE)), (IF(7-$F$31=2, (VLOOKUP(3,Tablas!$A$1046:$G$1048,4,TRUE)), (IF(7-$F$31=3, (VLOOKUP(3,Tablas!$A$1046:$G$1048,4,TRUE)), (IF(7-$F$31=4, (VLOOKUP(3,Tablas!$A$1046:$G$1048,4,TRUE)), (VLOOKUP(3,Tablas!$A$1046:$G$1048,4,TRUE)))))))))))), (IF($F$29=3,(IF(3-$F$31=0,0, (IF(3-$F$31=1,(VLOOKUP(1,Tablas!$A$1046:$G$1048,4,TRUE)), (IF(3-$F$31=2, (VLOOKUP(2,Tablas!$A$1046:$G$1048,4,TRUE)), (VLOOKUP(3,Tablas!$A$1046:$G$1048,4,TRUE)))))))), (IF($F$29=2,(IF(2-$F$31=0, 0, (IF(2-$F$31=1,(VLOOKUP(1,Tablas!$A$1046:$G$1048,4,TRUE)), (IF(2-$F$31=2, (VLOOKUP(2,Tablas!$A$1046:$G$1048,4,TRUE)), 0)))))), (IF($F$29=1,(IF(1-$F$31=0, 0, (IF(1-$F$31=1,(VLOOKUP(1,Tablas!$A$1046:$G$1048,4,TRUE)),0)))),0))))))))))))))))))) -> 0
E75: Total de Prima neta | G75: =SUM(G72:G74) -> 2003.773333 | H75: =SUM(H72:H74) -> 1292.853333
E76: Tarifa administrativa anual | G76: 75 | H76: 75
E77: IVA (12%) | G77: =(G75+G76)*0% -> 0 | H77: =(H75+H76)*0% -> 0
E78: TOTAL de primera cuota | G78: =SUM(G75:G77) -> 2078.773333 | H78: =SUM(H75:H77) -> 1367.853333
E79: Costo de tarifa mensual 2 a 12 | G79: =G75+G77 -> 2003.773333 | H79: =H75+H77 -> 1292.853333
E80: TOTAL ANUAL | G80: =G78+(G79*11) -> 24120.28 | H80: =H78+(H79*11) -> 15589.24
E81: Ahorros en tarifas de prima para niños | G81: =IF($F$27=1,IF($F$29=0,0,IF($F$31=0,0,IF($F$31=1,(VLOOKUP(1,Tablas!$A$1046:$G$1048,3,TRUE)),(VLOOKUP(2,Tablas!$A$1046:$G$1048,3,TRUE))))), IF($F$29=0,0,IF($F$31=0,0,IF($F$31=1,(VLOOKUP(1,Tablas!$A$1046:$G$1048,3,TRUE)),IF($F$31=2,(VLOOKUP(2,Tablas!$A$1046:$G$1048,3,TRUE)), (VLOOKUP(3,Tablas!$A$1046:$G$1048,3,TRUE))))))) -> 0 | H81: =IF($F$27=1,IF($F$29=0,0,IF($F$31=0,0,IF($F$31=1,(VLOOKUP(1,Tablas!$A$1046:$G$1048,4,TRUE)),(VLOOKUP(2,Tablas!$A$1046:$G$1048,4,TRUE))))), IF($F$29=0,0,IF($F$31=0,0,IF($F$31=1,(VLOOKUP(1,Tablas!$A$1046:$G$1048,4,TRUE)),IF($F$31=2,(VLOOKUP(2,Tablas!$A$1046:$G$1048,4,TRUE)), (VLOOKUP(3,Tablas!$A$1046:$G$1048,4,TRUE))))))) -> 0
E83: Tarifas en US $ - Efectivas a partir del 1ro de enero de 2021
E84: Este presupuesto solamente tiene carácter informativo y en ningún momento expresa compromiso legal para suministrarle cobertura de seguro. La emisión de una póliza de seguro Bupa está sujeta a todas las evaluaciones de riesgo por parte de Bupa y a la recepción de todos los pagos de prima requeridos.

Sheet Global Elite
A34: GLOBAL ELITE HEALTH PLAN | D34: Nombre del Asegurado Titular | F34: =+'INGRESO DE DATOS'!$D$21 -> NOMBRE COMPLETO
D36: Número de adultos en la póliza | F36: =+'INGRESO DE DATOS'!$D$23 -> 1 | H36: Edad del Asegurado Titular | I36: =+'INGRESO DE DATOS'!$D$25 -> 35
D38: Número de niños en la póliza | F38: =+'INGRESO DE DATOS'!$H$23 -> 0 | H38: Edad del/la conyuge | I38: =+'INGRESO DE DATOS'!$H$25 -> 46
D40: Número de niños menores de 10 años | F40: =+'INGRESO DE DATOS'!$D$50 -> 1 | G40: Fecha de la cotización: | H40: =NOW() -> 2021-11-08T11:55:45.700
H41: FALSE
E42: DEDUCTIBLES | G42: PLAN 1 | H42: PLAN 2 | I42: PLAN 3 | J42: PLAN 4 | K42: PLAN 5
E43: En el país de residencia | G43: 250 | H43: 2000 | I43: 3500 | J43: 5000 | K43: 10000
E44: Fuera del país de residencia | G44: 5000 | H44: 2000 | I44: 3500 | J44: 5000 | K44: 10000
E46: Tarifas anuales
E47: Prima para Asegurado Titular | G47: =(VLOOKUP($I$36,Tablas!$A$6:$G$72,3,TRUE)) -> 9116 | H47: =(VLOOKUP($I$36,Tablas!$A$6:$G$72,4,TRUE)) -> 7990 | I47: =(VLOOKUP($I$36,Tablas!$A$6:$G$72,5,TRUE)) -> 6591 | J47: =(VLOOKUP($I$36,Tablas!$A$6:$G$72,6,TRUE)) -> 5714 | K47: =(VLOOKUP($I$36,Tablas!$A$6:$G$72,7,TRUE)) -> 4432
E48: Prima para conyuge | G48: =(IF($F$36=1,0,(VLOOKUP($I$38,Tablas!$A$6:$G$72,3,TRUE)))) -> 0 | H48: =(IF($F$36=1,0,(VLOOKUP($I$38,Tablas!$A$6:$G$72,4,TRUE)))) -> 0 | I48: =(IF($F$36=1,0,(VLOOKUP($I$38,Tablas!$A$6:$G$72,5,TRUE)))) -> 0 | J48: =(IF($F$36=1,0,(VLOOKUP($I$38,Tablas!$A$6:$G$72,6,TRUE)))) -> 0 | K48: =(IF($F$36=1,0,(VLOOKUP($I$38,Tablas!$A$6:$G$72,7,TRUE)))) -> 0
E49: Prima para hijo (s) | G49: =(IF($F$36=1, (IF($F$38=0, 0, (IF($F$40>$F$38, (VLOOKUP($F$38,Tablas!$A$73:$G$75,3,TRUE)), (IF($F$38>4,(IF($F$40=0, (VLOOKUP(3,Tablas!$A$73:$G$75,3,TRUE)), (IF($F$40=1, (VLOOKUP(3,Tablas!$A$73:$G$75,3,TRUE)), (IF($F$40=2, (VLOOKUP(3,Tablas!$A$73:$G$75,3,TRUE)), (VLOOKUP(3,Tablas!$A$73:$G$75,3,TRUE)))))))), (IF($F$38=4,(IF(4-$F$40=0,(VLOOKUP(2,Tablas!$A$73:$G$75,3,TRUE)), (IF(4-$F$40=1,(VLOOKUP(2,Tablas!$A$73:$G$75,3,TRUE)), (IF(4-$F$40=2, (VLOOKUP(2,Tablas!$A$73:$G$75,3,TRUE)), (VLOOKUP(3,Tablas!$A$73:$G$75,3,TRUE)))))))), (IF($F$38=3,(IF(3-$F$40=0,(VLOOKUP(1,Tablas!$A$73:$G$75,3,TRUE)), (IF(3-$F$40=1,(VLOOKUP(1,Tablas!$A$73:$G$75,3,TRUE)), (IF(3-$F$40=2, (VLOOKUP(2,Tablas!$A$73:$G$75,3,TRUE)), (VLOOKUP(3,Tablas!$A$73:$G$75,3,TRUE)))))))), (IF($F$38=2,(IF(2-$F$40=0, 0, (IF(2-$F$40=1,(VLOOKUP(1,Tablas!$A$73:$G$75,3,TRUE)), (IF(2-$F$40=2, (VLOOKUP(2,Tablas!$A$73:$G$75,3,TRUE)), 0)))))), (IF($F$38=1,(IF(1-$F$40=0, 0, (IF(1-$F$40=1,(VLOOKUP(1,Tablas!$A$73:$G$75,3,TRUE)),0)))),0)))))))))))))), (IF($F$38=0, 0, (IF($F$40>$F$38, (VLOOKUP($F$38,Tablas!$A$73:$G$75,3,TRUE)), (IF($F$38=4,(IF(4-$F$40=0, 0, (IF(4-$F$40=1, (VLOOKUP(1,Tablas!$A$73:$G$75,3,TRUE)), (IF(4-$F$40=2, (VLOOKUP(2,Tablas!$A$73:$G$75,3,TRUE)), (IF(4-$F$40=3, (VLOOKUP(3,Tablas!$A$73:$G$75,3,TRUE)), (IF(4-$F$40=4, (VLOOKUP(3,Tablas!$A$73:$G$75,3,TRUE)), 0)))))))))), (IF($F$38=5,(IF(5-$F$40=0, (VLOOKUP(1,Tablas!$A$73:$G$75,3,TRUE)), (IF(5-$F$40=1, (VLOOKUP(1,Tablas!$A$73:$G$75,3,TRUE)), (IF(5-$F$40=2, (VLOOKUP(2,Tablas!$A$73:$G$75,3,TRUE)), (IF(5-$F$40=3, (VLOOKUP(3,Tablas!$A$73:$G$75,3,TRUE)), (IF(5-$F$40=4, (VLOOKUP(3,Tablas!$A$73:$G$75,3,TRUE)), (VLOOKUP(3,Tablas!$A$73:$G$75,3,TRUE)))))))))))), (IF($F$38=6,(IF(6-$F$40=0, (VLOOKUP(2,Tablas!$A$73:$G$75,3,TRUE)), (IF(6-$F$40=1, (VLOOKUP(2,Tablas!$A$73:$G$75,3,TRUE)), (IF(6-$F$40=2, (VLOOKUP(2,Tablas!$A$73:$G$75,3,TRUE)), (IF(6-$F$40=3, (VLOOKUP(3,Tablas!$A$73:$G$75,3,TRUE)), (IF(6-$F$40=4, (VLOOKUP(3,Tablas!$A$73:$G$75,3,TRUE)), (VLOOKUP(3,Tablas!$A$73:$G$75,3,TRUE)))))))))))), (IF($F$38>6,(IF(7-$F$40=0, (VLOOKUP(3,Tablas!$A$73:$G$75,3,TRUE)), (IF(7-$F$40=1, (VLOOKUP(3,Tablas!$A$73:$G$75,3,TRUE)), (IF(7-$F$40=2, (VLOOKUP(3,Tablas!$A$73:$G$75,3,TRUE)), (IF(7-$F$40=3, (VLOOKUP(3,Tablas!$A$73:$G$75,3,TRUE)), (IF(7-$F$40=4, (VLOOKUP(3,Tablas!$A$73:$G$75,3,TRUE)), (VLOOKUP(3,Tablas!$A$73:$G$75,3,TRUE)))))))))))), (IF($F$38=3,(IF(3-$F$40=0,0, (IF(3-$F$40=1,(VLOOKUP(1,Tablas!$A$73:$G$75,3,TRUE)), (IF(3-$F$40=2, (VLOOKUP(2,Tablas!$A$73:$G$75,3,TRUE)), (VLOOKUP(3,Tablas!$A$73:$G$75,3,TRUE)))))))), (IF($F$38=2,(IF(2-$F$40=0, 0, (IF(2-$F$40=1,(VLOOKUP(1,Tablas!$A$73:$G$75,3,TRUE)), (IF(2-$F$40=2, (VLOOKUP(2,Tablas!$A$73:$G$75,3,TRUE)), 0)))))), (IF($F$38=1,(IF(1-$F$40=0, 0, (IF(1-$F$40=1,(VLOOKUP(1,Tablas!$A$73:$G$75,3,TRUE)),0)))),0)))))))))))))))))))) -> 0 | H49: =(IF($F$36=1, (IF($F$38=0, 0, (IF($F$40>$F$38, (VLOOKUP($F$38,Tablas!$A$73:$G$75,4,TRUE)), (IF($F$38>4,(IF($F$40=0, (VLOOKUP(3,Tablas!$A$73:$G$75,4,TRUE)), (IF($F$40=1, (VLOOKUP(3,Tablas!$A$73:$G$75,4,TRUE)), (IF($F$40=2, (VLOOKUP(3,Tablas!$A$73:$G$75,4,TRUE)), (VLOOKUP(3,Tablas!$A$73:$G$75,4,TRUE)))))))), (IF($F$38=4,(IF(4-$F$40=0,(VLOOKUP(2,Tablas!$A$73:$G$75,4,TRUE)), (IF(4-$F$40=1,(VLOOKUP(2,Tablas!$A$73:$G$75,4,TRUE)), (IF(4-$F$40=2, (VLOOKUP(2,Tablas!$A$73:$G$75,4,TRUE)), (VLOOKUP(3,Tablas!$A$73:$G$75,4,TRUE)))))))), (IF($F$38=3,(IF(3-$F$40=0,(VLOOKUP(1,Tablas!$A$73:$G$75,4,TRUE)), (IF(3-$F$40=1,(VLOOKUP(1,Tablas!$A$73:$G$75,4,TRUE)), (IF(3-$F$40=2, (VLOOKUP(2,Tablas!$A$73:$G$75,4,TRUE)), (VLOOKUP(3,Tablas!$A$73:$G$75,4,TRUE)))))))), (IF($F$38=2,(IF(2-$F$40=0, 0, (IF(2-$F$40=1,(VLOOKUP(1,Tablas!$A$73:$G$75,4,TRUE)), (IF(2-$F$40=2, (VLOOKUP(2,Tablas!$A$73:$G$75,4,TRUE)), 0)))))), (IF($F$38=1,(IF(1-$F$40=0, 0, (IF(1-$F$40=1,(VLOOKUP(1,Tablas!$A$73:$G$75,4,TRUE)),0)))),0)))))))))))))), (IF($F$38=0, 0, (IF($F$40>$F$38, (VLOOKUP($F$38,Tablas!$A$73:$G$75,4,TRUE)), (IF($F$38=4,(IF(4-$F$40=0, 0, (IF(4-$F$40=1, (VLOOKUP(1,Tablas!$A$73:$G$75,4,TRUE)), (IF(4-$F$40=2, (VLOOKUP(2,Tablas!$A$73:$G$75,4,TRUE)), (IF(4-$F$40=3, (VLOOKUP(3,Tablas!$A$73:$G$75,4,TRUE)), (IF(4-$F$40=4, (VLOOKUP(3,Tablas!$A$73:$G$75,4,TRUE)), 0)))))))))), (IF($F$38=5,(IF(5-$F$40=0, (VLOOKUP(1,Tablas!$A$73:$G$75,4,TRUE)), (IF(5-$F$40=1, (VLOOKUP(1,Tablas!$A$73:$G$75,4,TRUE)), (IF(5-$F$40=2, (VLOOKUP(2,Tablas!$A$73:$G$75,4,TRUE)), (IF(5-$F$40=3, (VLOOKUP(3,Tablas!$A$73:$G$75,4,TRUE)), (IF(5-$F$40=4, (VLOOKUP(3,Tablas!$A$73:$G$75,4,TRUE)), (VLOOKUP(3,Tablas!$A$73:$G$75,4,TRUE)))))))))))), (IF($F$38=6,(IF(6-$F$40=0, (VLOOKUP(2,Tablas!$A$73:$G$75,4,TRUE)), (IF(6-$F$40=1, (VLOOKUP(2,Tablas!$A$73:$G$75,4,TRUE)), (IF(6-$F$40=2, (VLOOKUP(2,Tablas!$A$73:$G$75,4,TRUE)), (IF(6-$F$40=3, (VLOOKUP(3,Tablas!$A$73:$G$75,4,TRUE)), (IF(6-$F$40=4, (VLOOKUP(3,Tablas!$A$73:$G$75,4,TRUE)), (VLOOKUP(3,Tablas!$A$73:$G$75,4,TRUE)))))))))))), (IF($F$38>6,(IF(7-$F$40=0, (VLOOKUP(3,Tablas!$A$73:$G$75,4,TRUE)), (IF(7-$F$40=1, (VLOOKUP(3,Tablas!$A$73:$G$75,4,TRUE)), (IF(7-$F$40=2, (VLOOKUP(3,Tablas!$A$73:$G$75,4,TRUE)), (IF(7-$F$40=3, (VLOOKUP(3,Tablas!$A$73:$G$75,4,TRUE)), (IF(7-$F$40=4, (VLOOKUP(3,Tablas!$A$73:$G$75,4,TRUE)), (VLOOKUP(3,Tablas!$A$73:$G$75,4,TRUE)))))))))))), (IF($F$38=3,(IF(3-$F$40=0,0, (IF(3-$F$40=1,(VLOOKUP(1,Tablas!$A$73:$G$75,4,TRUE)), (IF(3-$F$40=2, (VLOOKUP(2,Tablas!$A$73:$G$75,4,TRUE)), (VLOOKUP(3,Tablas!$A$73:$G$75,4,TRUE)))))))), (IF($F$38=2,(IF(2-$F$40=0, 0, (IF(2-$F$40=1,(VLOOKUP(1,Tablas!$A$73:$G$75,4,TRUE)), (IF(2-$F$40=2, (VLOOKUP(2,Tablas!$A$73:$G$75,4,TRUE)), 0)))))), (IF($F$38=1,(IF(1-$F$40=0, 0, (IF(1-$F$40=1,(VLOOKUP(1,Tablas!$A$73:$G$75,4,TRUE)),0)))),0)))))))))))))))))))) -> 0 | I49: =(IF($F$36=1, (IF($F$38=0, 0, (IF($F$40>$F$38, (VLOOKUP($F$38,Tablas!$A$73:$G$75,5,TRUE)), (IF($F$38>4,(IF($F$40=0, (VLOOKUP(3,Tablas!$A$73:$G$75,5,TRUE)), (IF($F$40=1, (VLOOKUP(3,Tablas!$A$73:$G$75,5,TRUE)), (IF($F$40=2, (VLOOKUP(3,Tablas!$A$73:$G$75,5,TRUE)), (VLOOKUP(3,Tablas!$A$73:$G$75,5,TRUE)))))))), (IF($F$38=4,(IF(4-$F$40=0,(VLOOKUP(2,Tablas!$A$73:$G$75,5,TRUE)), (IF(4-$F$40=1,(VLOOKUP(2,Tablas!$A$73:$G$75,5,TRUE)), (IF(4-$F$40=2, (VLOOKUP(2,Tablas!$A$73:$G$75,5,TRUE)), (VLOOKUP(3,Tablas!$A$73:$G$75,5,TRUE)))))))), (IF($F$38=3,(IF(3-$F$40=0,(VLOOKUP(1,Tablas!$A$73:$G$75,5,TRUE)), (IF(3-$F$40=1,(VLOOKUP(1,Tablas!$A$73:$G$75,5,TRUE)), (IF(3-$F$40=2, (VLOOKUP(2,Tablas!$A$73:$G$75,5,TRUE)), (VLOOKUP(3,Tablas!$A$73:$G$75,5,TRUE)))))))), (IF($F$38=2,(IF(2-$F$40=0, 0, (IF(2-$F$40=1,(VLOOKUP(1,Tablas!$A$73:$G$75,5,TRUE)), (IF(2-$F$40=2, (VLOOKUP(2,Tablas!$A$73:$G$75,5,TRUE)), 0)))))), (IF($F$38=1,(IF(1-$F$40=0, 0, (IF(1-$F$40=1,(VLOOKUP(1,Tablas!$A$73:$G$75,5,TRUE)),0)))),0)))))))))))))), (IF($F$38=0, 0, (IF($F$40>$F$38, (VLOOKUP($F$38,Tablas!$A$73:$G$75,5,TRUE)), (IF($F$38=4,(IF(4-$F$40=0, 0, (IF(4-$F$40=1, (VLOOKUP(1,Tablas!$A$73:$G$75,5,TRUE)), (IF(4-$F$40=2, (VLOOKUP(2,Tablas!$A$73:$G$75,5,TRUE)), (IF(4-$F$40=3, (VLOOKUP(3,Tablas!$A$73:$G$75,5,TRUE)), (IF(4-$F$40=4, (VLOOKUP(3,Tablas!$A$73:$G$75,5,TRUE)), 0)))))))))), (IF($F$38=5,(IF(5-$F$40=0, (VLOOKUP(1,Tablas!$A$73:$G$75,5,TRUE)), (IF(5-$F$40=1, (VLOOKUP(1,Tablas!$A$73:$G$75,5,TRUE)), (IF(5-$F$40=2, (VLOOKUP(2,Tablas!$A$73:$G$75,5,TRUE)), (IF(5-$F$40=3, (VLOOKUP(3,Tablas!$A$73:$G$75,5,TRUE)), (IF(5-$F$40=4, (VLOOKUP(3,Tablas!$A$73:$G$75,5,TRUE)), (VLOOKUP(3,Tablas!$A$73:$G$75,5,TRUE)))))))))))), (IF($F$38=6,(IF(6-$F$40=0, (VLOOKUP(2,Tablas!$A$73:$G$75,5,TRUE)), (IF(6-$F$40=1, (VLOOKUP(2,Tablas!$A$73:$G$75,5,TRUE)), (IF(6-$F$40=2, (VLOOKUP(2,Tablas!$A$73:$G$75,5,TRUE)), (IF(6-$F$40=3, (VLOOKUP(3,Tablas!$A$73:$G$75,5,TRUE)), (IF(6-$F$40=4, (VLOOKUP(3,Tablas!$A$73:$G$75,5,TRUE)), (VLOOKUP(3,Tablas!$A$73:$G$75,5,TRUE)))))))))))), (IF($F$38>6,(IF(7-$F$40=0, (VLOOKUP(3,Tablas!$A$73:$G$75,5,TRUE)), (IF(7-$F$40=1, (VLOOKUP(3,Tablas!$A$73:$G$75,5,TRUE)), (IF(7-$F$40=2, (VLOOKUP(3,Tablas!$A$73:$G$75,5,TRUE)), (IF(7-$F$40=3, (VLOOKUP(3,Tablas!$A$73:$G$75,5,TRUE)), (IF(7-$F$40=4, (VLOOKUP(3,Tablas!$A$73:$G$75,5,TRUE)), (VLOOKUP(3,Tablas!$A$73:$G$75,5,TRUE)))))))))))), (IF($F$38=3,(IF(3-$F$40=0,0, (IF(3-$F$40=1,(VLOOKUP(1,Tablas!$A$73:$G$75,5,TRUE)), (IF(3-$F$40=2, (VLOOKUP(2,Tablas!$A$73:$G$75,5,TRUE)), (VLOOKUP(3,Tablas!$A$73:$G$75,5,TRUE)))))))), (IF($F$38=2,(IF(2-$F$40=0, 0, (IF(2-$F$40=1,(VLOOKUP(1,Tablas!$A$73:$G$75,5,TRUE)), (IF(2-$F$40=2, (VLOOKUP(2,Tablas!$A$73:$G$75,5,TRUE)), 0)))))), (IF($F$38=1,(IF(1-$F$40=0, 0, (IF(1-$F$40=1,(VLOOKUP(1,Tablas!$A$73:$G$75,5,TRUE)),0)))),0)))))))))))))))))))) -> 0 | J49: =(IF($F$36=1, (IF($F$38=0, 0, (IF($F$40>$F$38, (VLOOKUP($F$38,Tablas!$A$73:$G$75,6,TRUE)), (IF($F$38>4,(IF($F$40=0, (VLOOKUP(3,Tablas!$A$73:$G$75,6,TRUE)), (IF($F$40=1, (VLOOKUP(3,Tablas!$A$73:$G$75,6,TRUE)), (IF($F$40=2, (VLOOKUP(3,Tablas!$A$73:$G$75,6,TRUE)), (VLOOKUP(3,Tablas!$A$73:$G$75,6,TRUE)))))))), (IF($F$38=4,(IF(4-$F$40=0,(VLOOKUP(2,Tablas!$A$73:$G$75,6,TRUE)), (IF(4-$F$40=1,(VLOOKUP(2,Tablas!$A$73:$G$75,6,TRUE)), (IF(4-$F$40=2, (VLOOKUP(2,Tablas!$A$73:$G$75,6,TRUE)), (VLOOKUP(3,Tablas!$A$73:$G$75,6,TRUE)))))))), (IF($F$38=3,(IF(3-$F$40=0,(VLOOKUP(1,Tablas!$A$73:$G$75,6,TRUE)), (IF(3-$F$40=1,(VLOOKUP(1,Tablas!$A$73:$G$75,6,TRUE)), (IF(3-$F$40=2, (VLOOKUP(2,Tablas!$A$73:$G$75,6,TRUE)), (VLOOKUP(3,Tablas!$A$73:$G$75,6,TRUE)))))))), (IF($F$38=2,(IF(2-$F$40=0, 0, (IF(2-$F$40=1,(VLOOKUP(1,Tablas!$A$73:$G$75,6,TRUE)), (IF(2-$F$40=2, (VLOOKUP(2,Tablas!$A$73:$G$75,6,TRUE)), 0)))))), (IF($F$38=1,(IF(1-$F$40=0, 0, (IF(1-$F$40=1,(VLOOKUP(1,Tablas!$A$73:$G$75,6,TRUE)),0)))),0)))))))))))))), (IF($F$38=0, 0, (IF($F$40>$F$38, (VLOOKUP($F$38,Tablas!$A$73:$G$75,6,TRUE)), (IF($F$38=4,(IF(4-$F$40=0, 0, (IF(4-$F$40=1, (VLOOKUP(1,Tablas!$A$73:$G$75,6,TRUE)), (IF(4-$F$40=2, (VLOOKUP(2,Tablas!$A$73:$G$75,6,TRUE)), (IF(4-$F$40=3, (VLOOKUP(3,Tablas!$A$73:$G$75,6,TRUE)), (IF(4-$F$40=4, (VLOOKUP(3,Tablas!$A$73:$G$75,6,TRUE)), 0)))))))))), (IF($F$38=5,(IF(5-$F$40=0, (VLOOKUP(1,Tablas!$A$73:$G$75,6,TRUE)), (IF(5-$F$40=1, (VLOOKUP(1,Tablas!$A$73:$G$75,6,TRUE)), (IF(5-$F$40=2, (VLOOKUP(2,Tablas!$A$73:$G$75,6,TRUE)), (IF(5-$F$40=3, (VLOOKUP(3,Tablas!$A$73:$G$75,6,TRUE)), (IF(5-$F$40=4, (VLOOKUP(3,Tablas!$A$73:$G$75,6,TRUE)), (VLOOKUP(3,Tablas!$A$73:$G$75,6,TRUE)))))))))))), (IF($F$38=6,(IF(6-$F$40=0, (VLOOKUP(2,Tablas!$A$73:$G$75,6,TRUE)), (IF(6-$F$40=1, (VLOOKUP(2,Tablas!$A$73:$G$75,6,TRUE)), (IF(6-$F$40=2, (VLOOKUP(2,Tablas!$A$73:$G$75,6,TRUE)), (IF(6-$F$40=3, (VLOOKUP(3,Tablas!$A$73:$G$75,6,TRUE)), (IF(6-$F$40=4, (VLOOKUP(3,Tablas!$A$73:$G$75,6,TRUE)), (VLOOKUP(3,Tablas!$A$73:$G$75,6,TRUE)))))))))))), (IF($F$38>6,(IF(7-$F$40=0, (VLOOKUP(3,Tablas!$A$73:$G$75,6,TRUE)), (IF(7-$F$40=1, (VLOOKUP(3,Tablas!$A$73:$G$75,6,TRUE)), (IF(7-$F$40=2, (VLOOKUP(3,Tablas!$A$73:$G$75,6,TRUE)), (IF(7-$F$40=3, (VLOOKUP(3,Tablas!$A$73:$G$75,6,TRUE)), (IF(7-$F$40=4, (VLOOKUP(3,Tablas!$A$73:$G$75,6,TRUE)), (VLOOKUP(3,Tablas!$A$73:$G$75,6,TRUE)))))))))))), (IF($F$38=3,(IF(3-$F$40=0,0, (IF(3-$F$40=1,(VLOOKUP(1,Tablas!$A$73:$G$75,6,TRUE)), (IF(3-$F$40=2, (VLOOKUP(2,Tablas!$A$73:$G$75,6,TRUE)), (VLOOKUP(3,Tablas!$A$73:$G$75,6,TRUE)))))))), (IF($F$38=2,(IF(2-$F$40=0, 0, (IF(2-$F$40=1,(VLOOKUP(1,Tablas!$A$73:$G$75,6,TRUE)), (IF(2-$F$40=2, (VLOOKUP(2,Tablas!$A$73:$G$75,6,TRUE)), 0)))))), (IF($F$38=1,(IF(1-$F$40=0, 0, (IF(1-$F$40=1,(VLOOKUP(1,Tablas!$A$73:$G$75,6,TRUE)),0)))),0)))))))))))))))))))) -> 0 | K49: =(IF($F$36=1, (IF($F$38=0, 0, (IF($F$40>$F$38, (VLOOKUP($F$38,Tablas!$A$73:$G$75,7,TRUE)), (IF($F$38>4,(IF($F$40=0, (VLOOKUP(3,Tablas!$A$73:$G$75,7,TRUE)), (IF($F$40=1, (VLOOKUP(3,Tablas!$A$73:$G$75,7,TRUE)), (IF($F$40=2, (VLOOKUP(3,Tablas!$A$73:$G$75,7,TRUE)), (VLOOKUP(3,Tablas!$A$73:$G$75,7,TRUE)))))))), (IF($F$38=4,(IF(4-$F$40=0,(VLOOKUP(2,Tablas!$A$73:$G$75,7,TRUE)), (IF(4-$F$40=1,(VLOOKUP(2,Tablas!$A$73:$G$75,7,TRUE)), (IF(4-$F$40=2, (VLOOKUP(2,Tablas!$A$73:$G$75,7,TRUE)), (VLOOKUP(3,Tablas!$A$73:$G$75,7,TRUE)))))))), (IF($F$38=3,(IF(3-$F$40=0,(VLOOKUP(1,Tablas!$A$73:$G$75,7,TRUE)), (IF(3-$F$40=1,(VLOOKUP(1,Tablas!$A$73:$G$75,7,TRUE)), (IF(3-$F$40=2, (VLOOKUP(2,Tablas!$A$73:$G$75,7,TRUE)), (VLOOKUP(3,Tablas!$A$73:$G$75,7,TRUE)))))))), (IF($F$38=2,(IF(2-$F$40=0, 0, (IF(2-$F$40=1,(VLOOKUP(1,Tablas!$A$73:$G$75,7,TRUE)), (IF(2-$F$40=2, (VLOOKUP(2,Tablas!$A$73:$G$75,7,TRUE)), 0)))))), (IF($F$38=1,(IF(1-$F$40=0, 0, (IF(1-$F$40=1,(VLOOKUP(1,Tablas!$A$73:$G$75,7,TRUE)),0)))),0)))))))))))))), (IF($F$38=0, 0, (IF($F$40>$F$38, (VLOOKUP($F$38,Tablas!$A$73:$G$75,7,TRUE)), (IF($F$38=4,(IF(4-$F$40=0, 0, (IF(4-$F$40=1, (VLOOKUP(1,Tablas!$A$73:$G$75,7,TRUE)), (IF(4-$F$40=2, (VLOOKUP(2,Tablas!$A$73:$G$75,7,TRUE)), (IF(4-$F$40=3, (VLOOKUP(3,Tablas!$A$73:$G$75,7,TRUE)), (IF(4-$F$40=4, (VLOOKUP(3,Tablas!$A$73:$G$75,7,TRUE)), 0)))))))))), (IF($F$38=5,(IF(5-$F$40=0, (VLOOKUP(1,Tablas!$A$73:$G$75,7,TRUE)), (IF(5-$F$40=1, (VLOOKUP(1,Tablas!$A$73:$G$75,7,TRUE)), (IF(5-$F$40=2, (VLOOKUP(2,Tablas!$A$73:$G$75,7,TRUE)), (IF(5-$F$40=3, (VLOOKUP(3,Tablas!$A$73:$G$75,7,TRUE)), (IF(5-$F$40=4, (VLOOKUP(3,Tablas!$A$73:$G$75,7,TRUE)), (VLOOKUP(3,Tablas!$A$73:$G$75,7,TRUE)))))))))))), (IF($F$38=6,(IF(6-$F$40=0, (VLOOKUP(2,Tablas!$A$73:$G$75,7,TRUE)), (IF(6-$F$40=1, (VLOOKUP(2,Tablas!$A$73:$G$75,7,TRUE)), (IF(6-$F$40=2, (VLOOKUP(2,Tablas!$A$73:$G$75,7,TRUE)), (IF(6-$F$40=3, (VLOOKUP(3,Tablas!$A$73:$G$75,7,TRUE)), (IF(6-$F$40=4, (VLOOKUP(3,Tablas!$A$73:$G$75,7,TRUE)), (VLOOKUP(3,Tablas!$A$73:$G$75,7,TRUE)))))))))))), (IF($F$38>6,(IF(7-$F$40=0, (VLOOKUP(3,Tablas!$A$73:$G$75,7,TRUE)), (IF(7-$F$40=1, (VLOOKUP(3,Tablas!$A$73:$G$75,7,TRUE)), (IF(7-$F$40=2, (VLOOKUP(3,Tablas!$A$73:$G$75,7,TRUE)), (IF(7-$F$40=3, (VLOOKUP(3,Tablas!$A$73:$G$75,7,TRUE)), (IF(7-$F$40=4, (VLOOKUP(3,Tablas!$A$73:$G$75,7,TRUE)), (VLOOKUP(3,Tablas!$A$73:$G$75,7,TRUE)))))))))))), (IF($F$38=3,(IF(3-$F$40=0,0, (IF(3-$F$40=1,(VLOOKUP(1,Tablas!$A$73:$G$75,7,TRUE)), (IF(3-$F$40=2, (VLOOKUP(2,Tablas!$A$73:$G$75,7,TRUE)), (VLOOKUP(3,Tablas!$A$73:$G$75,7,TRUE)))))))), (IF($F$38=2,(IF(2-$F$40=0, 0, (IF(2-$F$40=1,(VLOOKUP(1,Tablas!$A$73:$G$75,7,TRUE)), (IF(2-$F$40=2, (VLOOKUP(2,Tablas!$A$73:$G$75,7,TRUE)), 0)))))), (IF($F$38=1,(IF(1-$F$40=0, 0, (IF(1-$F$40=1,(VLOOKUP(1,Tablas!$A$73:$G$75,7,TRUE)),0)))),0)))))))))))))))))))) -> 0
E50: Total de Prima neta | G50: =SUM(G47:G49) -> 9116 | H50: =SUM(H47:H49) -> 7990 | I50: =SUM(I47:I49) -> 6591 | J50: =SUM(J47:J49) -> 5714 | K50: =SUM(K47:K49) -> 4432
E51: Ajuste por variante con coaseguro fuera del país de residencia | G51: =IF('INGRESO DE DATOS'!$H$27,G50*-25%,0) -> -2279 | H51: =IF('INGRESO DE DATOS'!$H$27,H50*-25%,0) -> -1997.5 | I51: =IF('INGRESO DE DATOS'!$H$27,I50*-25%,0) -> -1647.75 | J51: =IF('INGRESO DE DATOS'!$H$27,J50*-25%,0) -> -1428.5 | K51: =IF('INGRESO DE DATOS'!$H$27,K50*-25%,0) -> -1108
E52: Tarifa administrativa anual | G52: 75 | H52: 75 | I52: 75 | J52: 75 | K52: 75
E53: IVA (12%) | G53: =(G50+G52)*0% -> 0 | H53: =(H50+H52)*0% -> 0 | I53: 0 | J53: 0 | K53: 0
E54: TOTAL ANUAL | G54: =SUM(G50:G53)-((G50+G51))*0.1 -> 6228.3 | H54: =SUM(H50:H53)-((H50+H51))*0.1 -> 5468.25 | I54: 4523.925 | J54: 3931.95 | K54: 3066.6
E55: Ahorros en tarifas de prima para niños | G55: =IF($F$36=1,IF($F$38=0,0,IF($F$40=0,0,IF($F$40=1,(VLOOKUP(1,Tablas!$A$73:$G$75,3,TRUE)),(VLOOKUP(2,Tablas!$A$73:$G$75,3,TRUE))))), IF($F$38=0,0,IF($F$40=0,0,IF($F$40=1,(VLOOKUP(1,Tablas!$A$73:$G$75,3,TRUE)),IF($F$40=2,(VLOOKUP(2,Tablas!$A$73:$G$75,3,TRUE)), (VLOOKUP(3,Tablas!$A$73:$G$75,3,TRUE))))))) -> 0 | H55: =IF($F$36=1,IF($F$38=0,0,IF($F$40=0,0,IF($F$40=1,(VLOOKUP(1,Tablas!$A$73:$G$75,4,TRUE)),(VLOOKUP(2,Tablas!$A$73:$G$75,4,TRUE))))), IF($F$38=0,0,IF($F$40=0,0,IF($F$40=1,(VLOOKUP(1,Tablas!$A$73:$G$75,4,TRUE)),IF($F$40=2,(VLOOKUP(2,Tablas!$A$73:$G$75,4,TRUE)), (VLOOKUP(3,Tablas!$A$73:$G$75,4,TRUE))))))) -> 0 | I55: =IF($F$36=1,IF($F$38=0,0,IF($F$40=0,0,IF($F$40=1,(VLOOKUP(1,Tablas!$A$73:$G$75,5,TRUE)),(VLOOKUP(2,Tablas!$A$73:$G$75,5,TRUE))))), IF($F$38=0,0,IF($F$40=0,0,IF($F$40=1,(VLOOKUP(1,Tablas!$A$73:$G$75,5,TRUE)),IF($F$40=2,(VLOOKUP(2,Tablas!$A$73:$G$75,5,TRUE)), (VLOOKUP(3,Tablas!$A$73:$G$75,5,TRUE))))))) -> 0 | J55: =IF($F$36=1,IF($F$38=0,0,IF($F$40=0,0,IF($F$40=1,(VLOOKUP(1,Tablas!$A$73:$G$75,6,TRUE)),(VLOOKUP(2,Tablas!$A$73:$G$75,6,TRUE))))), IF($F$38=0,0,IF($F$40=0,0,IF($F$40=1,(VLOOKUP(1,Tablas!$A$73:$G$75,6,TRUE)),IF($F$40=2,(VLOOKUP(2,Tablas!$A$73:$G$75,6,TRUE)), (VLOOKUP(3,Tablas!$A$73:$G$75,6,TRUE))))))) -> 0 | K55: =IF($F$36=1,IF($F$38=0,0,IF($F$40=0,0,IF($F$40=1,(VLOOKUP(1,Tablas!$A$73:$G$75,7,TRUE)),(VLOOKUP(2,Tablas!$A$73:$G$75,7,TRUE))))), IF($F$38=0,0,IF($F$40=0,0,IF($F$40=1,(VLOOKUP(1,Tablas!$A$73:$G$75,7,TRUE)),IF($F$40=2,(VLOOKUP(2,Tablas!$A$73:$G$75,7,TRUE)), (VLOOKUP(3,Tablas!$A$73:$G$75,7,TRUE))))))) -> 0
E57: Tarifas semi anuales
E58: Prima para Asegurado Titular | G58: =VLOOKUP($I$36,Tablas!$A$455:$G$521,3,TRUE) -> 4558 | H58: =VLOOKUP($I$36,Tablas!$A$455:$G$521,4,TRUE) -> 3995 | I58: =VLOOKUP($I$36,Tablas!$A$455:$G$521,5,TRUE) -> 3295.5 | J58: =VLOOKUP($I$36,Tablas!$A$455:$G$521,6,TRUE) -> 2857 | K58: =VLOOKUP($I$36,Tablas!$A$455:$G$521,7,TRUE) -> 2216
E59: Prima para conyuge | G59: =IF($F$36=1,0,(VLOOKUP($I$38,Tablas!$A$455:$G$521,3,TRUE))) -> 0 | H59: =IF($F$36=1,0,(VLOOKUP($I$38,Tablas!$A$455:$G$521,4,TRUE))) -> 0 | I59: =IF($F$36=1,0,(VLOOKUP($I$38,Tablas!$A$455:$G$521,5,TRUE))) -> 0 | J59: =IF($F$36=1,0,(VLOOKUP($I$38,Tablas!$A$455:$G$521,6,TRUE))) -> 0 | K59: =IF($F$36=1,0,(VLOOKUP($I$38,Tablas!$A$455:$G$521,7,TRUE))) -> 0
E60: Prima para hijo (s) | G60: =IF($F$36=1, (IF($F$38=0, 0, (IF($F$40>$F$38, (VLOOKUP($F$38,Tablas!$A$522:$G$524,3,TRUE)), (IF($F$38>4,(IF($F$40=0, (VLOOKUP(3,Tablas!$A$522:$G$524,3,TRUE)), (IF($F$40=1, (VLOOKUP(3,Tablas!$A$522:$G$524,3,TRUE)), (IF($F$40=2, (VLOOKUP(3,Tablas!$A$522:$G$524,3,TRUE)), (VLOOKUP(3,Tablas!$A$522:$G$524,3,TRUE)))))))), (IF($F$38=4,(IF(4-$F$40=0,(VLOOKUP(2,Tablas!$A$522:$G$524,3,TRUE)), (IF(4-$F$40=1,(VLOOKUP(2,Tablas!$A$522:$G$524,3,TRUE)), (IF(4-$F$40=2, (VLOOKUP(2,Tablas!$A$522:$G$524,3,TRUE)), (VLOOKUP(3,Tablas!$A$522:$G$524,3,TRUE)))))))), (IF($F$38=3,(IF(3-$F$40=0,(VLOOKUP(1,Tablas!$A$522:$G$524,3,TRUE)), (IF(3-$F$40=1,(VLOOKUP(1,Tablas!$A$522:$G$524,3,TRUE)), (IF(3-$F$40=2, (VLOOKUP(2,Tablas!$A$522:$G$524,3,TRUE)), (VLOOKUP(3,Tablas!$A$522:$G$524,3,TRUE)))))))), (IF($F$38=2,(IF(2-$F$40=0, 0, (IF(2-$F$40=1,(VLOOKUP(1,Tablas!$A$522:$G$524,3,TRUE)), (IF(2-$F$40=2, (VLOOKUP(2,Tablas!$A$522:$G$524,3,TRUE)), 0)))))), (IF($F$38=1,(IF(1-$F$40=0, 0, (IF(1-$F$40=1,(VLOOKUP(1,Tablas!$A$522:$G$524,3,TRUE)),0)))),0)))))))))))))), (IF($F$38=0, 0, (IF($F$40>$F$38, (VLOOKUP($F$38,Tablas!$A$522:$G$524,3,TRUE)), (IF($F$38=4,(IF(4-$F$40=0, 0, (IF(4-$F$40=1, (VLOOKUP(1,Tablas!$A$522:$G$524,3,TRUE)), (IF(4-$F$40=2, (VLOOKUP(2,Tablas!$A$522:$G$524,3,TRUE)), (IF(4-$F$40=3, (VLOOKUP(3,Tablas!$A$522:$G$524,3,TRUE)), (IF(4-$F$40=4, (VLOOKUP(3,Tablas!$A$522:$G$524,3,TRUE)), 0)))))))))), (IF($F$38=5,(IF(5-$F$40=0, (VLOOKUP(1,Tablas!$A$522:$G$524,3,TRUE)), (IF(5-$F$40=1, (VLOOKUP(1,Tablas!$A$522:$G$524,3,TRUE)), (IF(5-$F$40=2, (VLOOKUP(2,Tablas!$A$522:$G$524,3,TRUE)), (IF(5-$F$40=3, (VLOOKUP(3,Tablas!$A$522:$G$524,3,TRUE)), (IF(5-$F$40=4, (VLOOKUP(3,Tablas!$A$522:$G$524,3,TRUE)), (VLOOKUP(3,Tablas!$A$522:$G$524,3,TRUE)))))))))))), (IF($F$38=6,(IF(6-$F$40=0, (VLOOKUP(2,Tablas!$A$522:$G$524,3,TRUE)), (IF(6-$F$40=1, (VLOOKUP(2,Tablas!$A$522:$G$524,3,TRUE)), (IF(6-$F$40=2, (VLOOKUP(2,Tablas!$A$522:$G$524,3,TRUE)), (IF(6-$F$40=3, (VLOOKUP(3,Tablas!$A$522:$G$524,3,TRUE)), (IF(6-$F$40=4, (VLOOKUP(3,Tablas!$A$522:$G$524,3,TRUE)), (VLOOKUP(3,Tablas!$A$522:$G$524,3,TRUE)))))))))))), (IF($F$38>6,(IF(7-$F$40=0, (VLOOKUP(3,Tablas!$A$522:$G$524,3,TRUE)), (IF(7-$F$40=1, (VLOOKUP(3,Tablas!$A$522:$G$524,3,TRUE)), (IF(7-$F$40=2, (VLOOKUP(3,Tablas!$A$522:$G$524,3,TRUE)), (IF(7-$F$40=3, (VLOOKUP(3,Tablas!$A$522:$G$524,3,TRUE)), (IF(7-$F$40=4, (VLOOKUP(3,Tablas!$A$522:$G$524,3,TRUE)), (VLOOKUP(3,Tablas!$A$522:$G$524,3,TRUE)))))))))))), (IF($F$38=3,(IF(3-$F$40=0,0, (IF(3-$F$40=1,(VLOOKUP(1,Tablas!$A$522:$G$524,3,TRUE)), (IF(3-$F$40=2, (VLOOKUP(2,Tablas!$A$522:$G$524,3,TRUE)), (VLOOKUP(3,Tablas!$A$522:$G$524,3,TRUE)))))))), (IF($F$38=2,(IF(2-$F$40=0, 0, (IF(2-$F$40=1,(VLOOKUP(1,Tablas!$A$522:$G$524,3,TRUE)), (IF(2-$F$40=2, (VLOOKUP(2,Tablas!$A$522:$G$524,3,TRUE)), 0)))))), (IF($F$38=1,(IF(1-$F$40=0, 0, (IF(1-$F$40=1,(VLOOKUP(1,Tablas!$A$522:$G$524,3,TRUE)),0)))),0))))))))))))))))))) -> 0 | H60: =IF($F$36=1, (IF($F$38=0, 0, (IF($F$40>$F$38, (VLOOKUP($F$38,Tablas!$A$522:$G$524,4,TRUE)), (IF($F$38>4,(IF($F$40=0, (VLOOKUP(3,Tablas!$A$522:$G$524,4,TRUE)), (IF($F$40=1, (VLOOKUP(3,Tablas!$A$522:$G$524,4,TRUE)), (IF($F$40=2, (VLOOKUP(3,Tablas!$A$522:$G$524,4,TRUE)), (VLOOKUP(3,Tablas!$A$522:$G$524,4,TRUE)))))))), (IF($F$38=4,(IF(4-$F$40=0,(VLOOKUP(2,Tablas!$A$522:$G$524,4,TRUE)), (IF(4-$F$40=1,(VLOOKUP(2,Tablas!$A$522:$G$524,4,TRUE)), (IF(4-$F$40=2, (VLOOKUP(2,Tablas!$A$522:$G$524,4,TRUE)), (VLOOKUP(3,Tablas!$A$522:$G$524,4,TRUE)))))))), (IF($F$38=3,(IF(3-$F$40=0,(VLOOKUP(1,Tablas!$A$522:$G$524,4,TRUE)), (IF(3-$F$40=1,(VLOOKUP(1,Tablas!$A$522:$G$524,4,TRUE)), (IF(3-$F$40=2, (VLOOKUP(2,Tablas!$A$522:$G$524,4,TRUE)), (VLOOKUP(3,Tablas!$A$522:$G$524,4,TRUE)))))))), (IF($F$38=2,(IF(2-$F$40=0, 0, (IF(2-$F$40=1,(VLOOKUP(1,Tablas!$A$522:$G$524,4,TRUE)), (IF(2-$F$40=2, (VLOOKUP(2,Tablas!$A$522:$G$524,4,TRUE)), 0)))))), (IF($F$38=1,(IF(1-$F$40=0, 0, (IF(1-$F$40=1,(VLOOKUP(1,Tablas!$A$522:$G$524,4,TRUE)),0)))),0)))))))))))))), (IF($F$38=0, 0, (IF($F$40>$F$38, (VLOOKUP($F$38,Tablas!$A$522:$G$524,4,TRUE)), (IF($F$38=4,(IF(4-$F$40=0, 0, (IF(4-$F$40=1, (VLOOKUP(1,Tablas!$A$522:$G$524,4,TRUE)), (IF(4-$F$40=2, (VLOOKUP(2,Tablas!$A$522:$G$524,4,TRUE)), (IF(4-$F$40=3, (VLOOKUP(3,Tablas!$A$522:$G$524,4,TRUE)), (IF(4-$F$40=4, (VLOOKUP(3,Tablas!$A$522:$G$524,4,TRUE)), 0)))))))))), (IF($F$38=5,(IF(5-$F$40=0, (VLOOKUP(1,Tablas!$A$522:$G$524,4,TRUE)), (IF(5-$F$40=1, (VLOOKUP(1,Tablas!$A$522:$G$524,4,TRUE)), (IF(5-$F$40=2, (VLOOKUP(2,Tablas!$A$522:$G$524,4,TRUE)), (IF(5-$F$40=3, (VLOOKUP(3,Tablas!$A$522:$G$524,4,TRUE)), (IF(5-$F$40=4, (VLOOKUP(3,Tablas!$A$522:$G$524,4,TRUE)), (VLOOKUP(3,Tablas!$A$522:$G$524,4,TRUE)))))))))))), (IF($F$38=6,(IF(6-$F$40=0, (VLOOKUP(2,Tablas!$A$522:$G$524,4,TRUE)), (IF(6-$F$40=1, (VLOOKUP(2,Tablas!$A$522:$G$524,4,TRUE)), (IF(6-$F$40=2, (VLOOKUP(2,Tablas!$A$522:$G$524,4,TRUE)), (IF(6-$F$40=3, (VLOOKUP(3,Tablas!$A$522:$G$524,4,TRUE)), (IF(6-$F$40=4, (VLOOKUP(3,Tablas!$A$522:$G$524,4,TRUE)), (VLOOKUP(3,Tablas!$A$522:$G$524,4,TRUE)))))))))))), (IF($F$38>6,(IF(7-$F$40=0, (VLOOKUP(3,Tablas!$A$522:$G$524,4,TRUE)), (IF(7-$F$40=1, (VLOOKUP(3,Tablas!$A$522:$G$524,4,TRUE)), (IF(7-$F$40=2, (VLOOKUP(3,Tablas!$A$522:$G$524,4,TRUE)), (IF(7-$F$40=3, (VLOOKUP(3,Tablas!$A$522:$G$524,4,TRUE)), (IF(7-$F$40=4, (VLOOKUP(3,Tablas!$A$522:$G$524,4,TRUE)), (VLOOKUP(3,Tablas!$A$522:$G$524,4,TRUE)))))))))))), (IF($F$38=3,(IF(3-$F$40=0,0, (IF(3-$F$40=1,(VLOOKUP(1,Tablas!$A$522:$G$524,4,TRUE)), (IF(3-$F$40=2, (VLOOKUP(2,Tablas!$A$522:$G$524,4,TRUE)), (VLOOKUP(3,Tablas!$A$522:$G$524,4,TRUE)))))))), (IF($F$38=2,(IF(2-$F$40=0, 0, (IF(2-$F$40=1,(VLOOKUP(1,Tablas!$A$522:$G$524,4,TRUE)), (IF(2-$F$40=2, (VLOOKUP(2,Tablas!$A$522:$G$524,4,TRUE)), 0)))))), (IF($F$38=1,(IF(1-$F$40=0, 0, (IF(1-$F$40=1,(VLOOKUP(1,Tablas!$A$522:$G$524,4,TRUE)),0)))),0))))))))))))))))))) -> 0 | I60: =IF($F$36=1, (IF($F$38=0, 0, (IF($F$40>$F$38, (VLOOKUP($F$38,Tablas!$A$522:$G$524,5,TRUE)), (IF($F$38>4,(IF($F$40=0, (VLOOKUP(3,Tablas!$A$522:$G$524,5,TRUE)), (IF($F$40=1, (VLOOKUP(3,Tablas!$A$522:$G$524,5,TRUE)), (IF($F$40=2, (VLOOKUP(3,Tablas!$A$522:$G$524,5,TRUE)), (VLOOKUP(3,Tablas!$A$522:$G$524,5,TRUE)))))))), (IF($F$38=4,(IF(4-$F$40=0,(VLOOKUP(2,Tablas!$A$522:$G$524,5,TRUE)), (IF(4-$F$40=1,(VLOOKUP(2,Tablas!$A$522:$G$524,5,TRUE)), (IF(4-$F$40=2, (VLOOKUP(2,Tablas!$A$522:$G$524,5,TRUE)), (VLOOKUP(3,Tablas!$A$522:$G$524,5,TRUE)))))))), (IF($F$38=3,(IF(3-$F$40=0,(VLOOKUP(1,Tablas!$A$522:$G$524,5,TRUE)), (IF(3-$F$40=1,(VLOOKUP(1,Tablas!$A$522:$G$524,5,TRUE)), (IF(3-$F$40=2, (VLOOKUP(2,Tablas!$A$522:$G$524,5,TRUE)), (VLOOKUP(3,Tablas!$A$522:$G$524,5,TRUE)))))))), (IF($F$38=2,(IF(2-$F$40=0, 0, (IF(2-$F$40=1,(VLOOKUP(1,Tablas!$A$522:$G$524,5,TRUE)), (IF(2-$F$40=2, (VLOOKUP(2,Tablas!$A$522:$G$524,5,TRUE)), 0)))))), (IF($F$38=1,(IF(1-$F$40=0, 0, (IF(1-$F$40=1,(VLOOKUP(1,Tablas!$A$522:$G$524,5,TRUE)),0)))),0)))))))))))))), (IF($F$38=0, 0, (IF($F$40>$F$38, (VLOOKUP($F$38,Tablas!$A$522:$G$524,5,TRUE)), (IF($F$38=4,(IF(4-$F$40=0, 0, (IF(4-$F$40=1, (VLOOKUP(1,Tablas!$A$522:$G$524,5,TRUE)), (IF(4-$F$40=2, (VLOOKUP(2,Tablas!$A$522:$G$524,5,TRUE)), (IF(4-$F$40=3, (VLOOKUP(3,Tablas!$A$522:$G$524,5,TRUE)), (IF(4-$F$40=4, (VLOOKUP(3,Tablas!$A$522:$G$524,5,TRUE)), 0)))))))))), (IF($F$38=5,(IF(5-$F$40=0, (VLOOKUP(1,Tablas!$A$522:$G$524,5,TRUE)), (IF(5-$F$40=1, (VLOOKUP(1,Tablas!$A$522:$G$524,5,TRUE)), (IF(5-$F$40=2, (VLOOKUP(2,Tablas!$A$522:$G$524,5,TRUE)), (IF(5-$F$40=3, (VLOOKUP(3,Tablas!$A$522:$G$524,5,TRUE)), (IF(5-$F$40=4, (VLOOKUP(3,Tablas!$A$522:$G$524,5,TRUE)), (VLOOKUP(3,Tablas!$A$522:$G$524,5,TRUE)))))))))))), (IF($F$38=6,(IF(6-$F$40=0, (VLOOKUP(2,Tablas!$A$522:$G$524,5,TRUE)), (IF(6-$F$40=1, (VLOOKUP(2,Tablas!$A$522:$G$524,5,TRUE)), (IF(6-$F$40=2, (VLOOKUP(2,Tablas!$A$522:$G$524,5,TRUE)), (IF(6-$F$40=3, (VLOOKUP(3,Tablas!$A$522:$G$524,5,TRUE)), (IF(6-$F$40=4, (VLOOKUP(3,Tablas!$A$522:$G$524,5,TRUE)), (VLOOKUP(3,Tablas!$A$522:$G$524,5,TRUE)))))))))))), (IF($F$38>6,(IF(7-$F$40=0, (VLOOKUP(3,Tablas!$A$522:$G$524,5,TRUE)), (IF(7-$F$40=1, (VLOOKUP(3,Tablas!$A$522:$G$524,5,TRUE)), (IF(7-$F$40=2, (VLOOKUP(3,Tablas!$A$522:$G$524,5,TRUE)), (IF(7-$F$40=3, (VLOOKUP(3,Tablas!$A$522:$G$524,5,TRUE)), (IF(7-$F$40=4, (VLOOKUP(3,Tablas!$A$522:$G$524,5,TRUE)), (VLOOKUP(3,Tablas!$A$522:$G$524,5,TRUE)))))))))))), (IF($F$38=3,(IF(3-$F$40=0,0, (IF(3-$F$40=1,(VLOOKUP(1,Tablas!$A$522:$G$524,5,TRUE)), (IF(3-$F$40=2, (VLOOKUP(2,Tablas!$A$522:$G$524,5,TRUE)), (VLOOKUP(3,Tablas!$A$522:$G$524,5,TRUE)))))))), (IF($F$38=2,(IF(2-$F$40=0, 0, (IF(2-$F$40=1,(VLOOKUP(1,Tablas!$A$522:$G$524,5,TRUE)), (IF(2-$F$40=2, (VLOOKUP(2,Tablas!$A$522:$G$524,5,TRUE)), 0)))))), (IF($F$38=1,(IF(1-$F$40=0, 0, (IF(1-$F$40=1,(VLOOKUP(1,Tablas!$A$522:$G$524,5,TRUE)),0)))),0))))))))))))))))))) -> 0 | J60: =IF($F$36=1, (IF($F$38=0, 0, (IF($F$40>$F$38, (VLOOKUP($F$38,Tablas!$A$522:$G$524,6,TRUE)), (IF($F$38>4,(IF($F$40=0, (VLOOKUP(3,Tablas!$A$522:$G$524,6,TRUE)), (IF($F$40=1, (VLOOKUP(3,Tablas!$A$522:$G$524,6,TRUE)), (IF($F$40=2, (VLOOKUP(3,Tablas!$A$522:$G$524,6,TRUE)), (VLOOKUP(3,Tablas!$A$522:$G$524,6,TRUE)))))))), (IF($F$38=4,(IF(4-$F$40=0,(VLOOKUP(2,Tablas!$A$522:$G$524,6,TRUE)), (IF(4-$F$40=1,(VLOOKUP(2,Tablas!$A$522:$G$524,6,TRUE)), (IF(4-$F$40=2, (VLOOKUP(2,Tablas!$A$522:$G$524,6,TRUE)), (VLOOKUP(3,Tablas!$A$522:$G$524,6,TRUE)))))))), (IF($F$38=3,(IF(3-$F$40=0,(VLOOKUP(1,Tablas!$A$522:$G$524,6,TRUE)), (IF(3-$F$40=1,(VLOOKUP(1,Tablas!$A$522:$G$524,6,TRUE)), (IF(3-$F$40=2, (VLOOKUP(2,Tablas!$A$522:$G$524,6,TRUE)), (VLOOKUP(3,Tablas!$A$522:$G$524,6,TRUE)))))))), (IF($F$38=2,(IF(2-$F$40=0, 0, (IF(2-$F$40=1,(VLOOKUP(1,Tablas!$A$522:$G$524,6,TRUE)), (IF(2-$F$40=2, (VLOOKUP(2,Tablas!$A$522:$G$524,6,TRUE)), 0)))))), (IF($F$38=1,(IF(1-$F$40=0, 0, (IF(1-$F$40=1,(VLOOKUP(1,Tablas!$A$522:$G$524,6,TRUE)),0)))),0)))))))))))))), (IF($F$38=0, 0, (IF($F$40>$F$38, (VLOOKUP($F$38,Tablas!$A$522:$G$524,6,TRUE)), (IF($F$38=4,(IF(4-$F$40=0, 0, (IF(4-$F$40=1, (VLOOKUP(1,Tablas!$A$522:$G$524,6,TRUE)), (IF(4-$F$40=2, (VLOOKUP(2,Tablas!$A$522:$G$524,6,TRUE)), (IF(4-$F$40=3, (VLOOKUP(3,Tablas!$A$522:$G$524,6,TRUE)), (IF(4-$F$40=4, (VLOOKUP(3,Tablas!$A$522:$G$524,6,TRUE)), 0)))))))))), (IF($F$38=5,(IF(5-$F$40=0, (VLOOKUP(1,Tablas!$A$522:$G$524,6,TRUE)), (IF(5-$F$40=1, (VLOOKUP(1,Tablas!$A$522:$G$524,6,TRUE)), (IF(5-$F$40=2, (VLOOKUP(2,Tablas!$A$522:$G$524,6,TRUE)), (IF(5-$F$40=3, (VLOOKUP(3,Tablas!$A$522:$G$524,6,TRUE)), (IF(5-$F$40=4, (VLOOKUP(3,Tablas!$A$522:$G$524,6,TRUE)), (VLOOKUP(3,Tablas!$A$522:$G$524,6,TRUE)))))))))))), (IF($F$38=6,(IF(6-$F$40=0, (VLOOKUP(2,Tablas!$A$522:$G$524,6,TRUE)), (IF(6-$F$40=1, (VLOOKUP(2,Tablas!$A$522:$G$524,6,TRUE)), (IF(6-$F$40=2, (VLOOKUP(2,Tablas!$A$522:$G$524,6,TRUE)), (IF(6-$F$40=3, (VLOOKUP(3,Tablas!$A$522:$G$524,6,TRUE)), (IF(6-$F$40=4, (VLOOKUP(3,Tablas!$A$522:$G$524,6,TRUE)), (VLOOKUP(3,Tablas!$A$522:$G$524,6,TRUE)))))))))))), (IF($F$38>6,(IF(7-$F$40=0, (VLOOKUP(3,Tablas!$A$522:$G$524,6,TRUE)), (IF(7-$F$40=1, (VLOOKUP(3,Tablas!$A$522:$G$524,6,TRUE)), (IF(7-$F$40=2, (VLOOKUP(3,Tablas!$A$522:$G$524,6,TRUE)), (IF(7-$F$40=3, (VLOOKUP(3,Tablas!$A$522:$G$524,6,TRUE)), (IF(7-$F$40=4, (VLOOKUP(3,Tablas!$A$522:$G$524,6,TRUE)), (VLOOKUP(3,Tablas!$A$522:$G$524,6,TRUE)))))))))))), (IF($F$38=3,(IF(3-$F$40=0,0, (IF(3-$F$40=1,(VLOOKUP(1,Tablas!$A$522:$G$524,6,TRUE)), (IF(3-$F$40=2, (VLOOKUP(2,Tablas!$A$522:$G$524,6,TRUE)), (VLOOKUP(3,Tablas!$A$522:$G$524,6,TRUE)))))))), (IF($F$38=2,(IF(2-$F$40=0, 0, (IF(2-$F$40=1,(VLOOKUP(1,Tablas!$A$522:$G$524,6,TRUE)), (IF(2-$F$40=2, (VLOOKUP(2,Tablas!$A$522:$G$524,6,TRUE)), 0)))))), (IF($F$38=1,(IF(1-$F$40=0, 0, (IF(1-$F$40=1,(VLOOKUP(1,Tablas!$A$522:$G$524,6,TRUE)),0)))),0))))))))))))))))))) -> 0 | K60: =IF($F$36=1, (IF($F$38=0, 0, (IF($F$40>$F$38, (VLOOKUP($F$38,Tablas!$A$522:$G$524,7,TRUE)), (IF($F$38>4,(IF($F$40=0, (VLOOKUP(3,Tablas!$A$522:$G$524,7,TRUE)), (IF($F$40=1, (VLOOKUP(3,Tablas!$A$522:$G$524,7,TRUE)), (IF($F$40=2, (VLOOKUP(3,Tablas!$A$522:$G$524,7,TRUE)), (VLOOKUP(3,Tablas!$A$522:$G$524,7,TRUE)))))))), (IF($F$38=4,(IF(4-$F$40=0,(VLOOKUP(2,Tablas!$A$522:$G$524,7,TRUE)), (IF(4-$F$40=1,(VLOOKUP(2,Tablas!$A$522:$G$524,7,TRUE)), (IF(4-$F$40=2, (VLOOKUP(2,Tablas!$A$522:$G$524,7,TRUE)), (VLOOKUP(3,Tablas!$A$522:$G$524,7,TRUE)))))))), (IF($F$38=3,(IF(3-$F$40=0,(VLOOKUP(1,Tablas!$A$522:$G$524,7,TRUE)), (IF(3-$F$40=1,(VLOOKUP(1,Tablas!$A$522:$G$524,7,TRUE)), (IF(3-$F$40=2, (VLOOKUP(2,Tablas!$A$522:$G$524,7,TRUE)), (VLOOKUP(3,Tablas!$A$522:$G$524,7,TRUE)))))))), (IF($F$38=2,(IF(2-$F$40=0, 0, (IF(2-$F$40=1,(VLOOKUP(1,Tablas!$A$522:$G$524,7,TRUE)), (IF(2-$F$40=2, (VLOOKUP(2,Tablas!$A$522:$G$524,7,TRUE)), 0)))))), (IF($F$38=1,(IF(1-$F$40=0, 0, (IF(1-$F$40=1,(VLOOKUP(1,Tablas!$A$522:$G$524,7,TRUE)),0)))),0)))))))))))))), (IF($F$38=0, 0, (IF($F$40>$F$38, (VLOOKUP($F$38,Tablas!$A$522:$G$524,7,TRUE)), (IF($F$38=4,(IF(4-$F$40=0, 0, (IF(4-$F$40=1, (VLOOKUP(1,Tablas!$A$522:$G$524,7,TRUE)), (IF(4-$F$40=2, (VLOOKUP(2,Tablas!$A$522:$G$524,7,TRUE)), (IF(4-$F$40=3, (VLOOKUP(3,Tablas!$A$522:$G$524,7,TRUE)), (IF(4-$F$40=4, (VLOOKUP(3,Tablas!$A$522:$G$524,7,TRUE)), 0)))))))))), (IF($F$38=5,(IF(5-$F$40=0, (VLOOKUP(1,Tablas!$A$522:$G$524,7,TRUE)), (IF(5-$F$40=1, (VLOOKUP(1,Tablas!$A$522:$G$524,7,TRUE)), (IF(5-$F$40=2, (VLOOKUP(2,Tablas!$A$522:$G$524,7,TRUE)), (IF(5-$F$40=3, (VLOOKUP(3,Tablas!$A$522:$G$524,7,TRUE)), (IF(5-$F$40=4, (VLOOKUP(3,Tablas!$A$522:$G$524,7,TRUE)), (VLOOKUP(3,Tablas!$A$522:$G$524,7,TRUE)))))))))))), (IF($F$38=6,(IF(6-$F$40=0, (VLOOKUP(2,Tablas!$A$522:$G$524,7,TRUE)), (IF(6-$F$40=1, (VLOOKUP(2,Tablas!$A$522:$G$524,7,TRUE)), (IF(6-$F$40=2, (VLOOKUP(2,Tablas!$A$522:$G$524,7,TRUE)), (IF(6-$F$40=3, (VLOOKUP(3,Tablas!$A$522:$G$524,7,TRUE)), (IF(6-$F$40=4, (VLOOKUP(3,Tablas!$A$522:$G$524,7,TRUE)), (VLOOKUP(3,Tablas!$A$522:$G$524,7,TRUE)))))))))))), (IF($F$38>6,(IF(7-$F$40=0, (VLOOKUP(3,Tablas!$A$522:$G$524,7,TRUE)), (IF(7-$F$40=1, (VLOOKUP(3,Tablas!$A$522:$G$524,7,TRUE)), (IF(7-$F$40=2, (VLOOKUP(3,Tablas!$A$522:$G$524,7,TRUE)), (IF(7-$F$40=3, (VLOOKUP(3,Tablas!$A$522:$G$524,7,TRUE)), (IF(7-$F$40=4, (VLOOKUP(3,Tablas!$A$522:$G$524,7,TRUE)), (VLOOKUP(3,Tablas!$A$522:$G$524,7,TRUE)))))))))))), (IF($F$38=3,(IF(3-$F$40=0,0, (IF(3-$F$40=1,(VLOOKUP(1,Tablas!$A$522:$G$524,7,TRUE)), (IF(3-$F$40=2, (VLOOKUP(2,Tablas!$A$522:$G$524,7,TRUE)), (VLOOKUP(3,Tablas!$A$522:$G$524,7,TRUE)))))))), (IF($F$38=2,(IF(2-$F$40=0, 0, (IF(2-$F$40=1,(VLOOKUP(1,Tablas!$A$522:$G$524,7,TRUE)), (IF(2-$F$40=2, (VLOOKUP(2,Tablas!$A$522:$G$524,7,TRUE)), 0)))))), (IF($F$38=1,(IF(1-$F$40=0, 0, (IF(1-$F$40=1,(VLOOKUP(1,Tablas!$A$522:$G$524,7,TRUE)),0)))),0))))))))))))))))))) -> 0
E61: Total de Prima neta | G61: =SUM(G58:G60) -> 4558 | H61: =SUM(H58:H60) -> 3995 | I61: =SUM(I58:I60) -> 3295.5 | J61: =SUM(J58:J60) -> 2857 | K61: =SUM(K58:K60) -> 2216
E62: Ajuste por variante con coaseguro fuera del país de residencia | G62: =IF('INGRESO DE DATOS'!$H$27,G61*-25%,0) -> -1139.5 | H62: =IF('INGRESO DE DATOS'!$H$27,H61*-25%,0) -> -998.75 | I62: =IF('INGRESO DE DATOS'!$H$27,I61*-25%,0) -> -823.875 | J62: =IF('INGRESO DE DATOS'!$H$27,J61*-25%,0) -> -714.25 | K62: =IF('INGRESO DE DATOS'!$H$27,K61*-25%,0) -> -554
E63: Tarifa administrativa anual | G63: 75 | H63: 75 | I63: 75 | J63: 75 | K63: 75
E64: IVA (12%) | G64: =(G61+G63)*0% -> 0 | H64: =(H61+H63)*0% -> 0 | I64: 0 | J64: 0 | K64: 0
E65: TOTAL de primera cuota | G65: =SUM(G61:G64) -> 3493.5 | H65: =SUM(H61:H64) -> 3071.25 | I65: =SUM(I61:I64) -> 2546.625 | J65: =SUM(J61:J64) -> 2217.75 | K65: =SUM(K61:K64) -> 1737
E66: Costo de segunda cuota | G66: =SUM(G61:G62) -> 3418.5 | H66: =SUM(H61:H62) -> 2996.25 | I66: 2471.625 | J66: 2142.75 | K66: 1662
E67: TOTAL ANUAL | G67: =G65+G66 -> 6912 | H67: =H65+H66 -> 6067.5 | I67: 5018.25 | J67: =J65+J66 -> 4360.5 | K67: 3399
E68: Ahorros en tarifas de prima para niños | G68: =IF($F$36=1,IF($F$38=0,0,IF($F$40=0,0,IF($F$40=1,(VLOOKUP(1,Tablas!$A$522:$G$524,3,TRUE)),(VLOOKUP(2,Tablas!$A$522:$G$524,3,TRUE))))), IF($F$38=0,0,IF($F$40=0,0,IF($F$40=1,(VLOOKUP(1,Tablas!$A$522:$G$524,3,TRUE)),IF($F$40=2,(VLOOKUP(2,Tablas!$A$522:$G$524,3,TRUE)), (VLOOKUP(3,Tablas!$A$522:$G$524,3,TRUE))))))) -> 0 | H68: =IF($F$36=1,IF($F$38=0,0,IF($F$40=0,0,IF($F$40=1,(VLOOKUP(1,Tablas!$A$522:$G$524,4,TRUE)),(VLOOKUP(2,Tablas!$A$522:$G$524,4,TRUE))))), IF($F$38=0,0,IF($F$40=0,0,IF($F$40=1,(VLOOKUP(1,Tablas!$A$522:$G$524,4,TRUE)),IF($F$40=2,(VLOOKUP(2,Tablas!$A$522:$G$524,4,TRUE)), (VLOOKUP(3,Tablas!$A$522:$G$524,4,TRUE))))))) -> 0 | I68: =IF($F$36=1,IF($F$38=0,0,IF($F$40=0,0,IF($F$40=1,(VLOOKUP(1,Tablas!$A$522:$G$524,5,TRUE)),(VLOOKUP(2,Tablas!$A$522:$G$524,5,TRUE))))), IF($F$38=0,0,IF($F$40=0,0,IF($F$40=1,(VLOOKUP(1,Tablas!$A$522:$G$524,5,TRUE)),IF($F$40=2,(VLOOKUP(2,Tablas!$A$522:$G$524,5,TRUE)), (VLOOKUP(3,Tablas!$A$522:$G$524,5,TRUE))))))) -> 0 | J68: =IF($F$36=1,IF($F$38=0,0,IF($F$40=0,0,IF($F$40=1,(VLOOKUP(1,Tablas!$A$522:$G$524,6,TRUE)),(VLOOKUP(2,Tablas!$A$522:$G$524,6,TRUE))))), IF($F$38=0,0,IF($F$40=0,0,IF($F$40=1,(VLOOKUP(1,Tablas!$A$522:$G$524,6,TRUE)),IF($F$40=2,(VLOOKUP(2,Tablas!$A$522:$G$524,6,TRUE)), (VLOOKUP(3,Tablas!$A$522:$G$524,6,TRUE))))))) -> 0 | K68: =IF($F$36=1,IF($F$38=0,0,IF($F$40=0,0,IF($F$40=1,(VLOOKUP(1,Tablas!$A$522:$G$524,7,TRUE)),(VLOOKUP(2,Tablas!$A$522:$G$524,7,TRUE))))), IF($F$38=0,0,IF($F$40=0,0,IF($F$40=1,(VLOOKUP(1,Tablas!$A$522:$G$524,7,TRUE)),IF($F$40=2,(VLOOKUP(2,Tablas!$A$522:$G$524,7,TRUE)), (VLOOKUP(3,Tablas!$A$522:$G$524,7,TRUE))))))) -> 0
E70: Tarifas trimestrales
E71: Prima para Asegurado Titular | G71: =VLOOKUP($I$36,Tablas!$A$680:$G$746,3,TRUE) -> 2279 | H71: =VLOOKUP($I$36,Tablas!$A$680:$G$746,4,TRUE) -> 1997.5 | I71: =VLOOKUP($I$36,Tablas!$A$680:$G$746,5,TRUE) -> 1647.75 | J71: =VLOOKUP($I$36,Tablas!$A$680:$G$746,6,TRUE) -> 1428.5 | K71: =VLOOKUP($I$36,Tablas!$A$680:$G$746,7,TRUE) -> 1108
E72: Prima para conyuge | G72: =IF($F$36=1,0,(VLOOKUP($I$38,Tablas!$A$680:$G$746,3,TRUE))) -> 0 | H72: =IF($F$36=1,0,(VLOOKUP($I$38,Tablas!$A$680:$G$746,4,TRUE))) -> 0 | I72: =IF($F$36=1,0,(VLOOKUP($I$38,Tablas!$A$680:$G$746,5,TRUE))) -> 0 | J72: =IF($F$36=1,0,(VLOOKUP($I$38,Tablas!$A$680:$G$746,6,TRUE))) -> 0 | K72: =IF($F$36=1,0,(VLOOKUP($I$38,Tablas!$A$680:$G$746,7,TRUE))) -> 0
E73: Prima para hijo (s) | G73: =IF($F$36=1, (IF($F$38=0, 0, (IF($F$40>$F$38, (VLOOKUP($F$38,Tablas!$A$747:$G$749,3,TRUE)), (IF($F$38>4,(IF($F$40=0, (VLOOKUP(3,Tablas!$A$747:$G$749,3,TRUE)), (IF($F$40=1, (VLOOKUP(3,Tablas!$A$747:$G$749,3,TRUE)), (IF($F$40=2, (VLOOKUP(3,Tablas!$A$747:$G$749,3,TRUE)), (VLOOKUP(3,Tablas!$A$747:$G$749,3,TRUE)))))))), (IF($F$38=4,(IF(4-$F$40=0,(VLOOKUP(2,Tablas!$A$747:$G$749,3,TRUE)), (IF(4-$F$40=1,(VLOOKUP(2,Tablas!$A$747:$G$749,3,TRUE)), (IF(4-$F$40=2, (VLOOKUP(2,Tablas!$A$747:$G$749,3,TRUE)), (VLOOKUP(3,Tablas!$A$747:$G$749,3,TRUE)))))))), (IF($F$38=3,(IF(3-$F$40=0,(VLOOKUP(1,Tablas!$A$747:$G$749,3,TRUE)), (IF(3-$F$40=1,(VLOOKUP(1,Tablas!$A$747:$G$749,3,TRUE)), (IF(3-$F$40=2, (VLOOKUP(2,Tablas!$A$747:$G$749,3,TRUE)), (VLOOKUP(3,Tablas!$A$747:$G$749,3,TRUE)))))))), (IF($F$38=2,(IF(2-$F$40=0, 0, (IF(2-$F$40=1,(VLOOKUP(1,Tablas!$A$747:$G$749,3,TRUE)), (IF(2-$F$40=2, (VLOOKUP(2,Tablas!$A$747:$G$749,3,TRUE)), 0)))))), (IF($F$38=1,(IF(1-$F$40=0, 0, (IF(1-$F$40=1,(VLOOKUP(1,Tablas!$A$747:$G$749,3,TRUE)),0)))),0)))))))))))))), (IF($F$38=0, 0, (IF($F$40>$F$38, (VLOOKUP($F$38,Tablas!$A$747:$G$749,3,TRUE)), (IF($F$38=4,(IF(4-$F$40=0, 0, (IF(4-$F$40=1, (VLOOKUP(1,Tablas!$A$747:$G$749,3,TRUE)), (IF(4-$F$40=2, (VLOOKUP(2,Tablas!$A$747:$G$749,3,TRUE)), (IF(4-$F$40=3, (VLOOKUP(3,Tablas!$A$747:$G$749,3,TRUE)), (IF(4-$F$40=4, (VLOOKUP(3,Tablas!$A$747:$G$749,3,TRUE)), 0)))))))))), (IF($F$38=5,(IF(5-$F$40=0, (VLOOKUP(1,Tablas!$A$747:$G$749,3,TRUE)), (IF(5-$F$40=1, (VLOOKUP(1,Tablas!$A$747:$G$749,3,TRUE)), (IF(5-$F$40=2, (VLOOKUP(2,Tablas!$A$747:$G$749,3,TRUE)), (IF(5-$F$40=3, (VLOOKUP(3,Tablas!$A$747:$G$749,3,TRUE)), (IF(5-$F$40=4, (VLOOKUP(3,Tablas!$A$747:$G$749,3,TRUE)), (VLOOKUP(3,Tablas!$A$747:$G$749,3,TRUE)))))))))))), (IF($F$38=6,(IF(6-$F$40=0, (VLOOKUP(2,Tablas!$A$747:$G$749,3,TRUE)), (IF(6-$F$40=1, (VLOOKUP(2,Tablas!$A$747:$G$749,3,TRUE)), (IF(6-$F$40=2, (VLOOKUP(2,Tablas!$A$747:$G$749,3,TRUE)), (IF(6-$F$40=3, (VLOOKUP(3,Tablas!$A$747:$G$749,3,TRUE)), (IF(6-$F$40=4, (VLOOKUP(3,Tablas!$A$747:$G$749,3,TRUE)), (VLOOKUP(3,Tablas!$A$747:$G$749,3,TRUE)))))))))))), (IF($F$38>6,(IF(7-$F$40=0, (VLOOKUP(3,Tablas!$A$747:$G$749,3,TRUE)), (IF(7-$F$40=1, (VLOOKUP(3,Tablas!$A$747:$G$749,3,TRUE)), (IF(7-$F$40=2, (VLOOKUP(3,Tablas!$A$747:$G$749,3,TRUE)), (IF(7-$F$40=3, (VLOOKUP(3,Tablas!$A$747:$G$749,3,TRUE)), (IF(7-$F$40=4, (VLOOKUP(3,Tablas!$A$747:$G$749,3,TRUE)), (VLOOKUP(3,Tablas!$A$747:$G$749,3,TRUE)))))))))))), (IF($F$38=3,(IF(3-$F$40=0,0, (IF(3-$F$40=1,(VLOOKUP(1,Tablas!$A$747:$G$749,3,TRUE)), (IF(3-$F$40=2, (VLOOKUP(2,Tablas!$A$747:$G$749,3,TRUE)), (VLOOKUP(3,Tablas!$A$747:$G$749,3,TRUE)))))))), (IF($F$38=2,(IF(2-$F$40=0, 0, (IF(2-$F$40=1,(VLOOKUP(1,Tablas!$A$747:$G$749,3,TRUE)), (IF(2-$F$40=2, (VLOOKUP(2,Tablas!$A$747:$G$749,3,TRUE)), 0)))))), (IF($F$38=1,(IF(1-$F$40=0, 0, (IF(1-$F$40=1,(VLOOKUP(1,Tablas!$A$747:$G$749,3,TRUE)),0)))),0))))))))))))))))))) -> 0 | H73: =IF($F$36=1, (IF($F$38=0, 0, (IF($F$40>$F$38, (VLOOKUP($F$38,Tablas!$A$747:$G$749,4,TRUE)), (IF($F$38>4,(IF($F$40=0, (VLOOKUP(3,Tablas!$A$747:$G$749,4,TRUE)), (IF($F$40=1, (VLOOKUP(3,Tablas!$A$747:$G$749,4,TRUE)), (IF($F$40=2, (VLOOKUP(3,Tablas!$A$747:$G$749,4,TRUE)), (VLOOKUP(3,Tablas!$A$747:$G$749,4,TRUE)))))))), (IF($F$38=4,(IF(4-$F$40=0,(VLOOKUP(2,Tablas!$A$747:$G$749,4,TRUE)), (IF(4-$F$40=1,(VLOOKUP(2,Tablas!$A$747:$G$749,4,TRUE)), (IF(4-$F$40=2, (VLOOKUP(2,Tablas!$A$747:$G$749,4,TRUE)), (VLOOKUP(3,Tablas!$A$747:$G$749,4,TRUE)))))))), (IF($F$38=3,(IF(3-$F$40=0,(VLOOKUP(1,Tablas!$A$747:$G$749,4,TRUE)), (IF(3-$F$40=1,(VLOOKUP(1,Tablas!$A$747:$G$749,4,TRUE)), (IF(3-$F$40=2, (VLOOKUP(2,Tablas!$A$747:$G$749,4,TRUE)), (VLOOKUP(3,Tablas!$A$747:$G$749,4,TRUE)))))))), (IF($F$38=2,(IF(2-$F$40=0, 0, (IF(2-$F$40=1,(VLOOKUP(1,Tablas!$A$747:$G$749,4,TRUE)), (IF(2-$F$40=2, (VLOOKUP(2,Tablas!$A$747:$G$749,4,TRUE)), 0)))))), (IF($F$38=1,(IF(1-$F$40=0, 0, (IF(1-$F$40=1,(VLOOKUP(1,Tablas!$A$747:$G$749,4,TRUE)),0)))),0)))))))))))))), (IF($F$38=0, 0, (IF($F$40>$F$38, (VLOOKUP($F$38,Tablas!$A$747:$G$749,4,TRUE)), (IF($F$38=4,(IF(4-$F$40=0, 0, (IF(4-$F$40=1, (VLOOKUP(1,Tablas!$A$747:$G$749,4,TRUE)), (IF(4-$F$40=2, (VLOOKUP(2,Tablas!$A$747:$G$749,4,TRUE)), (IF(4-$F$40=3, (VLOOKUP(3,Tablas!$A$747:$G$749,4,TRUE)), (IF(4-$F$40=4, (VLOOKUP(3,Tablas!$A$747:$G$749,4,TRUE)), 0)))))))))), (IF($F$38=5,(IF(5-$F$40=0, (VLOOKUP(1,Tablas!$A$747:$G$749,4,TRUE)), (IF(5-$F$40=1, (VLOOKUP(1,Tablas!$A$747:$G$749,4,TRUE)), (IF(5-$F$40=2, (VLOOKUP(2,Tablas!$A$747:$G$749,4,TRUE)), (IF(5-$F$40=3, (VLOOKUP(3,Tablas!$A$747:$G$749,4,TRUE)), (IF(5-$F$40=4, (VLOOKUP(3,Tablas!$A$747:$G$749,4,TRUE)), (VLOOKUP(3,Tablas!$A$747:$G$749,4,TRUE)))))))))))), (IF($F$38=6,(IF(6-$F$40=0, (VLOOKUP(2,Tablas!$A$747:$G$749,4,TRUE)), (IF(6-$F$40=1, (VLOOKUP(2,Tablas!$A$747:$G$749,4,TRUE)), (IF(6-$F$40=2, (VLOOKUP(2,Tablas!$A$747:$G$749,4,TRUE)), (IF(6-$F$40=3, (VLOOKUP(3,Tablas!$A$747:$G$749,4,TRUE)), (IF(6-$F$40=4, (VLOOKUP(3,Tablas!$A$747:$G$749,4,TRUE)), (VLOOKUP(3,Tablas!$A$747:$G$749,4,TRUE)))))))))))), (IF($F$38>6,(IF(7-$F$40=0, (VLOOKUP(3,Tablas!$A$747:$G$749,4,TRUE)), (IF(7-$F$40=1, (VLOOKUP(3,Tablas!$A$747:$G$749,4,TRUE)), (IF(7-$F$40=2, (VLOOKUP(3,Tablas!$A$747:$G$749,4,TRUE)), (IF(7-$F$40=3, (VLOOKUP(3,Tablas!$A$747:$G$749,4,TRUE)), (IF(7-$F$40=4, (VLOOKUP(3,Tablas!$A$747:$G$749,4,TRUE)), (VLOOKUP(3,Tablas!$A$747:$G$749,4,TRUE)))))))))))), (IF($F$38=3,(IF(3-$F$40=0,0, (IF(3-$F$40=1,(VLOOKUP(1,Tablas!$A$747:$G$749,4,TRUE)), (IF(3-$F$40=2, (VLOOKUP(2,Tablas!$A$747:$G$749,4,TRUE)), (VLOOKUP(3,Tablas!$A$747:$G$749,4,TRUE)))))))), (IF($F$38=2,(IF(2-$F$40=0, 0, (IF(2-$F$40=1,(VLOOKUP(1,Tablas!$A$747:$G$749,4,TRUE)), (IF(2-$F$40=2, (VLOOKUP(2,Tablas!$A$747:$G$749,4,TRUE)), 0)))))), (IF($F$38=1,(IF(1-$F$40=0, 0, (IF(1-$F$40=1,(VLOOKUP(1,Tablas!$A$747:$G$749,4,TRUE)),0)))),0))))))))))))))))))) -> 0 | I73: =IF($F$36=1, (IF($F$38=0, 0, (IF($F$40>$F$38, (VLOOKUP($F$38,Tablas!$A$747:$G$749,5,TRUE)), (IF($F$38>4,(IF($F$40=0, (VLOOKUP(3,Tablas!$A$747:$G$749,5,TRUE)), (IF($F$40=1, (VLOOKUP(3,Tablas!$A$747:$G$749,5,TRUE)), (IF($F$40=2, (VLOOKUP(3,Tablas!$A$747:$G$749,5,TRUE)), (VLOOKUP(3,Tablas!$A$747:$G$749,5,TRUE)))))))), (IF($F$38=4,(IF(4-$F$40=0,(VLOOKUP(2,Tablas!$A$747:$G$749,5,TRUE)), (IF(4-$F$40=1,(VLOOKUP(2,Tablas!$A$747:$G$749,5,TRUE)), (IF(4-$F$40=2, (VLOOKUP(2,Tablas!$A$747:$G$749,5,TRUE)), (VLOOKUP(3,Tablas!$A$747:$G$749,5,TRUE)))))))), (IF($F$38=3,(IF(3-$F$40=0,(VLOOKUP(1,Tablas!$A$747:$G$749,5,TRUE)), (IF(3-$F$40=1,(VLOOKUP(1,Tablas!$A$747:$G$749,5,TRUE)), (IF(3-$F$40=2, (VLOOKUP(2,Tablas!$A$747:$G$749,5,TRUE)), (VLOOKUP(3,Tablas!$A$747:$G$749,5,TRUE)))))))), (IF($F$38=2,(IF(2-$F$40=0, 0, (IF(2-$F$40=1,(VLOOKUP(1,Tablas!$A$747:$G$749,5,TRUE)), (IF(2-$F$40=2, (VLOOKUP(2,Tablas!$A$747:$G$749,5,TRUE)), 0)))))), (IF($F$38=1,(IF(1-$F$40=0, 0, (IF(1-$F$40=1,(VLOOKUP(1,Tablas!$A$747:$G$749,5,TRUE)),0)))),0)))))))))))))), (IF($F$38=0, 0, (IF($F$40>$F$38, (VLOOKUP($F$38,Tablas!$A$747:$G$749,5,TRUE)), (IF($F$38=4,(IF(4-$F$40=0, 0, (IF(4-$F$40=1, (VLOOKUP(1,Tablas!$A$747:$G$749,5,TRUE)), (IF(4-$F$40=2, (VLOOKUP(2,Tablas!$A$747:$G$749,5,TRUE)), (IF(4-$F$40=3, (VLOOKUP(3,Tablas!$A$747:$G$749,5,TRUE)), (IF(4-$F$40=4, (VLOOKUP(3,Tablas!$A$747:$G$749,5,TRUE)), 0)))))))))), (IF($F$38=5,(IF(5-$F$40=0, (VLOOKUP(1,Tablas!$A$747:$G$749,5,TRUE)), (IF(5-$F$40=1, (VLOOKUP(1,Tablas!$A$747:$G$749,5,TRUE)), (IF(5-$F$40=2, (VLOOKUP(2,Tablas!$A$747:$G$749,5,TRUE)), (IF(5-$F$40=3, (VLOOKUP(3,Tablas!$A$747:$G$749,5,TRUE)), (IF(5-$F$40=4, (VLOOKUP(3,Tablas!$A$747:$G$749,5,TRUE)), (VLOOKUP(3,Tablas!$A$747:$G$749,5,TRUE)))))))))))), (IF($F$38=6,(IF(6-$F$40=0, (VLOOKUP(2,Tablas!$A$747:$G$749,5,TRUE)), (IF(6-$F$40=1, (VLOOKUP(2,Tablas!$A$747:$G$749,5,TRUE)), (IF(6-$F$40=2, (VLOOKUP(2,Tablas!$A$747:$G$749,5,TRUE)), (IF(6-$F$40=3, (VLOOKUP(3,Tablas!$A$747:$G$749,5,TRUE)), (IF(6-$F$40=4, (VLOOKUP(3,Tablas!$A$747:$G$749,5,TRUE)), (VLOOKUP(3,Tablas!$A$747:$G$749,5,TRUE)))))))))))), (IF($F$38>6,(IF(7-$F$40=0, (VLOOKUP(3,Tablas!$A$747:$G$749,5,TRUE)), (IF(7-$F$40=1, (VLOOKUP(3,Tablas!$A$747:$G$749,5,TRUE)), (IF(7-$F$40=2, (VLOOKUP(3,Tablas!$A$747:$G$749,5,TRUE)), (IF(7-$F$40=3, (VLOOKUP(3,Tablas!$A$747:$G$749,5,TRUE)), (IF(7-$F$40=4, (VLOOKUP(3,Tablas!$A$747:$G$749,5,TRUE)), (VLOOKUP(3,Tablas!$A$747:$G$749,5,TRUE)))))))))))), (IF($F$38=3,(IF(3-$F$40=0,0, (IF(3-$F$40=1,(VLOOKUP(1,Tablas!$A$747:$G$749,5,TRUE)), (IF(3-$F$40=2, (VLOOKUP(2,Tablas!$A$747:$G$749,5,TRUE)), (VLOOKUP(3,Tablas!$A$747:$G$749,5,TRUE)))))))), (IF($F$38=2,(IF(2-$F$40=0, 0, (IF(2-$F$40=1,(VLOOKUP(1,Tablas!$A$747:$G$749,5,TRUE)), (IF(2-$F$40=2, (VLOOKUP(2,Tablas!$A$747:$G$749,5,TRUE)), 0)))))), (IF($F$38=1,(IF(1-$F$40=0, 0, (IF(1-$F$40=1,(VLOOKUP(1,Tablas!$A$747:$G$749,5,TRUE)),0)))),0))))))))))))))))))) -> 0 | J73: =IF($F$36=1, (IF($F$38=0, 0, (IF($F$40>$F$38, (VLOOKUP($F$38,Tablas!$A$747:$G$749,6,TRUE)), (IF($F$38>4,(IF($F$40=0, (VLOOKUP(3,Tablas!$A$747:$G$749,6,TRUE)), (IF($F$40=1, (VLOOKUP(3,Tablas!$A$747:$G$749,6,TRUE)), (IF($F$40=2, (VLOOKUP(3,Tablas!$A$747:$G$749,6,TRUE)), (VLOOKUP(3,Tablas!$A$747:$G$749,6,TRUE)))))))), (IF($F$38=4,(IF(4-$F$40=0,(VLOOKUP(2,Tablas!$A$747:$G$749,6,TRUE)), (IF(4-$F$40=1,(VLOOKUP(2,Tablas!$A$747:$G$749,6,TRUE)), (IF(4-$F$40=2, (VLOOKUP(2,Tablas!$A$747:$G$749,6,TRUE)), (VLOOKUP(3,Tablas!$A$747:$G$749,6,TRUE)))))))), (IF($F$38=3,(IF(3-$F$40=0,(VLOOKUP(1,Tablas!$A$747:$G$749,6,TRUE)), (IF(3-$F$40=1,(VLOOKUP(1,Tablas!$A$747:$G$749,6,TRUE)), (IF(3-$F$40=2, (VLOOKUP(2,Tablas!$A$747:$G$749,6,TRUE)), (VLOOKUP(3,Tablas!$A$747:$G$749,6,TRUE)))))))), (IF($F$38=2,(IF(2-$F$40=0, 0, (IF(2-$F$40=1,(VLOOKUP(1,Tablas!$A$747:$G$749,6,TRUE)), (IF(2-$F$40=2, (VLOOKUP(2,Tablas!$A$747:$G$749,6,TRUE)), 0)))))), (IF($F$38=1,(IF(1-$F$40=0, 0, (IF(1-$F$40=1,(VLOOKUP(1,Tablas!$A$747:$G$749,6,TRUE)),0)))),0)))))))))))))), (IF($F$38=0, 0, (IF($F$40>$F$38, (VLOOKUP($F$38,Tablas!$A$747:$G$749,6,TRUE)), (IF($F$38=4,(IF(4-$F$40=0, 0, (IF(4-$F$40=1, (VLOOKUP(1,Tablas!$A$747:$G$749,6,TRUE)), (IF(4-$F$40=2, (VLOOKUP(2,Tablas!$A$747:$G$749,6,TRUE)), (IF(4-$F$40=3, (VLOOKUP(3,Tablas!$A$747:$G$749,6,TRUE)), (IF(4-$F$40=4, (VLOOKUP(3,Tablas!$A$747:$G$749,6,TRUE)), 0)))))))))), (IF($F$38=5,(IF(5-$F$40=0, (VLOOKUP(1,Tablas!$A$747:$G$749,6,TRUE)), (IF(5-$F$40=1, (VLOOKUP(1,Tablas!$A$747:$G$749,6,TRUE)), (IF(5-$F$40=2, (VLOOKUP(2,Tablas!$A$747:$G$749,6,TRUE)), (IF(5-$F$40=3, (VLOOKUP(3,Tablas!$A$747:$G$749,6,TRUE)), (IF(5-$F$40=4, (VLOOKUP(3,Tablas!$A$747:$G$749,6,TRUE)), (VLOOKUP(3,Tablas!$A$747:$G$749,6,TRUE)))))))))))), (IF($F$38=6,(IF(6-$F$40=0, (VLOOKUP(2,Tablas!$A$747:$G$749,6,TRUE)), (IF(6-$F$40=1, (VLOOKUP(2,Tablas!$A$747:$G$749,6,TRUE)), (IF(6-$F$40=2, (VLOOKUP(2,Tablas!$A$747:$G$749,6,TRUE)), (IF(6-$F$40=3, (VLOOKUP(3,Tablas!$A$747:$G$749,6,TRUE)), (IF(6-$F$40=4, (VLOOKUP(3,Tablas!$A$747:$G$749,6,TRUE)), (VLOOKUP(3,Tablas!$A$747:$G$749,6,TRUE)))))))))))), (IF($F$38>6,(IF(7-$F$40=0, (VLOOKUP(3,Tablas!$A$747:$G$749,6,TRUE)), (IF(7-$F$40=1, (VLOOKUP(3,Tablas!$A$747:$G$749,6,TRUE)), (IF(7-$F$40=2, (VLOOKUP(3,Tablas!$A$747:$G$749,6,TRUE)), (IF(7-$F$40=3, (VLOOKUP(3,Tablas!$A$747:$G$749,6,TRUE)), (IF(7-$F$40=4, (VLOOKUP(3,Tablas!$A$747:$G$749,6,TRUE)), (VLOOKUP(3,Tablas!$A$747:$G$749,6,TRUE)))))))))))), (IF($F$38=3,(IF(3-$F$40=0,0, (IF(3-$F$40=1,(VLOOKUP(1,Tablas!$A$747:$G$749,6,TRUE)), (IF(3-$F$40=2, (VLOOKUP(2,Tablas!$A$747:$G$749,6,TRUE)), (VLOOKUP(3,Tablas!$A$747:$G$749,6,TRUE)))))))), (IF($F$38=2,(IF(2-$F$40=0, 0, (IF(2-$F$40=1,(VLOOKUP(1,Tablas!$A$747:$G$749,6,TRUE)), (IF(2-$F$40=2, (VLOOKUP(2,Tablas!$A$747:$G$749,6,TRUE)), 0)))))), (IF($F$38=1,(IF(1-$F$40=0, 0, (IF(1-$F$40=1,(VLOOKUP(1,Tablas!$A$747:$G$749,6,TRUE)),0)))),0))))))))))))))))))) -> 0 | K73: =IF($F$36=1, (IF($F$38=0, 0, (IF($F$40>$F$38, (VLOOKUP($F$38,Tablas!$A$747:$G$749,7,TRUE)), (IF($F$38>4,(IF($F$40=0, (VLOOKUP(3,Tablas!$A$747:$G$749,7,TRUE)), (IF($F$40=1, (VLOOKUP(3,Tablas!$A$747:$G$749,7,TRUE)), (IF($F$40=2, (VLOOKUP(3,Tablas!$A$747:$G$749,7,TRUE)), (VLOOKUP(3,Tablas!$A$747:$G$749,7,TRUE)))))))), (IF($F$38=4,(IF(4-$F$40=0,(VLOOKUP(2,Tablas!$A$747:$G$749,7,TRUE)), (IF(4-$F$40=1,(VLOOKUP(2,Tablas!$A$747:$G$749,7,TRUE)), (IF(4-$F$40=2, (VLOOKUP(2,Tablas!$A$747:$G$749,7,TRUE)), (VLOOKUP(3,Tablas!$A$747:$G$749,7,TRUE)))))))), (IF($F$38=3,(IF(3-$F$40=0,(VLOOKUP(1,Tablas!$A$747:$G$749,7,TRUE)), (IF(3-$F$40=1,(VLOOKUP(1,Tablas!$A$747:$G$749,7,TRUE)), (IF(3-$F$40=2, (VLOOKUP(2,Tablas!$A$747:$G$749,7,TRUE)), (VLOOKUP(3,Tablas!$A$747:$G$749,7,TRUE)))))))), (IF($F$38=2,(IF(2-$F$40=0, 0, (IF(2-$F$40=1,(VLOOKUP(1,Tablas!$A$747:$G$749,7,TRUE)), (IF(2-$F$40=2, (VLOOKUP(2,Tablas!$A$747:$G$749,7,TRUE)), 0)))))), (IF($F$38=1,(IF(1-$F$40=0, 0, (IF(1-$F$40=1,(VLOOKUP(1,Tablas!$A$747:$G$749,7,TRUE)),0)))),0)))))))))))))), (IF($F$38=0, 0, (IF($F$40>$F$38, (VLOOKUP($F$38,Tablas!$A$747:$G$749,7,TRUE)), (IF($F$38=4,(IF(4-$F$40=0, 0, (IF(4-$F$40=1, (VLOOKUP(1,Tablas!$A$747:$G$749,7,TRUE)), (IF(4-$F$40=2, (VLOOKUP(2,Tablas!$A$747:$G$749,7,TRUE)), (IF(4-$F$40=3, (VLOOKUP(3,Tablas!$A$747:$G$749,7,TRUE)), (IF(4-$F$40=4, (VLOOKUP(3,Tablas!$A$747:$G$749,7,TRUE)), 0)))))))))), (IF($F$38=5,(IF(5-$F$40=0, (VLOOKUP(1,Tablas!$A$747:$G$749,7,TRUE)), (IF(5-$F$40=1, (VLOOKUP(1,Tablas!$A$747:$G$749,7,TRUE)), (IF(5-$F$40=2, (VLOOKUP(2,Tablas!$A$747:$G$749,7,TRUE)), (IF(5-$F$40=3, (VLOOKUP(3,Tablas!$A$747:$G$749,7,TRUE)), (IF(5-$F$40=4, (VLOOKUP(3,Tablas!$A$747:$G$749,7,TRUE)), (VLOOKUP(3,Tablas!$A$747:$G$749,7,TRUE)))))))))))), (IF($F$38=6,(IF(6-$F$40=0, (VLOOKUP(2,Tablas!$A$747:$G$749,7,TRUE)), (IF(6-$F$40=1, (VLOOKUP(2,Tablas!$A$747:$G$749,7,TRUE)), (IF(6-$F$40=2, (VLOOKUP(2,Tablas!$A$747:$G$749,7,TRUE)), (IF(6-$F$40=3, (VLOOKUP(3,Tablas!$A$747:$G$749,7,TRUE)), (IF(6-$F$40=4, (VLOOKUP(3,Tablas!$A$747:$G$749,7,TRUE)), (VLOOKUP(3,Tablas!$A$747:$G$749,7,TRUE)))))))))))), (IF($F$38>6,(IF(7-$F$40=0, (VLOOKUP(3,Tablas!$A$747:$G$749,7,TRUE)), (IF(7-$F$40=1, (VLOOKUP(3,Tablas!$A$747:$G$749,7,TRUE)), (IF(7-$F$40=2, (VLOOKUP(3,Tablas!$A$747:$G$749,7,TRUE)), (IF(7-$F$40=3, (VLOOKUP(3,Tablas!$A$747:$G$749,7,TRUE)), (IF(7-$F$40=4, (VLOOKUP(3,Tablas!$A$747:$G$749,7,TRUE)), (VLOOKUP(3,Tablas!$A$747:$G$749,7,TRUE)))))))))))), (IF($F$38=3,(IF(3-$F$40=0,0, (IF(3-$F$40=1,(VLOOKUP(1,Tablas!$A$747:$G$749,7,TRUE)), (IF(3-$F$40=2, (VLOOKUP(2,Tablas!$A$747:$G$749,7,TRUE)), (VLOOKUP(3,Tablas!$A$747:$G$749,7,TRUE)))))))), (IF($F$38=2,(IF(2-$F$40=0, 0, (IF(2-$F$40=1,(VLOOKUP(1,Tablas!$A$747:$G$749,7,TRUE)), (IF(2-$F$40=2, (VLOOKUP(2,Tablas!$A$747:$G$749,7,TRUE)), 0)))))), (IF($F$38=1,(IF(1-$F$40=0, 0, (IF(1-$F$40=1,(VLOOKUP(1,Tablas!$A$747:$G$749,7,TRUE)),0)))),0))))))))))))))))))) -> 0
E74: Total de Prima neta | G74: =SUM(G71:G73) -> 2279 | H74: =SUM(H71:H73) -> 1997.5 | I74: =SUM(I71:I73) -> 1647.75 | J74: =SUM(J71:J73) -> 1428.5 | K74: =SUM(K71:K73) -> 1108
E75: Ajuste por variante con coaseguro fuera del país de residencia | G75: =IF('INGRESO DE DATOS'!$H$27,G74*-25%,0) -> -569.75 | H75: =IF('INGRESO DE DATOS'!$H$27,H74*-25%,0) -> -499.375 | I75: =IF('INGRESO DE DATOS'!$H$27,I74*-25%,0) -> -411.9375 | J75: =IF('INGRESO DE DATOS'!$H$27,J74*-25%,0) -> -357.125 | K75: =IF('INGRESO DE DATOS'!$H$27,K74*-25%,0) -> -277
E76: Tarifa administrativa anual | G76: 75 | H76: 75 | I76: 75 | J76: 75 | K76: 75
E77: IVA (12%) | G77: =(G74+G76)*0% -> 0 | H77: =(H74+H76)*0% -> 0 | I77: 0 | J77: 0 | K77: 0
E78: TOTAL de primera cuota | G78: =SUM(G74:G77) -> 1784.25 | H78: =SUM(H74:H77) -> 1573.125 | I78: =SUM(I74:I77) -> 1310.8125 | J78: =SUM(J74:J77) -> 1146.375 | K78: =SUM(K74:K77) -> 906
E79: Costo de tarifa trimestral 2 a 4 | G79: =SUM(G74:G75) -> 1709.25 | H79: =SUM(H74:H75) -> 1498.125 | I79: 1235.8125 | J79: 1071.375 | K79: 831
E80: TOTAL ANUAL | G80: =G78+(G79*3) -> 6912 | H80: =H78+(H79*3) -> 6067.5 | I80: 5018.25 | J80: =J78+(J79*3) -> 4360.5 | K80: 3399
E81: Ahorros en tarifas de prima para niños | G81: =IF($F$36=1,IF($F$38=0,0,IF($F$40=0,0,IF($F$40=1,(VLOOKUP(1,Tablas!$A$747:$G$749,3,TRUE)),(VLOOKUP(2,Tablas!$A$747:$G$749,3,TRUE))))), IF($F$38=0,0,IF($F$40=0,0,IF($F$40=1,(VLOOKUP(1,Tablas!$A$747:$G$749,3,TRUE)),IF($F$40=2,(VLOOKUP(2,Tablas!$A$747:$G$749,3,TRUE)), (VLOOKUP(3,Tablas!$A$747:$G$749,3,TRUE))))))) -> 0 | H81: =IF($F$36=1,IF($F$38=0,0,IF($F$40=0,0,IF($F$40=1,(VLOOKUP(1,Tablas!$A$747:$G$749,4,TRUE)),(VLOOKUP(2,Tablas!$A$747:$G$749,4,TRUE))))), IF($F$38=0,0,IF($F$40=0,0,IF($F$40=1,(VLOOKUP(1,Tablas!$A$747:$G$749,4,TRUE)),IF($F$40=2,(VLOOKUP(2,Tablas!$A$747:$G$749,4,TRUE)), (VLOOKUP(3,Tablas!$A$747:$G$749,4,TRUE))))))) -> 0 | I81: =IF($F$36=1,IF($F$38=0,0,IF($F$40=0,0,IF($F$40=1,(VLOOKUP(1,Tablas!$A$747:$G$749,5,TRUE)),(VLOOKUP(2,Tablas!$A$747:$G$749,5,TRUE))))), IF($F$38=0,0,IF($F$40=0,0,IF($F$40=1,(VLOOKUP(1,Tablas!$A$747:$G$749,5,TRUE)),IF($F$40=2,(VLOOKUP(2,Tablas!$A$747:$G$749,5,TRUE)), (VLOOKUP(3,Tablas!$A$747:$G$749,5,TRUE))))))) -> 0 | J81: =IF($F$36=1,IF($F$38=0,0,IF($F$40=0,0,IF($F$40=1,(VLOOKUP(1,Tablas!$A$747:$G$749,6,TRUE)),(VLOOKUP(2,Tablas!$A$747:$G$749,6,TRUE))))), IF($F$38=0,0,IF($F$40=0,0,IF($F$40=1,(VLOOKUP(1,Tablas!$A$747:$G$749,6,TRUE)),IF($F$40=2,(VLOOKUP(2,Tablas!$A$747:$G$749,6,TRUE)), (VLOOKUP(3,Tablas!$A$747:$G$749,6,TRUE))))))) -> 0 | K81: =IF($F$36=1,IF($F$38=0,0,IF($F$40=0,0,IF($F$40=1,(VLOOKUP(1,Tablas!$A$747:$G$749,7,TRUE)),(VLOOKUP(2,Tablas!$A$747:$G$749,7,TRUE))))), IF($F$38=0,0,IF($F$40=0,0,IF($F$40=1,(VLOOKUP(1,Tablas!$A$747:$G$749,7,TRUE)),IF($F$40=2,(VLOOKUP(2,Tablas!$A$747:$G$749,7,TRUE)), (VLOOKUP(3,Tablas!$A$747:$G$749,7,TRUE))))))) -> 0
E83: Tarifas mensuales
E84: Prima para Asegurado Titular | G84: =VLOOKUP($I$36,Tablas!$A$80:$G$146,3,TRUE) -> 850.8266667 | H84: =VLOOKUP($I$36,Tablas!$A$80:$G$146,4,TRUE) -> 745.7333333 | I84: =VLOOKUP($I$36,Tablas!$A$80:$G$146,5,TRUE) -> 615.16 | J84: =VLOOKUP($I$36,Tablas!$A$80:$G$146,6,TRUE) -> 533.3066667 | K84: =VLOOKUP($I$36,Tablas!$A$80:$G$146,7,TRUE) -> 413.6533333
E85: Prima para conyuge | G85: =IF($F$36=1,0,(VLOOKUP($I$38,Tablas!$A$80:$G$146,3,TRUE))) -> 0 | H85: =IF($F$36=1,0,(VLOOKUP($I$38,Tablas!$A$80:$G$146,4,TRUE))) -> 0 | I85: =IF($F$36=1,0,(VLOOKUP($I$38,Tablas!$A$80:$G$146,5,TRUE))) -> 0 | J85: =IF($F$36=1,0,(VLOOKUP($I$38,Tablas!$A$80:$G$146,6,TRUE))) -> 0 | K85: =IF($F$36=1,0,(VLOOKUP($I$38,Tablas!$A$80:$G$146,7,TRUE))) -> 0
E86: Prima para hijo (s) | G86: =IF($F$36=1, (IF($F$38=0, 0, (IF($F$40>$F$38, (VLOOKUP($F$38,Tablas!$A$147:$G$149,3,TRUE)), (IF($F$38>4,(IF($F$40=0, (VLOOKUP(3,Tablas!$A$147:$G$149,3,TRUE)), (IF($F$40=1, (VLOOKUP(3,Tablas!$A$147:$G$149,3,TRUE)), (IF($F$40=2, (VLOOKUP(3,Tablas!$A$147:$G$149,3,TRUE)), (VLOOKUP(3,Tablas!$A$147:$G$149,3,TRUE)))))))), (IF($F$38=4,(IF(4-$F$40=0,(VLOOKUP(2,Tablas!$A$147:$G$149,3,TRUE)), (IF(4-$F$40=1,(VLOOKUP(2,Tablas!$A$147:$G$149,3,TRUE)), (IF(4-$F$40=2, (VLOOKUP(2,Tablas!$A$147:$G$149,3,TRUE)), (VLOOKUP(3,Tablas!$A$147:$G$149,3,TRUE)))))))), (IF($F$38=3,(IF(3-$F$40=0,(VLOOKUP(1,Tablas!$A$147:$G$149,3,TRUE)), (IF(3-$F$40=1,(VLOOKUP(1,Tablas!$A$147:$G$149,3,TRUE)), (IF(3-$F$40=2, (VLOOKUP(2,Tablas!$A$147:$G$149,3,TRUE)), (VLOOKUP(3,Tablas!$A$147:$G$149,3,TRUE)))))))), (IF($F$38=2,(IF(2-$F$40=0, 0, (IF(2-$F$40=1,(VLOOKUP(1,Tablas!$A$147:$G$149,3,TRUE)), (IF(2-$F$40=2, (VLOOKUP(2,Tablas!$A$147:$G$149,3,TRUE)), 0)))))), (IF($F$38=1,(IF(1-$F$40=0, 0, (IF(1-$F$40=1,(VLOOKUP(1,Tablas!$A$147:$G$149,3,TRUE)),0)))),0)))))))))))))), (IF($F$38=0, 0, (IF($F$40>$F$38, (VLOOKUP($F$38,Tablas!$A$147:$G$149,3,TRUE)), (IF($F$38=4,(IF(4-$F$40=0, 0, (IF(4-$F$40=1, (VLOOKUP(1,Tablas!$A$147:$G$149,3,TRUE)), (IF(4-$F$40=2, (VLOOKUP(2,Tablas!$A$147:$G$149,3,TRUE)), (IF(4-$F$40=3, (VLOOKUP(3,Tablas!$A$147:$G$149,3,TRUE)), (IF(4-$F$40=4, (VLOOKUP(3,Tablas!$A$147:$G$149,3,TRUE)), 0)))))))))), (IF($F$38=5,(IF(5-$F$40=0, (VLOOKUP(1,Tablas!$A$147:$G$149,3,TRUE)), (IF(5-$F$40=1, (VLOOKUP(1,Tablas!$A$147:$G$149,3,TRUE)), (IF(5-$F$40=2, (VLOOKUP(2,Tablas!$A$147:$G$149,3,TRUE)), (IF(5-$F$40=3, (VLOOKUP(3,Tablas!$A$147:$G$149,3,TRUE)), (IF(5-$F$40=4, (VLOOKUP(3,Tablas!$A$147:$G$149,3,TRUE)), (VLOOKUP(3,Tablas!$A$147:$G$149,3,TRUE)))))))))))), (IF($F$38=6,(IF(6-$F$40=0, (VLOOKUP(2,Tablas!$A$147:$G$149,3,TRUE)), (IF(6-$F$40=1, (VLOOKUP(2,Tablas!$A$147:$G$149,3,TRUE)), (IF(6-$F$40=2, (VLOOKUP(2,Tablas!$A$147:$G$149,3,TRUE)), (IF(6-$F$40=3, (VLOOKUP(3,Tablas!$A$147:$G$149,3,TRUE)), (IF(6-$F$40=4, (VLOOKUP(3,Tablas!$A$147:$G$149,3,TRUE)), (VLOOKUP(3,Tablas!$A$147:$G$149,3,TRUE)))))))))))), (IF($F$38>6,(IF(7-$F$40=0, (VLOOKUP(3,Tablas!$A$147:$G$149,3,TRUE)), (IF(7-$F$40=1, (VLOOKUP(3,Tablas!$A$147:$G$149,3,TRUE)), (IF(7-$F$40=2, (VLOOKUP(3,Tablas!$A$147:$G$149,3,TRUE)), (IF(7-$F$40=3, (VLOOKUP(3,Tablas!$A$147:$G$149,3,TRUE)), (IF(7-$F$40=4, (VLOOKUP(3,Tablas!$A$147:$G$149,3,TRUE)), (VLOOKUP(3,Tablas!$A$147:$G$149,3,TRUE)))))))))))), (IF($F$38=3,(IF(3-$F$40=0,0, (IF(3-$F$40=1,(VLOOKUP(1,Tablas!$A$147:$G$149,3,TRUE)), (IF(3-$F$40=2, (VLOOKUP(2,Tablas!$A$147:$G$149,3,TRUE)), (VLOOKUP(3,Tablas!$A$147:$G$149,3,TRUE)))))))), (IF($F$38=2,(IF(2-$F$40=0, 0, (IF(2-$F$40=1,(VLOOKUP(1,Tablas!$A$147:$G$149,3,TRUE)), (IF(2-$F$40=2, (VLOOKUP(2,Tablas!$A$147:$G$149,3,TRUE)), 0)))))), (IF($F$38=1,(IF(1-$F$40=0, 0, (IF(1-$F$40=1,(VLOOKUP(1,Tablas!$A$147:$G$149,3,TRUE)),0)))),0))))))))))))))))))) -> 0 | H86: =IF($F$36=1, (IF($F$38=0, 0, (IF($F$40>$F$38, (VLOOKUP($F$38,Tablas!$A$147:$G$149,4,TRUE)), (IF($F$38>4,(IF($F$40=0, (VLOOKUP(3,Tablas!$A$147:$G$149,4,TRUE)), (IF($F$40=1, (VLOOKUP(3,Tablas!$A$147:$G$149,4,TRUE)), (IF($F$40=2, (VLOOKUP(3,Tablas!$A$147:$G$149,4,TRUE)), (VLOOKUP(3,Tablas!$A$147:$G$149,4,TRUE)))))))), (IF($F$38=4,(IF(4-$F$40=0,(VLOOKUP(2,Tablas!$A$147:$G$149,4,TRUE)), (IF(4-$F$40=1,(VLOOKUP(2,Tablas!$A$147:$G$149,4,TRUE)), (IF(4-$F$40=2, (VLOOKUP(2,Tablas!$A$147:$G$149,4,TRUE)), (VLOOKUP(3,Tablas!$A$147:$G$149,4,TRUE)))))))), (IF($F$38=3,(IF(3-$F$40=0,(VLOOKUP(1,Tablas!$A$147:$G$149,4,TRUE)), (IF(3-$F$40=1,(VLOOKUP(1,Tablas!$A$147:$G$149,4,TRUE)), (IF(3-$F$40=2, (VLOOKUP(2,Tablas!$A$147:$G$149,4,TRUE)), (VLOOKUP(3,Tablas!$A$147:$G$149,4,TRUE)))))))), (IF($F$38=2,(IF(2-$F$40=0, 0, (IF(2-$F$40=1,(VLOOKUP(1,Tablas!$A$147:$G$149,4,TRUE)), (IF(2-$F$40=2, (VLOOKUP(2,Tablas!$A$147:$G$149,4,TRUE)), 0)))))), (IF($F$38=1,(IF(1-$F$40=0, 0, (IF(1-$F$40=1,(VLOOKUP(1,Tablas!$A$147:$G$149,4,TRUE)),0)))),0)))))))))))))), (IF($F$38=0, 0, (IF($F$40>$F$38, (VLOOKUP($F$38,Tablas!$A$147:$G$149,4,TRUE)), (IF($F$38=4,(IF(4-$F$40=0, 0, (IF(4-$F$40=1, (VLOOKUP(1,Tablas!$A$147:$G$149,4,TRUE)), (IF(4-$F$40=2, (VLOOKUP(2,Tablas!$A$147:$G$149,4,TRUE)), (IF(4-$F$40=3, (VLOOKUP(3,Tablas!$A$147:$G$149,4,TRUE)), (IF(4-$F$40=4, (VLOOKUP(3,Tablas!$A$147:$G$149,4,TRUE)), 0)))))))))), (IF($F$38=5,(IF(5-$F$40=0, (VLOOKUP(1,Tablas!$A$147:$G$149,4,TRUE)), (IF(5-$F$40=1, (VLOOKUP(1,Tablas!$A$147:$G$149,4,TRUE)), (IF(5-$F$40=2, (VLOOKUP(2,Tablas!$A$147:$G$149,4,TRUE)), (IF(5-$F$40=3, (VLOOKUP(3,Tablas!$A$147:$G$149,4,TRUE)), (IF(5-$F$40=4, (VLOOKUP(3,Tablas!$A$147:$G$149,4,TRUE)), (VLOOKUP(3,Tablas!$A$147:$G$149,4,TRUE)))))))))))), (IF($F$38=6,(IF(6-$F$40=0, (VLOOKUP(2,Tablas!$A$147:$G$149,4,TRUE)), (IF(6-$F$40=1, (VLOOKUP(2,Tablas!$A$147:$G$149,4,TRUE)), (IF(6-$F$40=2, (VLOOKUP(2,Tablas!$A$147:$G$149,4,TRUE)), (IF(6-$F$40=3, (VLOOKUP(3,Tablas!$A$147:$G$149,4,TRUE)), (IF(6-$F$40=4, (VLOOKUP(3,Tablas!$A$147:$G$149,4,TRUE)), (VLOOKUP(3,Tablas!$A$147:$G$149,4,TRUE)))))))))))), (IF($F$38>6,(IF(7-$F$40=0, (VLOOKUP(3,Tablas!$A$147:$G$149,4,TRUE)), (IF(7-$F$40=1, (VLOOKUP(3,Tablas!$A$147:$G$149,4,TRUE)), (IF(7-$F$40=2, (VLOOKUP(3,Tablas!$A$147:$G$149,4,TRUE)), (IF(7-$F$40=3, (VLOOKUP(3,Tablas!$A$147:$G$149,4,TRUE)), (IF(7-$F$40=4, (VLOOKUP(3,Tablas!$A$147:$G$149,4,TRUE)), (VLOOKUP(3,Tablas!$A$147:$G$149,4,TRUE)))))))))))), (IF($F$38=3,(IF(3-$F$40=0,0, (IF(3-$F$40=1,(VLOOKUP(1,Tablas!$A$147:$G$149,4,TRUE)), (IF(3-$F$40=2, (VLOOKUP(2,Tablas!$A$147:$G$149,4,TRUE)), (VLOOKUP(3,Tablas!$A$147:$G$149,4,TRUE)))))))), (IF($F$38=2,(IF(2-$F$40=0, 0, (IF(2-$F$40=1,(VLOOKUP(1,Tablas!$A$147:$G$149,4,TRUE)), (IF(2-$F$40=2, (VLOOKUP(2,Tablas!$A$147:$G$149,4,TRUE)), 0)))))), (IF($F$38=1,(IF(1-$F$40=0, 0, (IF(1-$F$40=1,(VLOOKUP(1,Tablas!$A$147:$G$149,4,TRUE)),0)))),0))))))))))))))))))) -> 0 | I86: =IF($F$36=1, (IF($F$38=0, 0, (IF($F$40>$F$38, (VLOOKUP($F$38,Tablas!$A$147:$G$149,5,TRUE)), (IF($F$38>4,(IF($F$40=0, (VLOOKUP(3,Tablas!$A$147:$G$149,5,TRUE)), (IF($F$40=1, (VLOOKUP(3,Tablas!$A$147:$G$149,5,TRUE)), (IF($F$40=2, (VLOOKUP(3,Tablas!$A$147:$G$149,5,TRUE)), (VLOOKUP(3,Tablas!$A$147:$G$149,5,TRUE)))))))), (IF($F$38=4,(IF(4-$F$40=0,(VLOOKUP(2,Tablas!$A$147:$G$149,5,TRUE)), (IF(4-$F$40=1,(VLOOKUP(2,Tablas!$A$147:$G$149,5,TRUE)), (IF(4-$F$40=2, (VLOOKUP(2,Tablas!$A$147:$G$149,5,TRUE)), (VLOOKUP(3,Tablas!$A$147:$G$149,5,TRUE)))))))), (IF($F$38=3,(IF(3-$F$40=0,(VLOOKUP(1,Tablas!$A$147:$G$149,5,TRUE)), (IF(3-$F$40=1,(VLOOKUP(1,Tablas!$A$147:$G$149,5,TRUE)), (IF(3-$F$40=2, (VLOOKUP(2,Tablas!$A$147:$G$149,5,TRUE)), (VLOOKUP(3,Tablas!$A$147:$G$149,5,TRUE)))))))), (IF($F$38=2,(IF(2-$F$40=0, 0, (IF(2-$F$40=1,(VLOOKUP(1,Tablas!$A$147:$G$149,5,TRUE)), (IF(2-$F$40=2, (VLOOKUP(2,Tablas!$A$147:$G$149,5,TRUE)), 0)))))), (IF($F$38=1,(IF(1-$F$40=0, 0, (IF(1-$F$40=1,(VLOOKUP(1,Tablas!$A$147:$G$149,5,TRUE)),0)))),0)))))))))))))), (IF($F$38=0, 0, (IF($F$40>$F$38, (VLOOKUP($F$38,Tablas!$A$147:$G$149,5,TRUE)), (IF($F$38=4,(IF(4-$F$40=0, 0, (IF(4-$F$40=1, (VLOOKUP(1,Tablas!$A$147:$G$149,5,TRUE)), (IF(4-$F$40=2, (VLOOKUP(2,Tablas!$A$147:$G$149,5,TRUE)), (IF(4-$F$40=3, (VLOOKUP(3,Tablas!$A$147:$G$149,5,TRUE)), (IF(4-$F$40=4, (VLOOKUP(3,Tablas!$A$147:$G$149,5,TRUE)), 0)))))))))), (IF($F$38=5,(IF(5-$F$40=0, (VLOOKUP(1,Tablas!$A$147:$G$149,5,TRUE)), (IF(5-$F$40=1, (VLOOKUP(1,Tablas!$A$147:$G$149,5,TRUE)), (IF(5-$F$40=2, (VLOOKUP(2,Tablas!$A$147:$G$149,5,TRUE)), (IF(5-$F$40=3, (VLOOKUP(3,Tablas!$A$147:$G$149,5,TRUE)), (IF(5-$F$40=4, (VLOOKUP(3,Tablas!$A$147:$G$149,5,TRUE)), (VLOOKUP(3,Tablas!$A$147:$G$149,5,TRUE)))))))))))), (IF($F$38=6,(IF(6-$F$40=0, (VLOOKUP(2,Tablas!$A$147:$G$149,5,TRUE)), (IF(6-$F$40=1, (VLOOKUP(2,Tablas!$A$147:$G$149,5,TRUE)), (IF(6-$F$40=2, (VLOOKUP(2,Tablas!$A$147:$G$149,5,TRUE)), (IF(6-$F$40=3, (VLOOKUP(3,Tablas!$A$147:$G$149,5,TRUE)), (IF(6-$F$40=4, (VLOOKUP(3,Tablas!$A$147:$G$149,5,TRUE)), (VLOOKUP(3,Tablas!$A$147:$G$149,5,TRUE)))))))))))), (IF($F$38>6,(IF(7-$F$40=0, (VLOOKUP(3,Tablas!$A$147:$G$149,5,TRUE)), (IF(7-$F$40=1, (VLOOKUP(3,Tablas!$A$147:$G$149,5,TRUE)), (IF(7-$F$40=2, (VLOOKUP(3,Tablas!$A$147:$G$149,5,TRUE)), (IF(7-$F$40=3, (VLOOKUP(3,Tablas!$A$147:$G$149,5,TRUE)), (IF(7-$F$40=4, (VLOOKUP(3,Tablas!$A$147:$G$149,5,TRUE)), (VLOOKUP(3,Tablas!$A$147:$G$149,5,TRUE)))))))))))), (IF($F$38=3,(IF(3-$F$40=0,0, (IF(3-$F$40=1,(VLOOKUP(1,Tablas!$A$147:$G$149,5,TRUE)), (IF(3-$F$40=2, (VLOOKUP(2,Tablas!$A$147:$G$149,5,TRUE)), (VLOOKUP(3,Tablas!$A$147:$G$149,5,TRUE)))))))), (IF($F$38=2,(IF(2-$F$40=0, 0, (IF(2-$F$40=1,(VLOOKUP(1,Tablas!$A$147:$G$149,5,TRUE)), (IF(2-$F$40=2, (VLOOKUP(2,Tablas!$A$147:$G$149,5,TRUE)), 0)))))), (IF($F$38=1,(IF(1-$F$40=0, 0, (IF(1-$F$40=1,(VLOOKUP(1,Tablas!$A$147:$G$149,5,TRUE)),0)))),0))))))))))))))))))) -> 0 | J86: =IF($F$36=1, (IF($F$38=0, 0, (IF($F$40>$F$38, (VLOOKUP($F$38,Tablas!$A$147:$G$149,6,TRUE)), (IF($F$38>4,(IF($F$40=0, (VLOOKUP(3,Tablas!$A$147:$G$149,6,TRUE)), (IF($F$40=1, (VLOOKUP(3,Tablas!$A$147:$G$149,6,TRUE)), (IF($F$40=2, (VLOOKUP(3,Tablas!$A$147:$G$149,6,TRUE)), (VLOOKUP(3,Tablas!$A$147:$G$149,6,TRUE)))))))), (IF($F$38=4,(IF(4-$F$40=0,(VLOOKUP(2,Tablas!$A$147:$G$149,6,TRUE)), (IF(4-$F$40=1,(VLOOKUP(2,Tablas!$A$147:$G$149,6,TRUE)), (IF(4-$F$40=2, (VLOOKUP(2,Tablas!$A$147:$G$149,6,TRUE)), (VLOOKUP(3,Tablas!$A$147:$G$149,6,TRUE)))))))), (IF($F$38=3,(IF(3-$F$40=0,(VLOOKUP(1,Tablas!$A$147:$G$149,6,TRUE)), (IF(3-$F$40=1,(VLOOKUP(1,Tablas!$A$147:$G$149,6,TRUE)), (IF(3-$F$40=2, (VLOOKUP(2,Tablas!$A$147:$G$149,6,TRUE)), (VLOOKUP(3,Tablas!$A$147:$G$149,6,TRUE)))))))), (IF($F$38=2,(IF(2-$F$40=0, 0, (IF(2-$F$40=1,(VLOOKUP(1,Tablas!$A$147:$G$149,6,TRUE)), (IF(2-$F$40=2, (VLOOKUP(2,Tablas!$A$147:$G$149,6,TRUE)), 0)))))), (IF($F$38=1,(IF(1-$F$40=0, 0, (IF(1-$F$40=1,(VLOOKUP(1,Tablas!$A$147:$G$149,6,TRUE)),0)))),0)))))))))))))), (IF($F$38=0, 0, (IF($F$40>$F$38, (VLOOKUP($F$38,Tablas!$A$147:$G$149,6,TRUE)), (IF($F$38=4,(IF(4-$F$40=0, 0, (IF(4-$F$40=1, (VLOOKUP(1,Tablas!$A$147:$G$149,6,TRUE)), (IF(4-$F$40=2, (VLOOKUP(2,Tablas!$A$147:$G$149,6,TRUE)), (IF(4-$F$40=3, (VLOOKUP(3,Tablas!$A$147:$G$149,6,TRUE)), (IF(4-$F$40=4, (VLOOKUP(3,Tablas!$A$147:$G$149,6,TRUE)), 0)))))))))), (IF($F$38=5,(IF(5-$F$40=0, (VLOOKUP(1,Tablas!$A$147:$G$149,6,TRUE)), (IF(5-$F$40=1, (VLOOKUP(1,Tablas!$A$147:$G$149,6,TRUE)), (IF(5-$F$40=2, (VLOOKUP(2,Tablas!$A$147:$G$149,6,TRUE)), (IF(5-$F$40=3, (VLOOKUP(3,Tablas!$A$147:$G$149,6,TRUE)), (IF(5-$F$40=4, (VLOOKUP(3,Tablas!$A$147:$G$149,6,TRUE)), (VLOOKUP(3,Tablas!$A$147:$G$149,6,TRUE)))))))))))), (IF($F$38=6,(IF(6-$F$40=0, (VLOOKUP(2,Tablas!$A$147:$G$149,6,TRUE)), (IF(6-$F$40=1, (VLOOKUP(2,Tablas!$A$147:$G$149,6,TRUE)), (IF(6-$F$40=2, (VLOOKUP(2,Tablas!$A$147:$G$149,6,TRUE)), (IF(6-$F$40=3, (VLOOKUP(3,Tablas!$A$147:$G$149,6,TRUE)), (IF(6-$F$40=4, (VLOOKUP(3,Tablas!$A$147:$G$149,6,TRUE)), (VLOOKUP(3,Tablas!$A$147:$G$149,6,TRUE)))))))))))), (IF($F$38>6,(IF(7-$F$40=0, (VLOOKUP(3,Tablas!$A$147:$G$149,6,TRUE)), (IF(7-$F$40=1, (VLOOKUP(3,Tablas!$A$147:$G$149,6,TRUE)), (IF(7-$F$40=2, (VLOOKUP(3,Tablas!$A$147:$G$149,6,TRUE)), (IF(7-$F$40=3, (VLOOKUP(3,Tablas!$A$147:$G$149,6,TRUE)), (IF(7-$F$40=4, (VLOOKUP(3,Tablas!$A$147:$G$149,6,TRUE)), (VLOOKUP(3,Tablas!$A$147:$G$149,6,TRUE)))))))))))), (IF($F$38=3,(IF(3-$F$40=0,0, (IF(3-$F$40=1,(VLOOKUP(1,Tablas!$A$147:$G$149,6,TRUE)), (IF(3-$F$40=2, (VLOOKUP(2,Tablas!$A$147:$G$149,6,TRUE)), (VLOOKUP(3,Tablas!$A$147:$G$149,6,TRUE)))))))), (IF($F$38=2,(IF(2-$F$40=0, 0, (IF(2-$F$40=1,(VLOOKUP(1,Tablas!$A$147:$G$149,6,TRUE)), (IF(2-$F$40=2, (VLOOKUP(2,Tablas!$A$147:$G$149,6,TRUE)), 0)))))), (IF($F$38=1,(IF(1-$F$40=0, 0, (IF(1-$F$40=1,(VLOOKUP(1,Tablas!$A$147:$G$149,6,TRUE)),0)))),0))))))))))))))))))) -> 0 | K86: =_xlfn.SINGLE(IF($F$36=1, (IF($F$38=0, 0, (IF($F$40>$F$38, (VLOOKUP($F$38,Tablas!$A$147:$G$149,7,TRUE)), (IF($F$38>4,(IF($F$40=0, (VLOOKUP(3,Tablas!$A$147:$G$149,7,TRUE)), (IF($F$40=1, (VLOOKUP(3,Tablas!$A$147:$G$149,7,TRUE)), (IF($F$40=2, (VLOOKUP(3,Tablas!$A$147:$G$149,7,TRUE)), (VLOOKUP(3,Tablas!$A$147:$G$149,7,TRUE)))))))), (IF($F$38=4,(IF(4-$F$40=0,(VLOOKUP(2,Tablas!$A$147:$G$149,7,TRUE)), (IF(4-$F$40=1,(VLOOKUP(2,Tablas!$A$147:$G$149,7,TRUE)), (IF(4-$F$40=2, (VLOOKUP(2,Tablas!$A$147:$G$149,7,TRUE)), (VLOOKUP(3,Tablas!$A$147:$G$149,7,TRUE)))))))), (IF($F$38=3,(IF(3-$F$40=0,(VLOOKUP(1,Tablas!$A$147:$G$149,7,TRUE)), (IF(3-$F$40=1,(VLOOKUP(1,Tablas!$A$147:$G$149,7,TRUE)), (IF(3-$F$40=2, (VLOOKUP(2,Tablas!$A$147:$G$149,7,TRUE)), (VLOOKUP(3,Tablas!$A$147:$G$149,7,TRUE)))))))), (IF($F$38=2,(IF(2-$F$40=0, 0, (IF(2-$F$40=1,(VLOOKUP(1,Tablas!$A$147:$G$149,7,TRUE)), (IF(2-$F$40=2, (VLOOKUP(2,Tablas!$A$147:$G$149,7,TRUE)), 0)))))), (IF($F$38=1,(IF(1-$F$40=0, 0, (IF(1-$F$40=1,(VLOOKUP(1,Tablas!$A$147:$G$149,7,TRUE)),0)))),0)))))))))))))), (IF($F$38=0, 0, (IF($F$40>$F$38, (VLOOKUP($F$38,Tablas!$A$147:$G$149,7,TRUE)), (IF($F$38=4,(IF(4-$F$40=0, 0, (IF(4-$F$40=1, (VLOOKUP(1,Tablas!$A$147:$G$149,7,TRUE)), (IF(4-$F$40=2, (VLOOKUP(2,Tablas!$A$147:$G$149,7,TRUE)), (IF(4-$F$40=3, (VLOOKUP(3,Tablas!$A$147:$G$149,7,TRUE)), (IF(4-$F$40=4, (VLOOKUP(3,Tablas!$A$147:$G$149,7,TRUE)), 0)))))))))), (IF($F$38=5,(IF(5-$F$40=0, (VLOOKUP(1,Tablas!$A$147:$G$149,7,TRUE)), (IF(5-$F$40=1, (VLOOKUP(1,Tablas!$A$147:$G$149,7,TRUE)), (IF(5-$F$40=2, (VLOOKUP(2,Tablas!$A$147:$G$149,7,TRUE)), (IF(5-$F$40=3, (VLOOKUP(3,Tablas!$A$147:$G$149,7,TRUE)), (IF(5-$F$40=4, (VLOOKUP(3,Tablas!$A$147:$G$149,7,TRUE)), (VLOOKUP(3,Tablas!$A$147:$G$149,7,TRUE)))))))))))), (IF($F$38=6,(IF(6-$F$40=0, (VLOOKUP(2,Tablas!$A$147:$G$149,7,TRUE)), (IF(6-$F$40=1, (VLOOKUP(2,Tablas!$A$147:$G$149,7,TRUE)), (IF(6-$F$40=2, (VLOOKUP(2,Tablas!$A$147:$G$149,7,TRUE)), (IF(6-$F$40=3, (VLOOKUP(3,Tablas!$A$147:$G$149,7,TRUE)), (IF(6-$F$40=4, (VLOOKUP(3,Tablas!$A$147:$G$149,7,TRUE)), (VLOOKUP(3,Tablas!$A$147:$G$149,7,TRUE)))))))))))), (IF($F$38>6,(IF(7-$F$40=0, (VLOOKUP(3,Tablas!$A$147:$G$149,7,TRUE)),a (IF(7-$F$40=1, (VLOOKUP(3,Tablas!$A$147:$G$149,7,TRUE)), (IF(7-$F$40=2, (VLOOKUP(3,Tablas!$A$147:$G$149,7,TRUE)), (IF(7-$F$40=3, (VLOOKUP(3,Tablas!$A$147:$G$149,7,TRUE)), (IF(7-$F$40=4, (VLOOKUP(3,Tablas!$A$147:$G$149,7,TRUE)), (VLOOKUP(3,Tablas!$A$147:$G$149,7,TRUE)))))))))))), (IF($F$38=3,(IF(3-$F$40=0,0, (IF(3-$F$40=1,(VLOOKUP(1,Tablas!$A$147:$G$149,7,TRUE)), (IF(3-$F$40=2, (VLOOKUP(2,Tablas!$A$147:$G$149,7,TRUE)), (VLOOKUP(3,Tablas!$A$147:$G$149,7,TRUE)))))))), (IF($F$38=2,(IF(2-$F$40=0, 0, (IF(2-$F$40=1,(VLOOKUP(1,Tablas!$A$147:$G$149,7,TRUE)), (IF(2-$F$40=2, (VLOOKUP(2,Tablas!$A$147:$G$149,7,TRUE)), 0)))))), (IF($F$38=1,(IF(1-$F$40=0, 0, (IF(1-$F$40=1,(VLOOKUP(1,Tablas!$A$147:$G$149,7,TRUE)),0)))),0)))))))))))))))))))) -> 0
E87: Total de Prima neta | G87: =SUM(G84:G86) -> 850.8266667 | H87: =SUM(H84:H86) -> 745.7333333 | I87: =SUM(I84:I86) -> 615.16 | J87: =SUM(J84:J86) -> 533.3066667 | K87: =SUM(K84:K86) -> 413.6533333
E88: Ajuste por variante con coaseguro fuera del país de residencia | G88: =IF('INGRESO DE DATOS'!$H$27,G87*-25%,0) -> -212.7066667 | H88: =IF('INGRESO DE DATOS'!$H$27,H87*-25%,0) -> -186.4333333 | I88: =IF('INGRESO DE DATOS'!$H$27,I87*-25%,0) -> -153.79 | J88: =IF('INGRESO DE DATOS'!$H$27,J87*-25%,0) -> -133.3266667 | K88: =IF('INGRESO DE DATOS'!$H$27,K87*-25%,0) -> -103.4133333
E89: Tarifa administrativa anual | G89: 75 | H89: 75 | I89: 75 | J89: 75 | K89: 75
E90: IVA (12%) | G90: =(G87+G89)*0% -> 0 | H90: =(H87+H89)*0% -> 0 | I90: 0 | J90: 0 | K90: 0
E91: TOTAL de primera cuota | G91: =SUM(G87:G90) -> 713.12 | H91: =SUM(H87:H90) -> 634.3 | I91: =SUM(I87:I90) -> 536.37 | J91: =SUM(J87:J90) -> 474.98 | K91: =SUM(K87:K90) -> 385.24
E92: Costo de tarifa mensual 2 a 12 | G92: =SUM(G87:G88) -> 638.12 | H92: =SUM(H87:H88) -> 559.3 | I92: 461.37 | J92: 399.98 | K92: 310.24
E93: TOTAL ANUAL | G93: =G91+(G92*11) -> 7732.44 | H93: =H91+(H92*11) -> 6786.6 | I93: =I91+(I92*11) -> 5611.44 | J93: =J91+(J92*11) -> 4874.76 | K93: =K91+(K92*11) -> 3797.88
E94: Ahorros en tarifas de prima para niños | G94: =IF($F$36=1,IF($F$38=0,0,IF($F$40=0,0,IF($F$40=1,(VLOOKUP(1,Tablas!$A$147:$G$149,3,TRUE)),(VLOOKUP(2,Tablas!$A$147:$G$149,3,TRUE))))), IF($F$38=0,0,IF($F$40=0,0,IF($F$40=1,(VLOOKUP(1,Tablas!$A$147:$G$149,3,TRUE)),IF($F$40=2,(VLOOKUP(2,Tablas!$A$147:$G$149,3,TRUE)), (VLOOKUP(3,Tablas!$A$147:$G$149,3,TRUE))))))) -> 0 | H94: =IF($F$36=1,IF($F$38=0,0,IF($F$40=0,0,IF($F$40=1,(VLOOKUP(1,Tablas!$A$147:$G$149,4,TRUE)),(VLOOKUP(2,Tablas!$A$147:$G$149,4,TRUE))))), IF($F$38=0,0,IF($F$40=0,0,IF($F$40=1,(VLOOKUP(1,Tablas!$A$147:$G$149,4,TRUE)),IF($F$40=2,(VLOOKUP(2,Tablas!$A$147:$G$149,4,TRUE)), (VLOOKUP(3,Tablas!$A$147:$G$149,4,TRUE))))))) -> 0 | I94: =IF($F$36=1,IF($F$38=0,0,IF($F$40=0,0,IF($F$40=1,(VLOOKUP(1,Tablas!$A$147:$G$149,5,TRUE)),(VLOOKUP(2,Tablas!$A$147:$G$149,5,TRUE))))), IF($F$38=0,0,IF($F$40=0,0,IF($F$40=1,(VLOOKUP(1,Tablas!$A$147:$G$149,5,TRUE)),IF($F$40=2,(VLOOKUP(2,Tablas!$A$147:$G$149,5,TRUE)), (VLOOKUP(3,Tablas!$A$147:$G$149,5,TRUE))))))) -> 0 | J94: =IF($F$36=1,IF($F$38=0,0,IF($F$40=0,0,IF($F$40=1,(VLOOKUP(1,Tablas!$A$147:$G$149,6,TRUE)),(VLOOKUP(2,Tablas!$A$147:$G$149,6,TRUE))))), IF($F$38=0,0,IF($F$40=0,0,IF($F$40=1,(VLOOKUP(1,Tablas!$A$147:$G$149,6,TRUE)),IF($F$40=2,(VLOOKUP(2,Tablas!$A$147:$G$149,6,TRUE)), (VLOOKUP(3,Tablas!$A$147:$G$149,6,TRUE))))))) -> 0 | K94: =IF($F$36=1,IF($F$38=0,0,IF($F$40=0,0,IF($F$40=1,(VLOOKUP(1,Tablas!$A$147:$G$149,7,TRUE)),(VLOOKUP(2,Tablas!$A$147:$G$149,7,TRUE))))), IF($F$38=0,0,IF($F$40=0,0,IF($F$40=1,(VLOOKUP(1,Tablas!$A$147:$G$149,7,TRUE)),IF($F$40=2,(VLOOKUP(2,Tablas!$A$147:$G$149,7,TRUE)), (VLOOKUP(3,Tablas!$A$147:$G$149,7,TRUE))))))) -> 0
E96: Tarifas en US $ - Efectivas a partir del 1ro de enero de 2021
E97: Este presupuesto solamente tiene carácter informativo y en ningún momento expresa compromiso legal para suministrarle cobertura de seguro. La emisión de una póliza de seguro Bupa está sujeta a todas las evaluaciones de riesgo por parte de Bupa y a la recepción de todos los pagos de prima requeridos.

Sheet Global Premier
A32: GLOBAL PREMIER HEALTH PLAN | D32: Nombre del Asegurado Titular | F32: =+'INGRESO DE DATOS'!$D$21 -> NOMBRE COMPLETO
D34: Número de adultos en la póliza | F34: =+'INGRESO DE DATOS'!$D$23 -> 1 | H34: Edad del Asegurado Titular | I34: =+'INGRESO DE DATOS'!$D$25 -> 35
D36: Número de niños en la póliza | F36: =+'INGRESO DE DATOS'!$H$23 -> 0 | H36: Edad del/la conyuge | I36: =+'INGRESO DE DATOS'!$H$25 -> 46
F38: Fecha de la cotización: | H38: =NOW() -> 2021-11-08T11:55:45.700
H39: FALSE
E40: Deducibles | G40: PLAN 1 | H40: PLAN 2 | I40: PLAN 3 | J40: PLAN 4
E41: En el país de residencia | G41: 250 | H41: 2000 | I41: 5000 | J41: 10000
E42: Fuera del país de residencia | G42: 5000 | H42: 2000 | I42: 5000 | J42: 10000
E44: Tarifas anuales
E45: Prima para Asegurado Titular | G45: =(VLOOKUP($I$34,Tablas!$A$155:$G$221,3,TRUE)) -> 4765.6 | H45: =(VLOOKUP($I$34,Tablas!$A$155:$G$221,4,TRUE)) -> 4326.4 | I45: =(VLOOKUP($I$34,Tablas!$A$155:$G$221,5,TRUE)) -> 3173.6 | J45: =(VLOOKUP($I$34,Tablas!$A$155:$G$221,6,TRUE)) -> 2360
E46: Prima para conyuge | G46: =(IF($F$34=1,0,(VLOOKUP($I$36,Tablas!$A$155:$G$221,3,TRUE)))) -> 0 | H46: =(IF($F$34=1,0,(VLOOKUP($I$36,Tablas!$A$155:$G$221,4,TRUE)))) -> 0 | I46: =(IF($F$34=1,0,(VLOOKUP($I$36,Tablas!$A$155:$G$221,5,TRUE)))) -> 0 | J46: =(IF($F$34=1,0,(VLOOKUP($I$36,Tablas!$A$155:$G$221,6,TRUE)))) -> 0
E47: Prima para hijo (s) | G47: =(IF($F$36=0,0,(VLOOKUP($F$36,Tablas!$A$222:$G$224,3,TRUE)))) -> 0 | H47: =(IF($F$36=0,0,(VLOOKUP($F$36,Tablas!$A$222:$G$224,4,TRUE)))) -> 0 | I47: =(IF($F$36=0,0,(VLOOKUP($F$36,Tablas!$A$222:$G$224,5,TRUE)))) -> 0 | J47: =(IF($F$36=0,0,(VLOOKUP($F$36,Tablas!$A$222:$G$224,6,TRUE)))) -> 0
E48: Total de Prima neta | G48: =SUM(G45:G47) -> 4765.6 | H48: =SUM(H45:H47) -> 4326.4 | I48: 3173.6 | J48: =SUM(J45:J47) -> 2360
E49: Ajuste por variante con coaseguro fuera del país de residencia | G49: =IF('INGRESO DE DATOS'!$H$27,G48*-25%,0) -> -1191.4 | H49: =IF('INGRESO DE DATOS'!$H$27,H48*-25%,0) -> -1081.6 | I49: =IF('INGRESO DE DATOS'!$H$27,I48*-25%,0) -> -793.4 | J49: =IF('INGRESO DE DATOS'!$H$27,J48*-25%,0) -> -590
E50: Tarifa administrativa anual | G50: 75 | H50: 75 | I50: 75 | J50: 75
E51: IVA (12%) | G51: =(G48+G50)*0% -> 0 | H51: =(H48+H50)*0% -> 0 | I51: 0 | J51: 0
E52: TOTAL ANUAL | G52: =SUM(G48:G51)-((G48+G49))*0.1 -> 3291.78 | H52: =SUM(H48:H51)-((H48+H49))*0.1 -> 2995.32 | I52: 2217.18 | J52: 1668
E54: Tarifas semi anuales
E55: Prima para Asegurado Titular | G55: =VLOOKUP($I$34,Tablas!$A$530:$G$596,3,TRUE) -> 2382.8 | H55: =VLOOKUP($I$34,Tablas!$A$530:$G$596,4,TRUE) -> 2163.2 | I55: =VLOOKUP($I$34,Tablas!$A$530:$G$596,5,TRUE) -> 1586.8 | J55: =VLOOKUP($I$34,Tablas!$A$530:$G$596,6,TRUE) -> 1180
E56: Prima para conyuge | G56: =IF($F$34=1,0,(VLOOKUP($I$36,Tablas!$A$530:$G$596,3,TRUE))) -> 0 | H56: =IF($F$34=1,0,(VLOOKUP($I$36,Tablas!$A$530:$G$596,4,TRUE))) -> 0 | I56: =IF($F$34=1,0,(VLOOKUP($I$36,Tablas!$A$530:$G$596,5,TRUE))) -> 0 | J56: =IF($F$34=1,0,(VLOOKUP($I$36,Tablas!$A$530:$G$596,6,TRUE))) -> 0
E57: Prima para hijo (s) | G57: =IF($F$36=0,0,(VLOOKUP($F$36,Tablas!$A$597:$G$599,3,TRUE))) -> 0 | H57: =IF($F$36=0,0,(VLOOKUP($F$36,Tablas!$A$597:$G$599,4,TRUE))) -> 0 | I57: =IF($F$36=0,0,(VLOOKUP($F$36,Tablas!$A$597:$G$599,5,TRUE))) -> 0 | J57: =IF($F$36=0,0,(VLOOKUP($F$36,Tablas!$A$597:$G$599,6,TRUE))) -> 0
E58: Total de Prima neta | G58: =SUM(G55:G57) -> 2382.8 | H58: =SUM(H55:H57) -> 2163.2 | I58: =SUM(I55:I57) -> 1586.8 | J58: =SUM(J55:J57) -> 1180
E59: Ajuste por variante con coaseguro fuera del país de residencia | G59: =IF('INGRESO DE DATOS'!$H$27,G58*-25%,0) -> -595.7 | H59: =IF('INGRESO DE DATOS'!$H$27,H58*-25%,0) -> -540.8 | I59: =IF('INGRESO DE DATOS'!$H$27,I58*-25%,0) -> -396.7 | J59: =IF('INGRESO DE DATOS'!$H$27,J58*-25%,0) -> -295
E60: Tarifa administrativa anual | G60: 75 | H60: 75 | I60: 75 | J60: 75
E61: IVA (12%) | G61: =(G58+G60)*0% -> 0 | H61: =(H58+H60)*0% -> 0 | I61: 0 | J61: 0
E62: TOTAL de primera cuota | G62: =SUM(G58:G60) -> 1862.1 | H62: =SUM(H58:H60) -> 1697.4 | I62: 1265.1 | J62: 960
E63: Costo de segunda cuota | G63: =SUM(G58:G59) -> 1787.1 | H63: =SUM(H58:H59) -> 1622.4 | I63: 1190.1 | J63: 885
E64: TOTAL ANUAL | G64: =G62+G63 -> 3649.2 | H64: =H62+H63 -> 3319.8 | I64: 2455.2 | J64: =J62+J63 -> 1845
E66: Tarifas trimestrales
E67: Prima para Asegurado Titular | G67: =VLOOKUP($I$34,Tablas!$A$755:$G$821,3,TRUE) -> 1191.4 | H67: =VLOOKUP($I$34,Tablas!$A$755:$G$821,4,TRUE) -> 1081.6 | I67: =VLOOKUP($I$34,Tablas!$A$755:$G$821,5,TRUE) -> 793.4 | J67: =VLOOKUP($I$34,Tablas!$A$755:$G$821,6,TRUE) -> 590
E68: Prima para conyuge | G68: =IF($F$34=1,0,(VLOOKUP($I$36,Tablas!$A$755:$G$821,3,TRUE))) -> 0 | H68: =IF($F$34=1,0,(VLOOKUP($I$36,Tablas!$A$755:$G$821,4,TRUE))) -> 0 | I68: =IF($F$34=1,0,(VLOOKUP($I$36,Tablas!$A$755:$G$821,5,TRUE))) -> 0 | J68: =IF($F$34=1,0,(VLOOKUP($I$36,Tablas!$A$755:$G$821,6,TRUE))) -> 0
E69: Prima para hijo (s) | G69: =IF($F$36=0,0,(VLOOKUP($F$36,Tablas!$A$822:$G$824,3,TRUE))) -> 0 | H69: =IF($F$36=0,0,(VLOOKUP($F$36,Tablas!$A$822:$G$824,4,TRUE))) -> 0 | I69: =IF($F$36=0,0,(VLOOKUP($F$36,Tablas!$A$822:$G$824,5,TRUE))) -> 0 | J69: =IF($F$36=0,0,(VLOOKUP($F$36,Tablas!$A$822:$G$824,6,TRUE))) -> 0
E70: Total de Prima neta | G70: =SUM(G67:G69) -> 1191.4 | H70: =SUM(H67:H69) -> 1081.6 | I70: =SUM(I67:I69) -> 793.4 | J70: =SUM(J67:J69) -> 590
E71: Ajuste por variante con coaseguro fuera del país de residencia | G71: =IF('INGRESO DE DATOS'!$H$27,G70*-25%,0) -> -297.85 | H71: =IF('INGRESO DE DATOS'!$H$27,H70*-25%,0) -> -270.4 | I71: =IF('INGRESO DE DATOS'!$H$27,I70*-25%,0) -> -198.35 | J71: =IF('INGRESO DE DATOS'!$H$27,J70*-25%,0) -> -147.5
E72: Tarifa administrativa anual | G72: 75 | H72: 75 | I72: 75 | J72: 75
E73: IVA (12%) | G73: =(G70+G72)*0% -> 0 | H73: =(H70+H72)*0% -> 0 | I73: 0 | J73: 0
E74: TOTAL de primera cuota | G74: =SUM(G70:G73) -> 968.55 | H74: =SUM(H70:H73) -> 886.2 | I74: =SUM(I70:I73) -> 670.05 | J74: =SUM(J70:J73) -> 517.5
E75: Costo de tarifa trimestral 2 a 4 | G75: =SUM(G70:G71) -> 893.55 | H75: =SUM(H70:H71) -> 811.2 | I75: 595.05 | J75: 442.5
E76: TOTAL ANUAL | G76: =G74+(G75*3) -> 3649.2 | H76: =H74+(H75*3) -> 3319.8 | I76: 2455.2 | J76: =J74+(J75*3) -> 1845
E78: Tarifas mensuales
E79: Prima para Asegurado Titular | G79: =VLOOKUP($I$34,Tablas!$A$229:$G$295,3,TRUE) -> 444.7893333 | H79: =VLOOKUP($I$34,Tablas!$A$229:$G$295,4,TRUE) -> 403.7973333 | I79: =VLOOKUP($I$34,Tablas!$A$229:$G$295,5,TRUE) -> 296.2026667 | J79: =VLOOKUP($I$34,Tablas!$A$229:$G$295,6,TRUE) -> 220.2666667
E80: Prima para conyuge | G80: =IF($F$34=1,0,(VLOOKUP($I$36,Tablas!$A$229:$G$295,3,TRUE))) -> 0 | H80: =IF($F$34=1,0,(VLOOKUP($I$36,Tablas!$A$229:$G$295,4,TRUE))) -> 0 | I80: =IF($F$34=1,0,(VLOOKUP($I$36,Tablas!$A$229:$G$295,5,TRUE))) -> 0 | J80: =IF($F$34=1,0,(VLOOKUP($I$36,Tablas!$A$229:$G$295,6,TRUE))) -> 0
E81: Prima para hijo (s) | G81: =IF($F$36=0,0,(VLOOKUP($F$36,Tablas!$A$296:$G$298,3,TRUE))) -> 0 | H81: =IF($F$36=0,0,(VLOOKUP($F$36,Tablas!$A$296:$G$298,4,TRUE))) -> 0 | I81: =IF($F$36=0,0,(VLOOKUP($F$36,Tablas!$A$296:$G$298,5,TRUE))) -> 0 | J81: =IF($F$36=0,0,(VLOOKUP($F$36,Tablas!$A$296:$G$298,6,TRUE))) -> 0
E82: Total de Prima neta | G82: =SUM(G79:G81) -> 444.7893333 | H82: =SUM(H79:H81) -> 403.7973333 | I82: =SUM(I79:I81) -> 296.2026667 | J82: =SUM(J79:J81) -> 220.2666667
E83: Ajuste por variante con coaseguro fuera del país de residencia | G83: =IF('INGRESO DE DATOS'!$H$27,G82*-25%,0) -> -111.1973333 | H83: =IF('INGRESO DE DATOS'!$H$27,H82*-25%,0) -> -100.9493333 | I83: =IF('INGRESO DE DATOS'!$H$27,I82*-25%,0) -> -74.05066667 | J83: =IF('INGRESO DE DATOS'!$H$27,J82*-25%,0) -> -55.06666667
E84: Tarifa administrativa anual | G84: 75 | H84: 75 | I84: 75 | J84: 75
E85: IVA (12%) | G85: =(G82+G84)*0% -> 0 | H85: =(H82+H84)*0% -> 0 | I85: 0 | J85: 0
E86: TOTAL de primera cuota | G86: =SUM(G82:G85) -> 408.592 | H86: =SUM(H82:H85) -> 377.848 | I86: =SUM(I82:I85) -> 297.152 | J86: =SUM(J82:J85) -> 240.2
E87: Costo de tarifa mensual 2 a 12 | G87: =SUM(G82:G83) -> 333.592 | H87: =SUM(H82:H83) -> 302.848 | I87: 222.152 | J87: 165.2
E88: TOTAL ANUAL | G88: =G86+(G87*11) -> 4078.104 | H88: =H86+(H87*11) -> 3709.176 | I88: =I86+(I87*11) -> 2740.824 | J88: =J86+(J87*11) -> 2057.4
E90: Tarifas en US $ - Efectivas a partir del 1ro de enero de 2021
E91: Este presupuesto solamente tiene carácter informativo y en ningún momento expresa compromiso legal para suministrarle cobertura de seguro. La emisión de una póliza de seguro Bupa está sujeta a todas las evaluaciones de riesgo por parte de Bupa y a la recepción de todos los pagos de prima requeridos.

Sheet Global Select
A29: GLOBAL SELECT HEALTH PLAN | D29: Nombre del Asegurado Titular | F29: =+'INGRESO DE DATOS'!$D$21 -> NOMBRE COMPLETO
D31: Número de adultos en la póliza | F31: =+'INGRESO DE DATOS'!$D$23 -> 1 | H31: Edad del Asegurado Titular | I31: =+'INGRESO DE DATOS'!$D$25 -> 35
H33: Edad del/la conyuge | I33: =+'INGRESO DE DATOS'!$H$25 -> 46
D34: Número de niños en la póliza | F34: =+'INGRESO DE DATOS'!$H$23 -> 0
F35: Fecha de la cotización: | H35: =NOW() -> 2021-11-08T11:55:45.700
H36: FALSE
E37: Deducibles | G37: PLAN 1 | H37: PLAN 2 | I37: PLAN 3 | J37: PLAN 4
E38: En el país de residencia | G38: 250 | H38: 2000 | I38: 5000 | J38: 10000
E39: Fuera del país de residencia | G39: 5000 | H39: 2000 | I39: 5000 | J39: 10000
E41: Tarifas anuales
E42: Prima para Asegurado Titular | G42: =(VLOOKUP($I$31,Tablas!$A$305:$G$371,3,TRUE)) -> 3369.6 | H42: =(VLOOKUP($I$31,Tablas!$A$305:$G$371,4,TRUE)) -> 3233.6 | I42: =(VLOOKUP($I$31,Tablas!$A$305:$G$371,5,TRUE)) -> 2376.8 | J42: =(VLOOKUP($I$31,Tablas!$A$305:$G$371,6,TRUE)) -> 1768
E43: Prima para conyuge | G43: =(IF($F$31=1,0,(VLOOKUP($I$33,Tablas!$A$305:$G$371,3,TRUE)))) -> 0 | H43: =(IF($F$31=1,0,(VLOOKUP($I$33,Tablas!$A$305:$G$371,4,TRUE)))) -> 0 | I43: =(IF($F$31=1,0,(VLOOKUP($I$33,Tablas!$A$305:$G$371,5,TRUE)))) -> 0 | J43: =(IF($F$31=1,0,(VLOOKUP($I$33,Tablas!$A$305:$G$371,6,TRUE)))) -> 0
E44: Prima para hijo (s) | G44: =(IF($F$34=0,0,(VLOOKUP($F$34,Tablas!$A$372:$G$374,3,TRUE)))) -> 0 | H44: =(IF($F$34=0,0,(VLOOKUP($F$34,Tablas!$A$372:$G$374,4,TRUE)))) -> 0 | I44: =(IF($F$34=0,0,(VLOOKUP($F$34,Tablas!$A$372:$G$374,5,TRUE)))) -> 0 | J44: =(IF($F$34=0,0,(VLOOKUP($F$34,Tablas!$A$372:$G$374,6,TRUE)))) -> 0
E45: Total de Prima neta | G45: =SUM(G42:G44) -> 3369.6 | H45: =SUM(H42:H44) -> 3233.6 | I45: =SUM(I42:I44) -> 2376.8 | J45: =SUM(J42:J44) -> 1768
E46: Ajuste por variante con coaseguro fuera del país de residencia | G46: =IF('INGRESO DE DATOS'!$H$27,G45*-25%,0) -> -842.4 | H46: =IF('INGRESO DE DATOS'!$H$27,H45*-25%,0) -> -808.4 | I46: =IF('INGRESO DE DATOS'!$H$27,I45*-25%,0) -> -594.2 | J46: =IF('INGRESO DE DATOS'!$H$27,J45*-25%,0) -> -442
E47: Tarifa administrativa anual | G47: 75 | H47: 75 | I47: 75 | J47: 75
E48: IVA (12%) | G48: =(G45+G47)*0% -> 0 | H48: =(H45+H47)*0% -> 0 | I48: =(I45+I47)*0% -> 0 | J48: =(J45+J47)*0% -> 0
E49: TOTAL ANUAL | G49: =SUM(G45:G48)-((G45+G46)*0.1) -> 2349.48 | H49: =SUM(H45:H48)-((H45+H46)*0.1) -> 2257.68 | I49: 1679.34 | J49: 1268.4
E51: Tarifas semi anuales
E52: Prima para Asegurado Titular | G52: =VLOOKUP($I$31,Tablas!$A$605:$G$671,3,TRUE) -> 1684.8 | H52: =VLOOKUP($I$31,Tablas!$A$605:$G$671,4,TRUE) -> 1616.8 | I52: =VLOOKUP($I$31,Tablas!$A$605:$G$671,5,TRUE) -> 1188.4 | J52: =VLOOKUP($I$31,Tablas!$A$605:$G$671,6,TRUE) -> 884
E53: Prima para conyuge | G53: =IF($F$31=1,0,(VLOOKUP($I$33,Tablas!$A$605:$G$671,3,TRUE))) -> 0 | H53: =IF($F$31=1,0,(VLOOKUP($I$33,Tablas!$A$605:$G$671,4,TRUE))) -> 0 | I53: =IF($F$31=1,0,(VLOOKUP($I$33,Tablas!$A$605:$G$671,5,TRUE))) -> 0 | J53: =IF($F$31=1,0,(VLOOKUP($I$33,Tablas!$A$605:$G$671,6,TRUE))) -> 0
E54: Prima para hijo (s) | G54: =IF($F$34=0,0,(VLOOKUP($F$34,Tablas!$A$672:$G$674,3,TRUE))) -> 0 | H54: =IF($F$34=0,0,(VLOOKUP($F$34,Tablas!$A$672:$G$674,4,TRUE))) -> 0 | I54: =IF($F$34=0,0,(VLOOKUP($F$34,Tablas!$A$672:$G$674,5,TRUE))) -> 0 | J54: =IF($F$34=0,0,(VLOOKUP($F$34,Tablas!$A$672:$G$674,6,TRUE))) -> 0
E55: Total de Prima neta | G55: =SUM(G52:G54) -> 1684.8 | H55: =SUM(H52:H54) -> 1616.8 | I55: =SUM(I52:I54) -> 1188.4 | J55: =SUM(J52:J54) -> 884
E56: Ajuste por variante con coaseguro fuera del país de residencia | G56: =IF('INGRESO DE DATOS'!$H$27,G55*-25%,0) -> -421.2 | H56: =IF('INGRESO DE DATOS'!$H$27,H55*-25%,0) -> -404.2 | I56: =IF('INGRESO DE DATOS'!$H$27,I55*-25%,0) -> -297.1 | J56: =IF('INGRESO DE DATOS'!$H$27,J55*-25%,0) -> -221
E57: Tarifa administrativa anual | G57: 75 | H57: 75 | I57: 75 | J57: 75
E58: IVA (12%) | G58: =(G55+G57)*0% -> 0 | H58: =(H55+H57)*0% -> 0 | I58: 0 | J58: 0
E59: TOTAL de primera cuota | G59: =SUM(G55:G58) -> 1338.6 | H59: =SUM(H55:H58) -> 1287.6 | I59: =SUM(I55:I58) -> 966.3 | J59: =SUM(J55:J58) -> 738
E60: Costo de segunda cuota | G60: =SUM(G55:G56) -> 1263.6 | H60: =SUM(H55:H56) -> 1212.6 | I60: 891.3 | J60: 663
E61: TOTAL ANUAL | G61: =G59+G60 -> 2602.2 | H61: =H59+H60 -> 2500.2 | I61: 1857.6 | J61: =J59+J60 -> 1401
E63: Tarifas trimestrales
E64: Prima para Asegurado Titular | G64: =VLOOKUP($I$31,Tablas!$A$830:$G$896,3,TRUE) -> 842.4 | H64: =VLOOKUP($I$31,Tablas!$A$830:$G$896,4,TRUE) -> 808.4 | I64: =VLOOKUP($I$31,Tablas!$A$830:$G$896,5,TRUE) -> 594.2 | J64: =VLOOKUP($I$31,Tablas!$A$830:$G$896,6,TRUE) -> 442
E65: Prima para conyuge | G65: =IF($F$31=1,0,(VLOOKUP($I$33,Tablas!$A$830:$G$896,3,TRUE))) -> 0 | H65: =IF($F$31=1,0,(VLOOKUP($I$33,Tablas!$A$830:$G$896,4,TRUE))) -> 0 | I65: =IF($F$31=1,0,(VLOOKUP($I$33,Tablas!$A$830:$G$896,5,TRUE))) -> 0 | J65: =IF($F$31=1,0,(VLOOKUP($I$33,Tablas!$A$830:$G$896,6,TRUE))) -> 0
E66: Prima para hijo (s) | G66: =IF($F$34=0,0,(VLOOKUP($F$34,Tablas!$A$897:$G$899,3,TRUE))) -> 0 | H66: =IF($F$34=0,0,(VLOOKUP($F$34,Tablas!$A$897:$G$899,4,TRUE))) -> 0 | I66: =IF($F$34=0,0,(VLOOKUP($F$34,Tablas!$A$897:$G$899,5,TRUE))) -> 0 | J66: =IF($F$34=0,0,(VLOOKUP($F$34,Tablas!$A$897:$G$899,6,TRUE))) -> 0
E67: Total de Prima neta | G67: =SUM(G64:G66) -> 842.4 | H67: =SUM(H64:H66) -> 808.4 | I67: =SUM(I64:I66) -> 594.2 | J67: =SUM(J64:J66) -> 442
E68: Ajuste por variante con coaseguro fuera del país de residencia | G68: =IF('INGRESO DE DATOS'!$H$27,G67*-25%,0) -> -210.6 | H68: =IF('INGRESO DE DATOS'!$H$27,H67*-25%,0) -> -202.1 | I68: =IF('INGRESO DE DATOS'!$H$27,I67*-25%,0) -> -148.55 | J68: =IF('INGRESO DE DATOS'!$H$27,J67*-25%,0) -> -110.5
E69: Tarifa administrativa anual | G69: 75 | H69: 75 | I69: 75 | J69: 75
E70: IVA (12%) | G70: =(G67+G69)*0% -> 0 | H70: =(H67+H69)*0% -> 0 | I70: 0 | J70: 0
E71: TOTAL de primera cuota | G71: =SUM(G67:G70) -> 706.8 | H71: =SUM(H67:H70) -> 681.3 | I71: =SUM(I67:I70) -> 520.65 | J71: =SUM(J67:J70) -> 406.5
E72: Costo de tarifa trimestral 2 a 4 | G72: =SUM(G67:G68) -> 631.8 | H72: =SUM(H67:H68) -> 606.3 | I72: 445.65 | J72: 331.5
E73: TOTAL ANUAL | G73: =G71+(G72*3) -> 2602.2 | H73: =H71+(H72*3) -> 2500.2 | I73: 1857.6 | J73: =J71+(J72*3) -> 1401
E75: Tarifas mensuales
E76: Prima para Asegurado Titular | G76: =VLOOKUP($I$31,Tablas!$A$379:$G$445,3,TRUE) -> 314.496 | H76: =VLOOKUP($I$31,Tablas!$A$379:$G$445,4,TRUE) -> 301.8026667 | I76: =VLOOKUP($I$31,Tablas!$A$379:$G$445,5,TRUE) -> 221.8346667 | J76: =VLOOKUP($I$31,Tablas!$A$379:$G$445,6,TRUE) -> 165.0133333
E77: Prima para conyuge | G77: =IF($F$31=1,0,(VLOOKUP($I$33,Tablas!$A$379:$G$445,3,TRUE))) -> 0 | H77: =IF($F$31=1,0,(VLOOKUP($I$33,Tablas!$A$379:$G$445,4,TRUE))) -> 0 | I77: =IF($F$31=1,0,(VLOOKUP($I$33,Tablas!$A$379:$G$445,5,TRUE))) -> 0 | J77: =IF($F$31=1,0,(VLOOKUP($I$33,Tablas!$A$379:$G$445,6,TRUE))) -> 0
E78: Prima para hijo (s) | G78: =IF($F$34=0,0,(VLOOKUP($F$34,Tablas!$A$446:$G$448,3,TRUE))) -> 0 | H78: =IF($F$34=0,0,(VLOOKUP($F$34,Tablas!$A$446:$G$448,4,TRUE))) -> 0 | I78: =IF($F$34=0,0,(VLOOKUP($F$34,Tablas!$A$446:$G$448,5,TRUE))) -> 0 | J78: =IF($F$34=0,0,(VLOOKUP($F$34,Tablas!$A$446:$G$448,6,TRUE))) -> 0
E79: Total de Prima neta | G79: =SUM(G76:G78) -> 314.496 | H79: =SUM(H76:H78) -> 301.8026667 | I79: =SUM(I76:I78) -> 221.8346667 | J79: =SUM(J76:J78) -> 165.0133333
E80: Ajuste por variante con coaseguro fuera del país de residencia | G80: =IF('INGRESO DE DATOS'!$H$27,G79*-25%,0) -> -78.624 | H80: =IF('INGRESO DE DATOS'!$H$27,H79*-25%,0) -> -75.45066667 | I80: =IF('INGRESO DE DATOS'!$H$27,I79*-25%,0) -> -55.45866667 | J80: =IF('INGRESO DE DATOS'!$H$27,J79*-25%,0) -> -41.25333333
E81: Tarifa administrativa anual | G81: 75 | H81: 75 | I81: 75 | J81: 75
E82: IVA (12%) | G82: =(G79+G81)*0% -> 0 | H82: =(H79+H81)*0% -> 0 | I82: 0 | J82: 0
E83: TOTAL de primera cuota | G83: =SUM(G79:G82) -> 310.872 | H83: =SUM(H79:H82) -> 301.352 | I83: =SUM(I79:I82) -> 241.376 | J83: =SUM(J79:J82) -> 198.76
E84: Costo de tarifa mensual 2 a 12 | G84: =SUM(G79:G80) -> 235.872 | H84: =SUM(H79:H80) -> 226.352 | I84: 166.376 | J84: 123.76
E85: TOTAL ANUAL | G85: =G83+(G84*11) -> 2905.464 | H85: =H83+(H84*11) -> 2791.224 | I85: =I83+(I84*11) -> 2071.512 | J85: =J83+(J84*11) -> 1560.12
E87: Tarifas en US $ - Efectivas a partir del 1ro de enero de 2021
E88: Este presupuesto solamente tiene carácter informativo y en ningún momento expresa compromiso legal para suministrarle cobertura de seguro. La emisión de una póliza de seguro Bupa está sujeta a todas las evaluaciones de riesgo por parte de Bupa y a la recepción de todos los pagos de prima requeridos.

Sheet Global Major Medical
A31: GLOBAL MAJOR MEDICAL HEALTH PLAN | D31: Nombre del Asegurado Titular | F31: =+'INGRESO DE DATOS'!$D$21 -> NOMBRE COMPLETO
D33: Número de adultos en la póliza | F33: =+'INGRESO DE DATOS'!$D$23 -> 1 | H33: Edad del Asegurado Titular | I33: =+'INGRESO DE DATOS'!$D$25 -> 35
D35: Número de niños en la póliza | F35: =+'INGRESO DE DATOS'!$H$23 -> 0 | H35: Edad del/la conyuge | I35: =+'INGRESO DE DATOS'!$H$25 -> 46
F37: Fecha de la cotización: | H37: =NOW() -> 2021-11-08T11:55:45.700
H38: FALSE
E39: Deducibles | G39: PLAN 1 | H39: PLAN 2 | I39: PLAN 3
E40: En el país de residencia | G40: 7500 | H40: 10000 | I40: 20000
E41: Fuera del país de residencia | G41: 10000 | H41: 20000 | I41: 20000
E43: Tarifas anuales
E44: Prima para Asegurado Titular | G44: =(VLOOKUP($I$33,Tablas!$A$1129:$G$1195,3,TRUE))*0.9 -> 2646.9 | H44: =(VLOOKUP($I$33,Tablas!$A$1129:$G$1195,4,TRUE))*0.9 -> 2303.1 | I44: =(VLOOKUP($I$33,Tablas!$A$1129:$G$1195,5,TRUE))*0.9 -> 1746
E45: Prima para conyuge | G45: =(IF($F$33=1,0,(VLOOKUP($I$35,Tablas!$A$1129:$G$1195,3,TRUE))))*0.9 -> 0 | H45: =(IF($F$33=1,0,(VLOOKUP($I$35,Tablas!$A$1129:$G$1195,4,TRUE))))*0.9 -> 0 | I45: =(IF($F$33=1,0,(VLOOKUP($I$35,Tablas!$A$1129:$G$1195,5,TRUE))))*0.9 -> 0
E46: Prima para hijo (s) | G46: =(IF($F$35=0,0,(VLOOKUP($F$35,Tablas!$A$1196:$G$1198,3,TRUE))))*0.9 -> 0 | H46: =(IF($F$35=0,0,(VLOOKUP($F$35,Tablas!$A$1196:$G$1198,4,TRUE))))*0.9 -> 0 | I46: =(IF($F$35=0,0,(VLOOKUP($F$35,Tablas!$A$1196:$G$1198,5,TRUE))))*0.9 -> 0
E47: Total de Prima neta | G47: =SUM(G44:G46) -> 2646.9 | H47: =SUM(H44:H46) -> 2303.1 | I47: 1746
E48: Tarifa administrativa anual | G48: 75 | H48: 75 | I48: 75
E49: IVA (12%) | G49: =(G47+G48)*0% -> 0 | H49: =(H47+H48)*0% -> 0 | I49: =(I47+I48)*0% -> 0
E50: TOTAL ANUAL | G50: =SUM(G47:G49) -> 2721.9 | H50: =SUM(H47:H49) -> 2378.1 | I50: =SUM(I47:I49) -> 1821
E52: Tarifas semi anuales
E53: Prima para Asegurado Titular | G53: =VLOOKUP($I$33,Tablas!$A$1353:$G$1419,3,TRUE) -> 1470.5 | H53: =VLOOKUP($I$33,Tablas!$A$1353:$G$1419,4,TRUE) -> 1279.5 | I53: =VLOOKUP($I$33,Tablas!$A$1353:$G$1419,5,TRUE) -> 970
E54: Prima para conyuge | G54: =IF($F$33=1,0,(VLOOKUP($I$35,Tablas!$A$1353:$G$1419,3,TRUE))) -> 0 | H54: =IF($F$33=1,0,(VLOOKUP($I$35,Tablas!$A$1353:$G$1419,4,TRUE))) -> 0 | I54: =IF($F$33=1,0,(VLOOKUP($I$35,Tablas!$A$1353:$G$1419,5,TRUE))) -> 0
E55: Prima para hijo (s) | G55: =IF($F$35=0,0,(VLOOKUP($F$35,Tablas!$A$1420:$G$1422,3,TRUE))) -> 0 | H55: =IF($F$35=0,0,(VLOOKUP($F$35,Tablas!$A$1420:$G$1422,4,TRUE))) -> 0 | I55: =IF($F$35=0,0,(VLOOKUP($F$35,Tablas!$A$1420:$G$1422,5,TRUE))) -> 0
E56: Total de Prima neta | G56: =SUM(G53:G55) -> 1470.5 | H56: =SUM(H53:H55) -> 1279.5 | I56: =SUM(I53:I55) -> 970
E57: Tarifa administrativa anual | G57: 75 | H57: 75 | I57: 76
E58: IVA (12%) | G58: =(G56+G57)*0% -> 0 | H58: =(H56+H57)*0% -> 0 | I58: =(I56+I57)*0% -> 0
E59: TOTAL de primera cuota | G59: =SUM(G56:G58) -> 1545.5 | H59: =SUM(H56:H58) -> 1354.5 | I59: =SUM(I56:I58) -> 1046
E60: Costo de segunda cuota | G60: =G56+G58 -> 1470.5 | H60: =H56+H58 -> 1279.5 | I60: =I56+I58 -> 970
E61: TOTAL ANUAL | G61: =G59+G60 -> 3016 | H61: =H59+H60 -> 2634 | I61: 2016
E63: Tarifas trimestrales
E64: Prima para Asegurado Titular | G64: =VLOOKUP($I$33,Tablas!$A$1278:$G$1344,3,TRUE) -> 735.25 | H64: =VLOOKUP($I$33,Tablas!$A$1278:$G$1344,4,TRUE) -> 639.75 | I64: =VLOOKUP($I$33,Tablas!$A$1278:$G$1344,5,TRUE) -> 485
E65: Prima para conyuge | G65: =IF($F$33=1,0,(VLOOKUP($I$35,Tablas!$A$1278:$G$1344,3,TRUE))) -> 0 | H65: =IF($F$33=1,0,(VLOOKUP($I$35,Tablas!$A$1278:$G$1344,4,TRUE))) -> 0 | I65: =IF($F$33=1,0,(VLOOKUP($I$35,Tablas!$A$1278:$G$1344,5,TRUE))) -> 0
E66: Prima para hijo (s) | G66: =IF($F$35=0,0,(VLOOKUP($F$35,Tablas!$A$1345:$G$1347,3,TRUE))) -> 0 | H66: =IF($F$35=0,0,(VLOOKUP($F$35,Tablas!$A$1345:$G$1347,4,TRUE))) -> 0 | I66: =IF($F$35=0,0,(VLOOKUP($F$35,Tablas!$A$1345:$G$1347,5,TRUE))) -> 0
E67: Total de Prima neta | G67: =SUM(G64:G66) -> 735.25 | H67: =SUM(H64:H66) -> 639.75 | I67: =SUM(I64:I66) -> 485
E68: Tarifa administrativa anual | G68: 75 | H68: 75 | I68: 76
E69: IVA (12%) | G69: =(G67+G68)*0% -> 0 | H69: =(H67+H68)*0% -> 0 | I69: =(I67+I68)*0% -> 0
E70: TOTAL de primera cuota | G70: =SUM(G67:G69) -> 810.25 | H70: =SUM(H67:H69) -> 714.75 | I70: =SUM(I67:I69) -> 561
E71: Costo de tarifa trimestral 2 a 4 | G71: =G67+G69 -> 735.25 | H71: =H67+H69 -> 639.75 | I71: =I67+I69 -> 485
E72: TOTAL ANUAL | G72: =G70+(G71*3) -> 3016 | H72: =H70+(H71*3) -> 2634 | I72: 2016
E74: Tarifas mensual
E75: Prima para Asegurado Titular | G75: =VLOOKUP($I$33,Tablas!$A$1203:$G$1269,3,TRUE) -> 274.4933333 | H75: =VLOOKUP($I$33,Tablas!$A$1203:$G$1269,4,TRUE) -> 238.84 | I75: =VLOOKUP($I$33,Tablas!$A$1203:$G$1269,5,TRUE) -> 181.0666667
E76: Prima para conyuge | G76: =IF($F$33=1,0,(VLOOKUP($I$35,Tablas!$A$1203:$G$1269,3,TRUE))) -> 0 | H76: =IF($F$33=1,0,(VLOOKUP($I$35,Tablas!$A$1203:$G$1269,4,TRUE))) -> 0 | I76: =IF($F$33=1,0,(VLOOKUP($I$35,Tablas!$A$1203:$G$1269,5,TRUE))) -> 0
E77: Prima para hijo (s) | G77: =IF($F$35=0,0,(VLOOKUP($F$35,Tablas!$A$1270:$G$1272,3,TRUE))) -> 0 | H77: =IF($F$35=0,0,(VLOOKUP($F$35,Tablas!$A$1270:$G$1272,4,TRUE))) -> 0 | I77: =IF($F$35=0,0,(VLOOKUP($F$35,Tablas!$A$1270:$G$1272,5,TRUE))) -> 0
E78: Total de Prima neta | G78: =SUM(G75:G77) -> 274.4933333 | H78: =SUM(H75:H77) -> 238.84 | I78: =SUM(I75:I77) -> 181.0666667
E79: Tarifa administrativa anual | G79: 75 | H79: 75 | I79: 76
E80: IVA (12%) | G80: =(G78+G79)*0% -> 0 | H80: =(H78+H79)*0% -> 0 | I80: =(I78+I79)*0% -> 0
E81: TOTAL de primera cuota | G81: =SUM(G78:G80) -> 349.4933333 | H81: =SUM(H78:H80) -> 313.84 | I81: =SUM(I78:I80) -> 257.0666667
E82: Costo de tarifa mensual 2 a 12 | G82: =G78+G80 -> 274.4933333 | H82: =H78+H80 -> 238.84 | I82: =I78+I80 -> 181.0666667
E83: TOTAL ANUAL | G83: =G81+(G82*11) -> 3368.92 | H83: =H81+(H82*11) -> 2941.08 | I83: =I81+(I82*11) -> 2248.8
E85: Tarifas en US $ - Efectivas a partir del 1ro de enero de 2021
E86: Este presupuesto solamente tiene carácter informativo y en ningún momento expresa compromiso legal para suministrarle cobertura de seguro. La emisión de una póliza de seguro Bupa está sujeta a todas las evaluaciones de riesgo por parte de Bupa y a la recepción de todos los pagos de prima requeridos.

Sheet Resumen tarifas
A27: Cotizador de Seguro Médico - Bupa Global Health Plans
A29: Nombre del Asegurado Titular | C29: =+'INGRESO DE DATOS'!$D$21 -> NOMBRE COMPLETO
A32: Número de adultos en la póliza | C32: =+'INGRESO DE DATOS'!$D$23 -> 1 | E32: Edad del Asegurado Titular | G32: =+'INGRESO DE DATOS'!$D$25 -> 35
A35: Número de niños en la póliza | C35: =+'INGRESO DE DATOS'!$H$23 -> 0 | E35: Edad del/la cónyuge | G35: =+'INGRESO DE DATOS'!$H$25 -> 46
D38: FECHA DE LA COTIZACIÓN: | E38: =NOW() -> 2021-11-08T11:55:45.700
A40: Global Ultimate Health Plan
A41: Deducibles | C41: PLAN 1 | D41: PLAN 2
A42: En el país de residencia | C42: 0 | D42: 1000
A43: Fuera del país de residencia | C43: 0 | D43: 1000
C44: Tarifas anuales
C45: ='Global Ultimate'!G44 -> 19397.1 | D45: ='Global Ultimate'!H44 -> 12541.8
C46: Tarifas semi anuales
C47: ='Global Ultimate'!G54 -> 10809.5 | D47: ='Global Ultimate'!H54 -> 7001
C48: ='Global Ultimate'!G55 -> 10734.5 | D48: ='Global Ultimate'!H55 -> 6926
C49: Tarifas trimestrales
C50: ='Global Ultimate'!G66 -> 5442.25 | D50: ='Global Ultimate'!H66 -> 3538
C51: ='Global Ultimate'!G67 -> 5367.25 | D51: ='Global Ultimate'!H67 -> 3463
A52: Ahorros en tarifas de prima para niños (pago annual)* | C52: ='Global Ultimate'!G45 -> 0 | D52: ='Global Ultimate'!H45 -> 0
C53: Tarifas mensuales
C54: ='Global Ultimate'!G78 -> 2078.773333 | D54: ='Global Ultimate'!H78 -> 1367.853333
C55: ='Global Ultimate'!G79 -> 2003.773333 | D55: ='Global Ultimate'!H79 -> 1292.853333
A58: Global Elite Health Plan
A59: Deducibles | D59: PLAN 1 | E59: PLAN 2 | F59: PLAN 3 | G59: PLAN 4 | H59: PLAN 5
A60: En el país de residencia | D60: 250 | E60: 2000 | F60: 3500 | G60: 5000 | H60: 10000
A61: Fuera del país de residencia | D61: 5000 | E61: 2000 | F61: 3500 | G61: 5000 | H61: 10000
D62: Tarifas anuales
D63: =+'Global Elite'!G54 -> 6228.3 | E63: =+'Global Elite'!H54 -> 5468.25 | F63: =+'Global Elite'!I54 -> 4523.925 | G63: =+'Global Elite'!J54 -> 3931.95 | H63: =+'Global Elite'!K54 -> 3066.6
D64: Tarifas semi anuales
D65: =+'Global Elite'!G65 -> 3493.5 | E65: =+'Global Elite'!H65 -> 3071.25 | F65: =+'Global Elite'!I65 -> 2546.625 | G65: =+'Global Elite'!J65 -> 2217.75 | H65: =+'Global Elite'!K65 -> 1737
D66: =+'Global Elite'!G66 -> 3418.5 | E66: =+'Global Elite'!H66 -> 2996.25 | F66: =+'Global Elite'!I66 -> 2471.625 | G66: =+'Global Elite'!J66 -> 2142.75 | H66: =+'Global Elite'!K66 -> 1662
D67: Tarifas trimestrales
D68: =+'Global Elite'!G78 -> 1784.25 | E68: =+'Global Elite'!H78 -> 1573.125 | F68: =+'Global Elite'!I78 -> 1310.8125 | G68: =+'Global Elite'!J78 -> 1146.375 | H68: =+'Global Elite'!K78 -> 906
D69: =+'Global Elite'!G79 -> 1709.25 | E69: =+'Global Elite'!H79 -> 1498.125 | F69: =+'Global Elite'!I79 -> 1235.8125 | G69: =+'Global Elite'!J79 -> 1071.375 | H69: =+'Global Elite'!K79 -> 831
A70: Ahorros en tarifas de prima para niños (pago annual)* | D70: =+'Global Elite'!G55 -> 0 | E70: =+'Global Elite'!H55 -> 0 | F70: =+'Global Elite'!I55 -> 0 | G70: =+'Global Elite'!J55 -> 0 | H70: =+'Global Elite'!K55 -> 0
D71: Tarifas mensuales
D72: ='Global Elite'!G91 -> 713.12 | E72: ='Global Elite'!H91 -> 634.3 | F72: ='Global Elite'!I91 -> 536.37 | G72: ='Global Elite'!J91 -> 474.98 | H72: ='Global Elite'!K91 -> 385.24
D73: ='Global Elite'!G92 -> 638.12 | E73: ='Global Elite'!H92 -> 559.3 | F73: ='Global Elite'!I92 -> 461.37 | G73: ='Global Elite'!J92 -> 399.98 | H73: ='Global Elite'!K92 -> 310.24
A76: Global Premier Health Plan
A77: Deducibles | E77: PLAN 1 | F77: PLAN 2 | G77: PLAN 3 | H77: PLAN 3
A78: En el país de residencia | E78: 250 | F78: 2000 | G78: 5000 | H78: 10000
A79: Fuera del país de residencia | E79: 5000 | F79: 2000 | G79: 5000 | H79: 10000
E80: Tarifas anuales
E81: =+'Global Premier'!G52 -> 3291.78 | F81: =+'Global Premier'!H52 -> 2995.32 | G81: =+'Global Premier'!I52 -> 2217.18 | H81: =+'Global Premier'!J52 -> 1668
E82: Tarifas semi anuales
E83: =+'Global Premier'!G62 -> 1862.1 | F83: =+'Global Premier'!H62 -> 1697.4 | G83: =+'Global Premier'!I62 -> 1265.1 | H83: =+'Global Premier'!J62 -> 960
E84: =+'Global Premier'!G63 -> 1787.1 | F84: =+'Global Premier'!H63 -> 1622.4 | G84: =+'Global Premier'!I63 -> 1190.1 | H84: =+'Global Premier'!J63 -> 885
E85: Tarifas trimestrales
E86: =+'Global Premier'!G74 -> 968.55 | F86: =+'Global Premier'!H74 -> 886.2 | G86: =+'Global Premier'!I74 -> 670.05 | H86: =+'Global Premier'!J74 -> 517.5
E87: =+'Global Premier'!G75 -> 893.55 | F87: =+'Global Premier'!H75 -> 811.2 | G87: =+'Global Premier'!I75 -> 595.05 | H87: =+'Global Premier'!J75 -> 442.5
E88: Tarifas mensuales
E89: ='Global Premier'!G86 -> 408.592 | F89: ='Global Premier'!H86 -> 377.848 | G89: ='Global Premier'!I86 -> 297.152 | H89: ='Global Premier'!J86 -> 240.2
E90: ='Global Premier'!G87 -> 333.592 | F90: ='Global Premier'!H87 -> 302.848 | G90: ='Global Premier'!I87 -> 222.152 | H90: ='Global Premier'!J87 -> 165.2
A92: Global Select Health Plan
A93: Deducibles | E93: PLAN 1 | F93: PLAN 2 | G93: PLAN 3 | H93: PLAN 4
A94: En el país de residencia | E94: 250 | F94: 2000 | G94: 5000 | H94: 10000
A95: Fuera del país de residencia | E95: 5000 | F95: 2000 | G95: 5000 | H95: 10000
E96: Tarifas anuales
E97: =+'Global Select'!G49 -> 2349.48 | F97: =+'Global Select'!H49 -> 2257.68 | G97: =+'Global Select'!I49 -> 1679.34 | H97: =+'Global Select'!J49 -> 1268.4
E98: Tarifas semi anuales
E99: =+'Global Select'!G59 -> 1338.6 | F99: =+'Global Select'!H59 -> 1287.6 | G99: =+'Global Select'!I59 -> 966.3 | H99: =+'Global Select'!J59 -> 738
E100: =+'Global Select'!G60 -> 1263.6 | F100: =+'Global Select'!H60 -> 1212.6 | G100: =+'Global Select'!I60 -> 891.3 | H100: =+'Global Select'!J60 -> 663
E101: Tarifas trimestrales
E102: =+'Global Select'!G71 -> 706.8 | F102: =+'Global Select'!H71 -> 681.3 | G102: =+'Global Select'!I71 -> 520.65 | H102: =+'Global Select'!J71 -> 406.5
E103: =+'Global Select'!G72 -> 631.8 | F103: =+'Global Select'!H72 -> 606.3 | G103: =+'Global Select'!I72 -> 445.65 | H103: =+'Global Select'!J72 -> 331.5
E104: Tarifas mensuales
E105: ='Global Select'!G83 -> 310.872 | F105: ='Global Select'!H83 -> 301.352 | G105: ='Global Select'!I83 -> 241.376 | H105: ='Global Select'!J83 -> 198.76
E106: ='Global Select'!G84 -> 235.872 | F106: ='Global Select'!H84 -> 226.352 | G106: ='Global Select'!I84 -> 166.376 | H106: ='Global Select'!J84 -> 123.76
A109: Global Major Medical Health Plan
A110: Deducibles | C110: PLAN 1 | D110: PLAN 2
A111: En el país de residencia | C111: 10000 | D111: 20000
A112: Fuera del país de residencia | C112: 10000 | D112: 20000
C113: Tarifas anuales
C114: ='Global Major Medical'!G50 -> 2721.9 | D114: ='Global Major Medical'!H50 -> 2378.1
C115: Tarifas semi anuales
C116: ='Global Major Medical'!G59 -> 1545.5 | D116: ='Global Major Medical'!H59 -> 1354.5
C117: ='Global Major Medical'!G60 -> 1470.5 | D117: ='Global Major Medical'!H60 -> 1279.5
C118: Tarifas trimestrales
C119: ='Global Major Medical'!G70 -> 810.25 | D119: ='Global Major Medical'!H70 -> 714.75
C120: ='Global Major Medical'!G71 -> 735.25 | D120: ='Global Major Medical'!H71 -> 639.75
C121: Tarifas mensuales
C122: ='Global Major Medical'!G81 -> 349.4933333 | D122: ='Global Major Medical'!H81 -> 313.84
C123: ='Global Major Medical'!G82 -> 274.4933333 | D123: ='Global Major Medical'!H82 -> 238.84
A126: Una tarifa administrativa de US$75 se carga automáticamente al primer pago
A127: *Basado en un modo de pago anual
A130: Tarifas en US $ - Efectivas a partir del 1ro de enero de 2020
A131: Este presupuesto solamente tiene carácter informativo y en ningún momento expresa compromiso legal para suministrarle cobertura de seguro. La emisión de una póliza de seguro Bupa está sujeta a todas las evaluaciones de riesgo por parte de Bupa y a la recepción de todos los pagos de prima requeridos.

Sheet Tablas
A2: BUPA GLOBAL ELITE | I2: FACTOR MENSUAL: | K2: =1.12/12 -> 0.09333333333 | M2: =1.12/12 -> 0.09333333333
A3: TARIFAS ANUALES | I3: FACTOR TRIMESTRAL: | K3: 0.25 | M3: =1.1/4 -> 0.275
A4: EDAD | I4: FACTOR SEMIANUAL: | K4: 0.5 | M4: =1.06/2 -> 0.53
C5: 250 | D5: 2000 | E5: 3500 | F5: 5000 | G5: 10000 | I5: Descuento (20%): | K5: =100%-20% -> 0.8 | M5: =100%-20% -> 0.8
A6: 18 | C6: 6869 | D6: 6019 | E6: 5063 | F6: 4390 | G6: 3405
A7: 19 | C7: 6869 | D7: 6019 | E7: 5063 | F7: 4390 | G7: 3405
A8: 20 | C8: 6869 | D8: 6019 | E8: 5063 | F8: 4390 | G8: 3405
A9: 21 | C9: 6869 | D9: 6019 | E9: 5063 | F9: 4390 | G9: 3405
A10: 22 | C10: 6869 | D10: 6019 | E10: 5063 | F10: 4390 | G10: 3405
A11: 23 | C11: 6869 | D11: 6019 | E11: 5063 | F11: 4390 | G11: 3405
A12: 24 | C12: 6869 | D12: 6019 | E12: 5063 | F12: 4390 | G12: 3405
A13: 25 | C13: 7341 | D13: 6434 | E13: 5379 | F13: 4665 | G13: 3618
A14: 26 | C14: 7341 | D14: 6434 | E14: 5379 | F14: 4665 | G14: 3618
A15: 27 | C15: 7341 | D15: 6434 | E15: 5379 | F15: 4665 | G15: 3618
A16: 28 | C16: 7341 | D16: 6434 | E16: 5379 | F16: 4665 | G16: 3618
A17: 29 | C17: 7341 | D17: 6434 | E17: 5379 | F17: 4665 | G17: 3618
A18: 30 | C18: 8166 | D18: 7157 | E18: 5937 | F18: 5147 | G18: 3993
A19: 31 | C19: 8166 | D19: 7157 | E19: 5937 | F19: 5147 | G19: 3993
A20: 32 | C20: 8166 | D20: 7157 | E20: 5937 | F20: 5147 | G20: 3993
A21: 33 | C21: 8166 | D21: 7157 | E21: 5937 | F21: 5147 | G21: 3993
A22: 34 | C22: 8166 | D22: 7157 | E22: 5937 | F22: 5147 | G22: 3993
A23: 35 | C23: 9116 | D23: 7990 | E23: 6591 | F23: 5714 | G23: 4432
A24: 36 | C24: 9116 | D24: 7990 | E24: 6591 | F24: 5714 | G24: 4432
A25: 37 | C25: 9116 | D25: 7990 | E25: 6591 | F25: 5714 | G25: 4432
A26: 38 | C26: 9116 | D26: 7990 | E26: 6591 | F26: 5714 | G26: 4432
A27: 39 | C27: 9116 | D27: 7990 | E27: 6591 | F27: 5714 | G27: 4432
A28: 40 | C28: 10214 | D28: 8951 | E28: 7351 | F28: 6374 | G28: 4944
A29: 41 | C29: 10214 | D29: 8951 | E29: 7351 | F29: 6374 | G29: 4944
A30: 42 | C30: 10214 | D30: 8951 | E30: 7351 | F30: 6374 | G30: 4944
A31: 43 | C31: 10214 | D31: 8951 | E31: 7351 | F31: 6374 | G31: 4944
A32: 44 | C32: 10214 | D32: 8951 | E32: 7351 | F32: 6374 | G32: 4944
A33: 45 | C33: 11429 | D33: 10019 | E33: 8203 | F33: 7113 | G33: 5517
A34: 46 | C34: 11429 | D34: 10019 | E34: 8203 | F34: 7113 | G34: 5517
A35: 47 | C35: 11429 | D35: 10019 | E35: 8203 | F35: 7113 | G35: 5517
A36: 48 | C36: 11429 | D36: 10019 | E36: 8203 | F36: 7113 | G36: 5517
A37: 49 | C37: 11429 | D37: 10019 | E37: 8203 | F37: 7113 | G37: 5517
A38: 50 | C38: 12802 | D38: 11222 | E38: 9165 | F38: 7946 | G38: 6164
A39: 51 | C39: 12802 | D39: 11222 | E39: 9165 | F39: 7946 | G39: 6164
A40: 52 | C40: 12802 | D40: 11222 | E40: 9165 | F40: 7946 | G40: 6164
A41: 53 | C41: 12802 | D41: 11222 | E41: 9165 | F41: 7946 | G41: 6164
A42: 54 | C42: 12802 | D42: 11222 | E42: 9165 | F42: 7946 | G42: 6164
A43: 55 | C43: 14313 | D43: 12546 | E43: 10233 | F43: 8873 | G43: 6882
A44: 56 | C44: 14313 | D44: 12546 | E44: 10233 | F44: 8873 | G44: 6882
A45: 57 | C45: 14313 | D45: 12546 | E45: 10233 | F45: 8873 | G45: 6882
A46: 58 | C46: 14313 | D46: 12546 | E46: 10233 | F46: 8873 | G46: 6882
A47: 59 | C47: 14313 | D47: 12546 | E47: 10233 | F47: 8873 | G47: 6882
A48: 60 | C48: 15320 | D48: 13427 | E48: 10943 | F48: 9490 | G48: 7360
A49: 61 | C49: 17072 | D49: 14964 | E49: 12188 | F49: 10568 | G49: 8197
A50: 62 | C50: 18967 | D50: 16626 | E50: 13537 | F50: 11738 | G50: 9103
A51: 63 | C51: 21007 | D51: 18413 | E51: 14992 | F51: 13000 | G51: 10083
A52: 64 | C52: 23190 | D52: 20325 | E52: 16552 | F52: 14353 | G52: 11132
A53: 65 | C53: 25514 | D53: 22363 | E53: 18218 | F53: 15797 | G53: 12252
A54: 66 | C54: 27982 | D54: 24526 | E54: 19991 | F54: 17334 | G54: 13443
A55: 67 | C55: 30594 | D55: 26815 | E55: 21868 | F55: 18962 | G55: 14706
A56: 68 | C56: 33347 | D56: 29229 | E56: 23850 | F56: 20680 | G56: 16038
A57: 69 | C57: 36245 | D57: 31769 | E57: 25938 | F57: 22492 | G57: 17443
A58: 70 | C58: 39284 | D58: 34433 | E58: 28131 | F58: 24392 | G58: 18918
A59: 71 | C59: 42469 | D59: 37224 | E59: 30430 | F59: 26387 | G59: 20463
A60: 72 | C60: 45793 | D60: 40139 | E60: 32836 | F60: 28472 | G60: 22081
A61: 73 | C61: 49264 | D61: 43181 | E61: 35344 | F61: 30646 | G61: 23767
A62: 74 | C62: 52877 | D62: 46348 | E62: 37959 | F62: 32914 | G62: 25526
A63: 75 | C63: 56632 | D63: 49639 | E63: 40680 | F63: 35274 | G63: 27356
A64: 76 | C64: 56632 | D64: 49639 | E64: 40680 | F64: 35274 | G64: 27356
A65: 77 | C65: 56632 | D65: 49639 | E65: 40680 | F65: 35274 | G65: 27356
A66: 78 | C66: 56632 | D66: 49639 | E66: 40680 | F66: 35274 | G66: 27356
A67: 79 | C67: 56632 | D67: 49639 | E67: 40680 | F67: 35274 | G67: 27356
A68: 80 | C68: 56632 | D68: 49639 | E68: 40680 | F68: 35274 | G68: 27356
A69: 81 | C69: 56632 | D69: 49639 | E69: 40680 | F69: 35274 | G69: 27356
A70: 82 | C70: 56632 | D70: 49639 | E70: 40680 | F70: 35274 | G70: 27356
A71: 83 | C71: 56632 | D71: 49639 | E71: 40680 | F71: 35274 | G71: 27356
A72: 84 | B72: o más | C72: 56632 | D72: 49639 | E72: 40680 | F72: 35274 | G72: 27356
A73: 1 | B73: Hijo | C73: 2901 | D73: 2544 | E73: 2155 | F73: 1869 | G73: 1450
A74: 2 | B74: Hijos | C74: 4934 | D74: 4325 | E74: 3663 | F74: 3176 | G74: 2464
A75: 3 | B75: Hijos o más | C75: 6964 | D75: 6105 | E75: 5171 | F75: 4484 | G75: 3477
A77: BUPA GLOBAL ELITE - MENSUALES
A78: EDAD
C79: 250 | D79: 2000 | E79: 3500 | F79: 5000 | G79: 10000
A80: 18 | C80: =+C6*$K$2 -> 641.1066667 | D80: =+D6*$K$2 -> 561.7733333 | E80: 472.5466667 | F80: 409.7333333 | G80: 317.8
A81: 19 | C81: =+C7*$K$2 -> 641.1066667 | D81: 561.7733333 | E81: 472.5466667 | F81: 409.7333333 | G81: 317.8
A82: 20 | C82: =+C8*$K$2 -> 641.1066667 | D82: 561.7733333 | E82: 472.5466667 | F82: 409.7333333 | G82: 317.8
A83: 21 | C83: =+C9*$K$2 -> 641.1066667 | D83: 561.7733333 | E83: 472.5466667 | F83: 409.7333333 | G83: 317.8
A84: 22 | C84: =+C10*$K$2 -> 641.1066667 | D84: 561.7733333 | E84: 472.5466667 | F84: 409.7333333 | G84: 317.8
A85: 23 | C85: =+C11*$K$2 -> 641.1066667 | D85: 561.7733333 | E85: 472.5466667 | F85: 409.7333333 | G85: 317.8
A86: 24 | C86: =+C12*$K$2 -> 641.1066667 | D86: 561.7733333 | E86: 472.5466667 | F86: 409.7333333 | G86: 317.8
A87: 25 | C87: =+C13*$K$2 -> 685.16 | D87: 600.5066667 | E87: 502.04 | F87: 435.4 | G87: 337.68
A88: 26 | C88: =+C14*$K$2 -> 685.16 | D88: 600.5066667 | E88: 502.04 | F88: 435.4 | G88: 337.68
A89: 27 | C89: =+C15*$K$2 -> 685.16 | D89: 600.5066667 | E89: 502.04 | F89: 435.4 | G89: 337.68
A90: 28 | C90: =+C16*$K$2 -> 685.16 | D90: 600.5066667 | E90: 502.04 | F90: 435.4 | G90: 337.68
A91: 29 | C91: =+C17*$K$2 -> 685.16 | D91: 600.5066667 | E91: 502.04 | F91: 435.4 | G91: 337.68
A92: 30 | C92: =+C18*$K$2 -> 762.16 | D92: 667.9866667 | E92: 554.12 | F92: 480.3866667 | G92: 372.68
A93: 31 | C93: =+C19*$K$2 -> 762.16 | D93: 667.9866667 | E93: 554.12 | F93: 480.3866667 | G93: 372.68
A94: 32 | C94: =+C20*$K$2 -> 762.16 | D94: 667.9866667 | E94: 554.12 | F94: 480.3866667 | G94: 372.68
A95: 33 | C95: =+C21*$K$2 -> 762.16 | D95: 667.9866667 | E95: 554.12 | F95: 480.3866667 | G95: 372.68
A96: 34 | C96: =+C22*$K$2 -> 762.16 | D96: 667.9866667 | E96: 554.12 | F96: 480.3866667 | G96: 372.68
A97: 35 | C97: =+C23*$K$2 -> 850.8266667 | D97: 745.7333333 | E97: 615.16 | F97: 533.3066667 | G97: 413.6533333
A98: 36 | C98: =+C24*$K$2 -> 850.8266667 | D98: 745.7333333 | E98: 615.16 | F98: 533.3066667 | G98: 413.6533333
A99: 37 | C99: =+C25*$K$2 -> 850.8266667 | D99: 745.7333333 | E99: 615.16 | F99: 533.3066667 | G99: 413.6533333
A100: 38 | C100: =+C26*$K$2 -> 850.8266667 | D100: 745.7333333 | E100: 615.16 | F100: 533.3066667 | G100: 413.6533333
A101: 39 | C101: =+C27*$K$2 -> 850.8266667 | D101: 745.7333333 | E101: 615.16 | F101: 533.3066667 | G101: 413.6533333
A102: 40 | C102: =+C28*$K$2 -> 953.3066667 | D102: 835.4266667 | E102: 686.0933333 | F102: 594.9066667 | G102: 461.44
A103: 41 | C103: =+C29*$K$2 -> 953.3066667 | D103: 835.4266667 | E103: 686.0933333 | F103: 594.9066667 | G103: 461.44
A104: 42 | C104: =+C30*$K$2 -> 953.3066667 | D104: 835.4266667 | E104: 686.0933333 | F104: 594.9066667 | G104: 461.44
A105: 43 | C105: =+C31*$K$2 -> 953.3066667 | D105: 835.4266667 | E105: 686.0933333 | F105: 594.9066667 | G105: 461.44
A106: 44 | C106: =+C32*$K$2 -> 953.3066667 | D106: 835.4266667 | E106: 686.0933333 | F106: 594.9066667 | G106: 461.44
A107: 45 | C107: =+C33*$K$2 -> 1066.706667 | D107: 935.1066667 | E107: 765.6133333 | F107: 663.88 | G107: 514.92
A108: 46 | C108: =+C34*$K$2 -> 1066.706667 | D108: 935.1066667 | E108: 765.6133333 | F108: 663.88 | G108: 514.92
A109: 47 | C109: =+C35*$K$2 -> 1066.706667 | D109: 935.1066667 | E109: 765.6133333 | F109: 663.88 | G109: 514.92
A110: 48 | C110: =+C36*$K$2 -> 1066.706667 | D110: 935.1066667 | E110: 765.6133333 | F110: 663.88 | G110: 514.92
A111: 49 | C111: =+C37*$K$2 -> 1066.706667 | D111: 935.1066667 | E111: 765.6133333 | F111: 663.88 | G111: 514.92
A112: 50 | C112: =+C38*$K$2 -> 1194.853333 | D112: 1047.386667 | E112: 855.4 | F112: 741.6266667 | G112: 575.3066667
A113: 51 | C113: =+C39*$K$2 -> 1194.853333 | D113: 1047.386667 | E113: 855.4 | F113: 741.6266667 | G113: 575.3066667
A114: 52 | C114: =+C40*$K$2 -> 1194.853333 | D114: 1047.386667 | E114: 855.4 | F114: 741.6266667 | G114: 575.3066667
A115: 53 | C115: =+C41*$K$2 -> 1194.853333 | D115: 1047.386667 | E115: 855.4 | F115: 741.6266667 | G115: 575.3066667
A116: 54 | C116: =+C42*$K$2 -> 1194.853333 | D116: 1047.386667 | E116: 855.4 | F116: 741.6266667 | G116: 575.3066667
A117: 55 | C117: =+C43*$K$2 -> 1335.88 | D117: 1170.96 | E117: 955.08 | F117: 828.1466667 | G117: 642.32
A118: 56 | C118: =+C44*$K$2 -> 1335.88 | D118: 1170.96 | E118: 955.08 | F118: 828.1466667 | G118: 642.32
A119: 57 | C119: =+C45*$K$2 -> 1335.88 | D119: 1170.96 | E119: 955.08 | F119: 828.1466667 | G119: 642.32
A120: 58 | C120: =+C46*$K$2 -> 1335.88 | D120: 1170.96 | E120: 955.08 | F120: 828.1466667 | G120: 642.32
A121: 59 | C121: =+C47*$K$2 -> 1335.88 | D121: 1170.96 | E121: 955.08 | F121: 828.1466667 | G121: 642.32
A122: 60 | C122: =+C48*$K$2 -> 1429.866667 | D122: 1253.186667 | E122: 1021.346667 | F122: 885.7333333 | G122: 686.9333333
A123: 61 | C123: =+C49*$K$2 -> 1593.386667 | D123: 1396.64 | E123: 1137.546667 | F123: 986.3466667 | G123: 765.0533333
A124: 62 | C124: =+C50*$K$2 -> 1770.253333 | D124: 1551.76 | E124: 1263.453333 | F124: 1095.546667 | G124: 849.6133333
A125: 63 | C125: =+C51*$K$2 -> 1960.653333 | D125: 1718.546667 | E125: 1399.253333 | F125: 1213.333333 | G125: 941.08
A126: 64 | C126: =+C52*$K$2 -> 2164.4 | D126: 1897 | E126: 1544.853333 | F126: 1339.613333 | G126: 1038.986667
A127: 65 | C127: =+C53*$K$2 -> 2381.306667 | D127: 2087.213333 | E127: 1700.346667 | F127: 1474.386667 | G127: 1143.52
A128: 66 | C128: =+C54*$K$2 -> 2611.653333 | D128: 2289.093333 | E128: 1865.826667 | F128: 1617.84 | G128: 1254.68
A129: 67 | C129: =+C55*$K$2 -> 2855.44 | D129: 2502.733333 | E129: 2041.013333 | F129: 1769.786667 | G129: 1372.56
A130: 68 | C130: =+C56*$K$2 -> 3112.386667 | D130: 2728.04 | E130: 2226 | F130: 1930.133333 | G130: 1496.88
A131: 69 | C131: =+C57*$K$2 -> 3382.866667 | D131: 2965.106667 | E131: 2420.88 | F131: 2099.253333 | G131: 1628.013333
A132: 70 | C132: =+C58*$K$2 -> 3666.506667 | D132: 3213.746667 | E132: 2625.56 | F132: 2276.586667 | G132: 1765.68
A133: 71 | C133: =+C59*$K$2 -> 3963.773333 | D133: 3474.24 | E133: 2840.133333 | F133: 2462.786667 | G133: 1909.88
A134: 72 | C134: =+C60*$K$2 -> 4274.013333 | D134: 3746.306667 | E134: 3064.693333 | F134: 2657.386667 | G134: 2060.893333
A135: 73 | C135: =+C61*$K$2 -> 4597.973333 | D135: 4030.226667 | E135: 3298.773333 | F135: 2860.293333 | G135: 2218.253333
A136: 74 | C136: =+C62*$K$2 -> 4935.186667 | D136: 4325.813333 | E136: 3542.84 | F136: 3071.973333 | G136: 2382.426667
A137: 75 | C137: =+C63*$K$2 -> 5285.653333 | D137: 4632.973333 | E137: 3796.8 | F137: 3292.24 | G137: 2553.226667
A138: 76 | C138: =+C64*$K$2 -> 5285.653333 | D138: 4632.973333 | E138: 3796.8 | F138: 3292.24 | G138: 2553.226667
A139: 77 | C139: =+C65*$K$2 -> 5285.653333 | D139: 4632.973333 | E139: 3796.8 | F139: 3292.24 | G139: 2553.226667
A140: 78 | C140: =+C66*$K$2 -> 5285.653333 | D140: 4632.973333 | E140: 3796.8 | F140: 3292.24 | G140: 2553.226667
A141: 79 | C141: =+C67*$K$2 -> 5285.653333 | D141: 4632.973333 | E141: 3796.8 | F141: 3292.24 | G141: 2553.226667
A142: 80 | C142: =+C68*$K$2 -> 5285.653333 | D142: 4632.973333 | E142: 3796.8 | F142: 3292.24 | G142: 2553.226667
A143: 81 | C143: =+C69*$K$2 -> 5285.653333 | D143: 4632.973333 | E143: 3796.8 | F143: 3292.24 | G143: 2553.226667
A144: 82 | C144: =+C70*$K$2 -> 5285.653333 | D144: 4632.973333 | E144: 3796.8 | F144: 3292.24 | G144: 2553.226667
A145: 83 | C145: =+C71*$K$2 -> 5285.653333 | D145: 4632.973333 | E145: 3796.8 | F145: 3292.24 | G145: 2553.226667
A146: 84 | B146: o más | C146: =+C72*$K$2 -> 5285.653333 | D146: 4632.973333 | E146: 3796.8 | F146: 3292.24 | G146: 2553.226667
A147: 1 | B147: Hijo | C147: =+C73*$K$2 -> 270.76 | D147: 237.44 | E147: 201.1333333 | F147: 174.44 | G147: 135.3333333
A148: 2 | B148: Hijos | C148: =+C74*$K$2 -> 460.5066667 | D148: 403.6666667 | E148: 341.88 | F148: 296.4266667 | G148: 229.9733333
A149: 3 | B149: Hijos o más | C149: =+C75*$K$2 -> 649.9733333 | D149: 569.8 | E149: 482.6266667 | F149: 418.5066667 | G149: 324.52
A151: BUPA GLOBAL PREMIER
A152: TARIFAS ANUALES
A153: EDAD
C154: 250 | D154: 2000 | E154: 5000 | F154: 10000 | I154: Tarifas originales
A155: 18 | C155: =I155*$K$5 -> 3592 | D155: =J155*$K$5 -> 3259.2 | E155: 2472.8 | F155: 1839.2 | I155: 4490 | J155: 4074 | K155: 3091 | L155: 2299
A156: 19 | C156: =I156*$K$5 -> 3592 | D156: =J156*$K$5 -> 3259.2 | E156: =K156*$K$5 -> 2472.8 | F156: =L156*$K$5 -> 1839.2 | I156: 4490 | J156: 4074 | K156: 3091 | L156: 2299
A157: 20 | C157: 3592 | D157: 3259.2 | E157: 2472.8 | F157: 1839.2 | I157: 4490 | J157: 4074 | K157: 3091 | L157: 2299
A158: 21 | C158: 3592 | D158: 3259.2 | E158: 2472.8 | F158: 1839.2 | I158: 4490 | J158: 4074 | K158: 3091 | L158: 2299
A159: 22 | C159: 3592 | D159: 3259.2 | E159: 2472.8 | F159: 1839.2 | I159: 4490 | J159: 4074 | K159: 3091 | L159: 2299
A160: 23 | C160: 3592 | D160: 3259.2 | E160: 2472.8 | F160: 1839.2 | I160: 4490 | J160: 4074 | K160: 3091 | L160: 2299
A161: 24 | C161: 3592 | D161: 3259.2 | E161: 2472.8 | F161: 1839.2 | I161: 4490 | J161: 4074 | K161: 3091 | L161: 2299
A162: 25 | C162: 3838.4 | D162: 3483.2 | E162: 2615.2 | F162: 1946.4 | I162: 4798 | J162: 4354 | K162: 3269 | L162: 2433
A163: 26 | C163: 3838.4 | D163: 3483.2 | E163: 2615.2 | F163: 1946.4 | I163: 4798 | J163: 4354 | K163: 3269 | L163: 2433
A164: 27 | C164: 3838.4 | D164: 3483.2 | E164: 2615.2 | F164: 1946.4 | I164: 4798 | J164: 4354 | K164: 3269 | L164: 2433
A165: 28 | C165: 3838.4 | D165: 3483.2 | E165: 2615.2 | F165: 1946.4 | I165: 4798 | J165: 4354 | K165: 3269 | L165: 2433
A166: 29 | C166: 3838.4 | D166: 3483.2 | E166: 2615.2 | F166: 1946.4 | I166: 4798 | J166: 4354 | K166: 3269 | L166: 2433
A167: 30 | C167: 4270.4 | D167: 3874.4 | E167: 2871.2 | F167: 2136 | I167: 5338 | J167: 4843 | K167: 3589 | L167: 2670
A168: 31 | C168: 4270.4 | D168: 3874.4 | E168: 2871.2 | F168: 2136 | I168: 5338 | J168: 4843 | K168: 3589 | L168: 2670
A169: 32 | C169: 4270.4 | D169: 3874.4 | E169: 2871.2 | F169: 2136 | I169: 5338 | J169: 4843 | K169: 3589 | L169: 2670
A170: 33 | C170: 4270.4 | D170: 3874.4 | E170: 2871.2 | F170: 2136 | I170: 5338 | J170: 4843 | K170: 3589 | L170: 2670
A171: 34 | C171: 4270.4 | D171: 3874.4 | E171: 2871.2 | F171: 2136 | I171: 5338 | J171: 4843 | K171: 3589 | L171: 2670
A172: 35 | C172: 4765.6 | D172: 4326.4 | E172: 3173.6 | F172: 2360 | I172: 5957 | J172: 5408 | K172: 3967 | L172: 2950
A173: 36 | C173: 4765.6 | D173: 4326.4 | E173: 3173.6 | F173: 2360 | I173: 5957 | J173: 5408 | K173: 3967 | L173: 2950
A174: 37 | C174: 4765.6 | D174: 4326.4 | E174: 3173.6 | F174: 2360 | I174: 5957 | J174: 5408 | K174: 3967 | L174: 2950
A175: 38 | C175: 4765.6 | D175: 4326.4 | E175: 3173.6 | F175: 2360 | I175: 5957 | J175: 5408 | K175: 3967 | L175: 2950
A176: 39 | C176: 4765.6 | D176: 4326.4 | E176: 3173.6 | F176: 2360 | I176: 5957 | J176: 5408 | K176: 3967 | L176: 2950
A177: 40 | C177: 5340.8 | D177: 4847.2 | E177: 3528.8 | F177: 2624.8 | I177: 6676 | J177: 6059 | K177: 4411 | L177: 3281
A178: 41 | C178: 5340.8 | D178: 4847.2 | E178: 3528.8 | F178: 2624.8 | I178: 6676 | J178: 6059 | K178: 4411 | L178: 3281
A179: 42 | C179: 5340.8 | D179: 4847.2 | E179: 3528.8 | F179: 2624.8 | I179: 6676 | J179: 6059 | K179: 4411 | L179: 3281
A180: 43 | C180: 5340.8 | D180: 4847.2 | E180: 3528.8 | F180: 2624.8 | I180: 6676 | J180: 6059 | K180: 4411 | L180: 3281
A181: 44 | C181: 5340.8 | D181: 4847.2 | E181: 3528.8 | F181: 2624.8 | I181: 6676 | J181: 6059 | K181: 4411 | L181: 3281
A182: 45 | C182: 5977.6 | D182: 5425.6 | E182: 3928 | F182: 2921.6 | I182: 7472 | J182: 6782 | K182: 4910 | L182: 3652
A183: 46 | C183: 5977.6 | D183: 5425.6 | E183: 3928 | F183: 2921.6 | I183: 7472 | J183: 6782 | K183: 4910 | L183: 3652
A184: 47 | C184: 5977.6 | D184: 5425.6 | E184: 3928 | F184: 2921.6 | I184: 7472 | J184: 6782 | K184: 4910 | L184: 3652
A185: 48 | C185: 5977.6 | D185: 5425.6 | E185: 3928 | F185: 2921.6 | I185: 7472 | J185: 6782 | K185: 4910 | L185: 3652
A186: 49 | C186: 5977.6 | D186: 5425.6 | E186: 3928 | F186: 2921.6 | I186: 7472 | J186: 6782 | K186: 4910 | L186: 3652
A187: 50 | C187: 6694.4 | D187: 6075.2 | E187: 4381.6 | F187: 3259.2 | I187: 8368 | J187: 7594 | K187: 5477 | L187: 4074
A188: 51 | C188: 6694.4 | D188: 6075.2 | E188: 4381.6 | F188: 3259.2 | I188: 8368 | J188: 7594 | K188: 5477 | L188: 4074
A189: 52 | C189: 6694.4 | D189: 6075.2 | E189: 4381.6 | F189: 3259.2 | I189: 8368 | J189: 7594 | K189: 5477 | L189: 4074
A190: 53 | C190: 6694.4 | D190: 6075.2 | E190: 4381.6 | F190: 3259.2 | I190: 8368 | J190: 7594 | K190: 5477 | L190: 4074
A191: 54 | C191: 6694.4 | D191: 6075.2 | E191: 4381.6 | F191: 3259.2 | I191: 8368 | J191: 7594 | K191: 5477 | L191: 4074
A192: 55 | C192: 7484.8 | D192: 6792.8 | E192: 4885.6 | F192: 3635.2 | I192: 9356 | J192: 8491 | K192: 6107 | L192: 4544
A193: 56 | C193: 7484.8 | D193: 6792.8 | E193: 4885.6 | F193: 3635.2 | I193: 9356 | J193: 8491 | K193: 6107 | L193: 4544
A194: 57 | C194: 7484.8 | D194: 6792.8 | E194: 4885.6 | F194: 3635.2 | I194: 9356 | J194: 8491 | K194: 6107 | L194: 4544
A195: 58 | C195: 7484.8 | D195: 6792.8 | E195: 4885.6 | F195: 3635.2 | I195: 9356 | J195: 8491 | K195: 6107 | L195: 4544
A196: 59 | C196: 7484.8 | D196: 6792.8 | E196: 4885.6 | F196: 3635.2 | I196: 9356 | J196: 8491 | K196: 6107 | L196: 4544
A197: 60 | C197: 8011.2 | D197: 7269.6 | E197: 5223.2 | F197: 3884.8 | I197: 10014 | J197: 9087 | K197: 6529 | L197: 4856
A198: 61 | C198: 8928 | D198: 8101.6 | E198: 5812.8 | F198: 4324 | I198: 11160 | J198: 10127 | K198: 7266 | L198: 5405
A199: 62 | C199: 9916.8 | D199: 9001.6 | E199: 6454.4 | F199: 4801.6 | I199: 12396 | J199: 11252 | K199: 8068 | L199: 6002
A200: 63 | C200: 10984 | D200: 9968 | E200: 7149.6 | F200: 5317.6 | I200: 13730 | J200: 12460 | K200: 8937 | L200: 6647
A201: 64 | C201: 12124.8 | D201: 11003.2 | E201: 7895.2 | F201: 5873.6 | I201: 15156 | J201: 13754 | K201: 9869 | L201: 7342
A202: 65 | C202: 13340.8 | D202: 12105.6 | E202: 8692 | F202: 6465.6 | I202: 16676 | J202: 15132 | K202: 10865 | L202: 8082
A203: 66 | C203: 14632 | D203: 13277.6 | E203: 9540.8 | F203: 7097.6 | I203: 18290 | J203: 16597 | K203: 11926 | L203: 8872
... 1275 more rows
